account_party,address,code,date,document_number,expense_code_name,expense_code_name_short,id,party_cell,party_cell_code,party_cell_geoobject,purpose,source_bank_account_number,source_bank_account_type,sum,target_legal_personality,target_legal_personality_code,target_type
ЄС,"Київ, вулиця Михайла Грушевського, 1Д",79,2018-06-12,1,"Оренда будинків і приміщень та експлуатаційні витрати (прибирання, страхування орендованих будинків, охорона, сигналізація, ремонт, вивіз сміття, тощо)",Оренда нерухомості,386681,Запорізька обласна організація,39434317,Запорізька область,оренда приміщення 2017 р.,2600501759900,current,1013.38,"ПАТ КБ ""Приватбанк""",14360570,юридична особа
ЄС,"Київ, вулиця Ковпака, 28",70,2016-12-30,141853961 5,Банківські послуги,Інші витрати,386669,Чернігівська обласна організація,39742680,Чернігівська область,"Погашення абонплати за грудень 2016 року. Договір №26006011627020 від 2015-06-16. Без ПДВ. (Абонентська плата суб’єктів господарювання за надання послуг, що входять до пакету ’’Економ”). [26006011627020]",26006011627020,current,150.00,"ПАТ ""Укрсоцбанк""",00039019,юридична особа
ЄС,"Київ, вулиця Єреванська, 1",70,2016-12-30,TR.2526800. 451231.26,Банківські послуги,Інші витрати,386573,Чернівецька обласна організація,39692702,Чернівецька область,Абон.плата за розрахункове обслуговування за грудень 2016 за договором №13/2015-46/25 від 2016-10-28,26001266565,current,30.00,"АБ ""Укргазбанк""",23697280,юридична особа
ЄС,"Київ, вулиця Єреванська, 1",70,2016-12-30,TR.2526800. 461010.26,Банківські послуги,Інші витрати,386572,Чернівецька обласна організація,39692702,Чернівецька область,Плата за розрахункове обсл. За грудень 2016 по дог.№13/2015-46/25 від 28.10.16,26001266565,current,9.00,"АБ ""Укргазбанк""",23697280,юридична особа
ЄС,"Черкаська область, Черкаси, бульвар Шевченка, 320",70,2016-12-30,85145050,Банківські послуги,Інші витрати,386494,Черкаська обласна організація,39602603,Черкаська область,За розрахункове обслуговування,26002001135423,current,50.00,Черкаське ОУ м. Черкаси,00354507,юридична особа
ЄС,"Черкаська область, Черкаси, бульвар Шевченка, 320",70,2016-12-30,85180647,Банківські послуги,Інші витрати,386493,Черкаська обласна організація,39602603,Черкаська область,За розрахункове обслуговування,26002001135423,current,9.72,Черкаське ОУ м. Черкаси,00354507,юридична особа
ЄС,"Хмельницька область, Хмельницький",70,2016-12-30,1418732333,Банківські послуги,Інші витрати,386427,Хмельницька обласна організація,39545645,Хмельницька область,Погашення абонплати,26001011576381,current,13.83,"ПАТ ""Укрсоцбанк""",00039019,юридична особа
ЄС,"Київ, вулиця Єреванська, 1",70,2016-12-30,"TR.2255303, 456734.2667",Банківські послуги,Інші витрати,386215,Херсонська обласна організація,39438699,Херсонська область,Розрахунково-касове обслуговування,26001266059,current,30.00,"АБ ""Укргазбанк""",23697280,юридична особа
ЄС,"Київ, вулиця Єреванська, 1",70,2016-12-30,"TR.2255313, 418631.2667",Банківські послуги,Інші витрати,386214,Херсонська обласна організація,39438699,Херсонська область,Розрахунково-касове обслуговування,26001266059,current,30.00,"АБ ""Укргазбанк""",23697280,юридична особа
ЄС,"Київ, вулиця Єреванська, 1",70,2016-12-30,"TR.2255303, 474696.2667",Банківські послуги,Інші витрати,386213,Херсонська обласна організація,39438699,Херсонська область,Розрахунково-касове обслуговування,26001266059,current,15.20,"АБ ""Укргазбанк""",23697280,юридична особа
ЄС,"Київ, вулиця Єреванська, 1",70,2016-12-30,"TR.2255297, 548394.2667",Банківські послуги,Інші витрати,386212,Херсонська обласна організація,39438699,Херсонська область,Розрахунково-касове обслуговування,26001266059,current,6.40,"АБ ""Укргазбанк""",23697280,юридична особа
ЄС,"Київ, вулиця Михайла Грушевського, 1Д",70,2016-12-30,1230Б0БККА,Банківські послуги,Інші витрати,385376,Тернопільська обласна організація,39614425,Тернопільська область,Комісія за поповнення карток для виплат та нецільові платежі,26009055114295,current,17.11,"ПАТ КБ ""Приватбанк""",14360570,юридична особа
ЄС,"Тернопільська область, Тернопіль, проспект Злуки, 3",82,2016-12-30,31,"Гонорари, в тому числі за надані консультаційні послуги","Гонорари, в тому числі за надані консультаційні послуги",385311,Тернопільська обласна організація,39614425,Тернопільська область,виплата за договором ЦПХ,26009055114295,current,6842.50,Гугушвілі Тамта Володимирівна,,фізична особа
ЄС,"Київ, вулиця Михайла Грушевського, 1Д",70,2016-12-30,OA6csb8b3p,Банківські послуги,Інші витрати,384491,Миколаївська обласна організація,26029188,Миколаївська область,Розрахунково-касове обслуговування,26001053219711,current,100.00,"ПАТ КБ ""Приватбанк""",14360570,юридична особа
ЄС,"Київ, вулиця Ковпака, 28",70,2016-12-30,1418119981,Банківські послуги,Інші витрати,382736,Київська міська організація,39154804,Київ,"Погашення абонплати за грудень 2016 року. Договір №26008011649608 від 2015-07-22. Без ПДВ. (Абонентська плата суб’єктів господарювання за надання послуг, що входять",26008011649608,current,150.00,"ПАТ ""Укрсоцбанк""",00039019,юридична особа
ЄС,"Київ, вулиця Єреванська, 1",70,2016-12-30,TR.2583914.45 7018.2667,Банківські послуги,Інші витрати,382262,Івано-Франківська обласна організація,39655372,Івано-Франківська область,"Абонплата за розрахункове обслуговування по рахунку № 26003924420903.980 за період з 2016-12-01 по 2016-12-31 зг. договору № 2016/РК0/047-120 від 2016-11-30 , без ПДВ",26003924420903,current,30.00,"АБ ""Укргазбанк""",23697280,юридична особа
ЄС,"Київ, вулиця Єреванська, 1",70,2016-12-30,TR.2593852.41 5291.2667,Банківські послуги,Інші витрати,382261,Івано-Франківська обласна організація,39655372,Івано-Франківська область,"Абонплата за обслуговування в системі КІБ по рахунку № 26003924420903.980 за період з 2016-12-06 по 2016-12-31 зг. договору № 2016/КИБ/047-148 від 2016-12-06 , без ПДВ",26003924420903,current,15.00,"АБ ""Укргазбанк""",23697280,юридична особа
ЄС,"Київ, вулиця Єреванська, 1",70,2016-12-30,TR.2583914.47 5197.2667,Банківські послуги,Інші витрати,382260,Івано-Франківська обласна організація,39655372,Івано-Франківська область,"Плата за розрахункове обслуговування по рахунку № 26003924420903.980 з 2016-12-01 по 2016-12-30 згідно Договору № 2016/РК0/047-120 від 2016-11-30 р, без ПДВ",26003924420903,current,7.20,"АБ ""Укргазбанк""",23697280,юридична особа
ЄС,"Київ, вулиця Андріївська, 2/12",70,2016-12-30,30151432,Банківські послуги,Інші витрати,382259,Івано-Франківська обласна організація,39655372,Івано-Франківська область,Списання комісії по рахунку 26007557484900 UAH за ведення поточ.рах. за період з 2016-11-30 по 2016-12-31 зг. Дог. №03557484901від 2015-03-23 без ПДВ,26007557484900,current,159.00,"АТ ""Укрсиббанк""",09807750,юридична особа
ЄС,"Київ, вулиця Єреванська, 1",70,2016-12-30,TR.2593852.41 5291.2667,Банківські послуги,Інші витрати,382258,Івано-Франківська обласна організація,39655372,Івано-Франківська область,"Абонплата за обслуговування в системі КІБ по рахунку № 26003924420903.980 за період з 2016-12-06 по 2016-12-31 зг. договору № 2016/КИБ/047-148 від 2016-12-06 , без ПДВ",26007557484900,current,15.00,"АБ ""Укргазбанк""",23697280,юридична особа
ЄС,"Київ, вулиця Госпітальна, 12Г",70,2016-12-30,112578911,Банківські послуги,Інші витрати,381627,Житомирська обласна організація,39682762,Житомирська область,РКО,26000300890814,current,154.20,"АТ ""Ощадбанк""",00032129,юридична особа
ЄС,"Київ, вулиця Госпітальна, 12Г",70,2016-12-30,112568536,Банківські послуги,Інші витрати,381626,Житомирська обласна організація,39682762,Житомирська область,РКО,26000300890814,current,99.00,"АТ ""Ощадбанк""",00032129,юридична особа
ЄС,"Київ, вулиця Госпітальна, 12Г",70,2016-12-30,153787448,Банківські послуги,Інші витрати,381401,Дніпропетровська обласна організація,39795490,Дніпропетровська область,Коміс.за розрах. обсл.рахунку 26005300484468 з 3011-2016 по 30-12-2016. Без НДС Дог.№ 11-24506 від 2015-06-12р..,26005300484468,current,102.49,"АТ ""Ощадбанк""",00032129,юридична особа
ЄС,"Одеська область, Одеса, вулиця Краснова, 6/1",70,2016-12-30,6832823,Банківські послуги,Інші витрати,381341,Волинська обласна організація,39402400,Волинська область,Оплата РКО зг. дог. № ВА/1/0203/0004725 від 2015-04-16 за період 29.12.16-31.12.16.,26006010004725,current,10.00,"АБ ""Південний""",20953647,юридична особа
ЄС,"Харківська область, Харків",43,2016-12-29,497,Інші витрати,Інші витрати,386063,Харківська обласна організація,39740347,Харківська область,Придбання предметів і матеріалів,2600912063,current,1170.00,Литвинов П С,2855919119,фізична особа
ЄС,"Харківська область, Харків, вулиця Маршала Бажанова, 21",79,2016-12-29,496,"Оренда будинків і приміщень та експлуатаційні витрати (прибирання, страхування орендованих будинків, охорона, сигналізація, ремонт, вивіз сміття, тощо)",Оренда нерухомості,385978,Харківська обласна організація,39740347,Харківська область,Оренда та експлуатаційні послуги,2600912063,current,2660.00,"ПП ""Кей-с""",38001765,юридична особа
ЄС,"Харківська область, Харків, вулиця Сумська, 39",79,2016-12-29,495,"Оренда будинків і приміщень та експлуатаційні витрати (прибирання, страхування орендованих будинків, охорона, сигналізація, ремонт, вивіз сміття, тощо)",Оренда нерухомості,385977,Харківська обласна організація,39740347,Харківська область,Оренда та експлуатаційні послуги,2600912063,current,1765.00,"ПП ""Аоста""",39239018,юридична особа
ЄС,"Харківська область, Золочівський район, Золочів, вулиця Мічуріна",79,2016-12-29,439,"Оренда будинків і приміщень та експлуатаційні витрати (прибирання, страхування орендованих будинків, охорона, сигналізація, ремонт, вивіз сміття, тощо)",Оренда нерухомості,385976,Харківська обласна організація,39740347,Харківська область,Оренда та експлуатаційні послуги,2600912063,current,624.00,"КП ""Золочівкомунсервіс""",34923252,юридична особа
ЄС,"Харківська область, Чугуїв, вулиця Гвардійська, 13",79,2016-12-29,500,"Оренда будинків і приміщень та експлуатаційні витрати (прибирання, страхування орендованих будинків, охорона, сигналізація, ремонт, вивіз сміття, тощо)",Оренда нерухомості,385975,Харківська обласна організація,39740347,Харківська область,Оплата комунальних послуг та енергоносіїв,2600912063,current,25.20,"КП ""Чугуївський районний будинок культури""",32690398,юридична особа
ЄС,"Харківська область, Харків, вулиця Алчевських, 30",70,2016-12-29,RCO2221_131 2,Банківські послуги,Інші витрати,385974,Харківська обласна організація,39740347,Харківська область,Розрахунково-касове обслуговування,2600912063,current,15.73,"ПАТ ""Мегабанк""",09804119,юридична особа
ЄС,"Тернопільська область, Тернопіль",74,2016-12-29,28,"Придбання канцтоварів, паперу, інших предметів і матеріалів, а також госп товари",Придбання канцтоварів та госп. товарів,385375,Тернопільська обласна організація,39614425,Тернопільська область,проплата згідно видаткової накладної СВ-002103 від 2016-12-22року,26009055114295,current,25301.70,"ТОВ ""Світязь""",32481905,юридична особа
ЄС,"Тернопільська область, Тернопіль, вулиця Білецька, 1",62,2016-12-29,25,Сплата ЄСВ,Податкові платежі,385374,Тернопільська обласна організація,39614425,Тернопільська область,ЄСВ 22%нарахованих на договора ЦПХ за грудень 2016 року,26009055114295,current,10604.00,Тернопільська ОДПІ ГУ ДФС в Тернопільській області,39502025,юридична особа
ЄС,"Тернопільська область, Тернопіль, вулиця Листопадова, 3",61,2016-12-29,27,Військовий збір,Податкові платежі,385373,Тернопільська обласна організація,39614425,Тернопільська область,Сплата військового податку за договорами ЦПХ за грудень 2016,26009055114295,current,723.00,УДКСУ у м. Тернопіль,37977726,юридична особа
ЄС,"Тернопільська область, Тернопіль, вулиця Листопадова, 3",63,2016-12-29,26,Податок на доходи,Податкові платежі,385372,Тернопільська обласна організація,39614425,Тернопільська область,Сплата податку на доходи фізичних осіб нарахований за,26009055114295,current,8676.00,УДКСУ у м. Тернопіль,37977726,юридична особа
ЄС,"Київ, вулиця Михайла Грушевського, 1Д",70,2016-12-29,1228Ь4ББ5А,Банківські послуги,Інші витрати,385371,Тернопільська обласна організація,39614425,Тернопільська область,Комісія за поповнення карток для виплат та нецільові платежі,26009055114295,current,15.09,"ПАТ КБ ""Приватбанк""",14360570,юридична особа
ЄС,"Київ, вулиця Михайла Грушевського, 1Д",70,2016-12-29,1228Ь4ББ4А,Банківські послуги,Інші витрати,385370,Тернопільська обласна організація,39614425,Тернопільська область,Комісія за поповнення карток для виплат та нецільові платежі,26009055114295,current,20.13,"ПАТ КБ ""Приватбанк""",14360570,юридична особа
ЄС,"Київ, вулиця Михайла Грушевського, 1Д",70,2016-12-29,1228Ь4БЬОУ,Банківські послуги,Інші витрати,385369,Тернопільська обласна організація,39614425,Тернопільська область,розрах.касове обслуговування,26009055114295,current,3.00,"ПАТ КБ ""Приватбанк""",14360570,юридична особа
ЄС,"Київ, вулиця Михайла Грушевського, 1Д",70,2016-12-29,1228Ь4БИ2У,Банківські послуги,Інші витрати,385368,Тернопільська обласна організація,39614425,Тернопільська область,розрах.касове обслуговування,26009055114295,current,3.00,"ПАТ КБ ""Приватбанк""",14360570,юридична особа
ЄС,"Київ, вулиця Михайла Грушевського, 1Д",70,2016-12-29,1228Ь4БОЕУ,Банківські послуги,Інші витрати,385367,Тернопільська обласна організація,39614425,Тернопільська область,розрах.касове обслуговування,26009055114295,current,3.00,"ПАТ КБ ""Приватбанк""",14360570,юридична особа
ЄС,"Київ, вулиця Михайла Грушевського, 1Д",70,2016-12-29,1228Ь4БМ.ГУ,Банківські послуги,Інші витрати,385366,Тернопільська обласна організація,39614425,Тернопільська область,розрах.касове обслуговування,26009055114295,current,3.00,"ПАТ КБ ""Приватбанк""",14360570,юридична особа
ЄС,"Полтавська область, Полтава, вулиця Котляревського, 22А",79,2016-12-29,213,"Оренда будинків і приміщень та експлуатаційні витрати (прибирання, страхування орендованих будинків, охорона, сигналізація, ремонт, вивіз сміття, тощо)",Оренда нерухомості,384928,Полтавська обласна організація,26090791,Полтавська область,Відшкодування комунальних витрат за грудень 2016 року,26000279199,current,8000.00,"ТОВ ""Сучасний Дім”",32690096,юридична особа
ЄС,"Полтавська область, Чорнухинський район, Чорнухи",79,2016-12-29,207,"Оренда будинків і приміщень та експлуатаційні витрати (прибирання, страхування орендованих будинків, охорона, сигналізація, ремонт, вивіз сміття, тощо)",Оренда нерухомості,384927,Полтавська обласна організація,26090791,Полтавська область,За оренду нежитлового приміщення,26000279199,current,5000.00,Пшикало Василина Іванівна,2989708785,фізична особа
ЄС,"Полтавська область, Полтава, вулиця Шевченка, 1",63,2016-12-29,208,Податок на доходи,Податкові платежі,384926,Полтавська обласна організація,26090791,Полтавська область,"ПДФО із договору оренди нежитлового приміщення Назаренко Лілія Анатоліївна, ЇНН 2786103363",26000279199,current,1588.50,УДКСУ у м. Полтаві,38019510,юридична особа
ЄС,"Полтавська область, Полтава, вулиця Шевченка, 1",63,2016-12-29,211,Податок на доходи,Податкові платежі,384925,Полтавська обласна організація,26090791,Полтавська область,пдфо із договору оренди нежитлового приміщення з фізичною особою Рудяк Володимир Михайлович. ЇНН,26000279199,current,1440.00,УДКСУ у м. Полтаві,38019510,юридична особа
ЄС,"Полтавська область, Полтава, вулиця Маршала Бірюзова, 47Б",74,2016-12-29,214,"Придбання канцтоварів, паперу, інших предметів і матеріалів, а також госп товари",Придбання канцтоварів та госп. товарів,384924,Полтавська обласна організація,26090791,Полтавська область,За канцтовари зг. рах.№ЛУЮ-0000613 від 26 грудня 2016 року,26000279199,current,1040.52,"ТОВ ""Торговельна компанія ""ЮЛІЄ",24389020,юридична особа
ЄС,"Полтавська область, Полтава, вулиця Шевченка, 1",61,2016-12-29,209,Військовий збір,Податкові платежі,384923,Полтавська обласна організація,26090791,Полтавська область,"Військовий збір 1.5% із договору оренди майна з фізичною особою Назаренко Лілія Анатоліївна, ІНН 2786103363",26000279199,current,132.38,УДКСУ у м. Полтаві,38019510,юридична особа
ЄС,"Полтавська область, Полтава, вулиця Шевченка, 1",61,2016-12-29,212,Військовий збір,Податкові платежі,384922,Полтавська обласна організація,26090791,Полтавська область,Військовий збір 1.5% із договору оренди нежитлового приміщення з фізичною особою Рудяк Володимир,26000279199,current,120.00,УДКСУ у м. Полтаві,38019510,юридична особа
ЄС,"Сумська область, Сумський район, Суми",79,2016-12-29,210,"Оренда будинків і приміщень та експлуатаційні витрати (прибирання, страхування орендованих будинків, охорона, сигналізація, ремонт, вивіз сміття, тощо)",Оренда нерухомості,384845,Полтавська обласна організація,26090791,Полтавська область,За оренду нежитлового приміщення,26000279199,current,6440.00,Рудяк Володимир Михайлович,2900811757,фізична особа
ЄС,"Дніпропетровська область, Дніпро́, вулиця Курсантська, 24",70,2016-12-29,403280,Банківські послуги,Інші витрати,384744,Одеська обласна організація,39607381,Одеська область,Погашення комісії за Договором зарплатного проекту. Без ПДВ. (договірне списання),26003010325274,current,53.53,"ПАТ ""Банк Восток""",26237202,юридична особа
ЄС,"Дніпропетровська область, Дніпро́, вулиця Курсантська, 24",70,2016-12-29,389590,Банківські послуги,Інші витрати,384743,Одеська обласна організація,39607381,Одеська область,"За розрахункове обслуговування ч/з систему ""Інтернет-банк"" за період 2016-12-01-2016-12-31 зг. дог. № 26/77182/980 від 2015-04-20 згідно Тарифів банка. Без",26003010325274,current,100.00,"ПАТ ""Банк Восток""",26237202,юридична особа
ЄС,"Київ, вулиця Михайла Грушевського, 1Д",70,2016-12-29,1661500012,Банківські послуги,Інші витрати,384490,Миколаївська обласна організація,26029188,Миколаївська область,Розрахунково-касове обслуговування,26001053219711,current,389.62,"ПАТ КБ ""Приватбанк""",14360570,юридична особа
ЄС,"Київ, вулиця Михайла Грушевського, 1Д",70,2016-12-29,1229L0Q2H Y,Банківські послуги,Інші витрати,384489,Миколаївська обласна організація,26029188,Миколаївська область,Розрахунково-касове обслуговування,26001053219711,current,3.00,"ПАТ КБ ""Приватбанк""",14360570,юридична особа
ЄС,"Київ, вулиця Михайла Грушевського, 1Д",70,2016-12-29,1229L0Q1JY,Банківські послуги,Інші витрати,384488,Миколаївська обласна організація,26029188,Миколаївська область,Розрахунково-касове обслуговування,26001053219711,current,3.00,"ПАТ КБ ""Приватбанк""",14360570,юридична особа
ЄС,"Київ, вулиця Михайла Грушевського, 1Д",70,2016-12-29,1229L0Q1PY,Банківські послуги,Інші витрати,384487,Миколаївська обласна організація,26029188,Миколаївська область,Розрахунково-касове обслуговування,26001053219711,current,3.00,"ПАТ КБ ""Приватбанк""",14360570,юридична особа
ЄС,"Київ, вулиця Михайла Грушевського, 1Д",70,2016-12-29,1229L0Q29Y,Банківські послуги,Інші витрати,384486,Миколаївська обласна організація,26029188,Миколаївська область,Розрахунково-касове обслуговування,26001053219711,current,3.00,"ПАТ КБ ""Приватбанк""",14360570,юридична особа
ЄС,"Миколаївська область, Березанський район, Березанка, вул. Центральна, 33",79,2016-12-29,210,"Оренда будинків і приміщень та експлуатаційні витрати (прибирання, страхування орендованих будинків, охорона, сигналізація, ремонт, вивіз сміття, тощо)",Оренда нерухомості,384485,Миколаївська обласна організація,26029188,Миколаївська область,Оренда та експлуатаційні послуги,26001053219711,current,7500.00,"БО ""Березанський місцевий фонд ""Надія""",38674242,юридична особа
ЄС,"Миколаївська область, Доманівський район, Доманівка, вулиця Центральна, 39",79,2016-12-29,207,"Оренда будинків і приміщень та експлуатаційні витрати (прибирання, страхування орендованих будинків, охорона, сигналізація, ремонт, вивіз сміття, тощо)",Оренда нерухомості,384484,Миколаївська обласна організація,26029188,Миколаївська область,Оплата комунальних послуг та енергоносіїв,26001053219711,current,1868.43,Управляння Агропром Розвитку Доманівської Рда,00734021,юридична особа
ЄС,"Миколаївська область, Єланецький район, Єланець, вулиця Соборна, 115",79,2016-12-29,208,"Оренда будинків і приміщень та експлуатаційні витрати (прибирання, страхування орендованих будинків, охорона, сигналізація, ремонт, вивіз сміття, тощо)",Оренда нерухомості,384483,Миколаївська обласна організація,26029188,Миколаївська область,Оренда та експлуатаційні послуги,26001053219711,current,2000.00,Сектор культури Єланецької РДА,02226435,юридична особа
ЄС,"Миколаївська область, Березнегуватський район, Лепетиха",79,2016-12-29,207,"Оренда будинків і приміщень та експлуатаційні витрати (прибирання, страхування орендованих будинків, охорона, сигналізація, ремонт, вивіз сміття, тощо)",Оренда нерухомості,384482,Миколаївська обласна організація,26029188,Миколаївська область,Оренда та експлуатаційні послуги,26001053219711,current,3209.17,"ФГ ""Артаково""",33182904,юридична особа
ЄС,"Миколаївська область, Очаків",79,2016-12-29,209,"Оренда будинків і приміщень та експлуатаційні витрати (прибирання, страхування орендованих будинків, охорона, сигналізація, ремонт, вивіз сміття, тощо)",Оренда нерухомості,384481,Миколаївська обласна організація,26029188,Миколаївська область,Оренда та експлуатаційні послуги,26001053219711,current,4000.00,"ТОВ ""Евріка""",03055792,юридична особа
ЄС,"Миколаївська область, Вознесенськ, вулиця Соборності, 33",79,2016-12-29,206,"Оренда будинків і приміщень та експлуатаційні витрати (прибирання, страхування орендованих будинків, охорона, сигналізація, ремонт, вивіз сміття, тощо)",Оренда нерухомості,384480,Миколаївська обласна організація,26029188,Миколаївська область,Оренда та експлуатаційні послуги,26001053219711,current,10633.31,"ТОВ ""Вознесенська Торгова Компанія""",39410757,юридична особа
ЄС,"Київ, вулиця Антоновича, 127",70,2016-12-29,,Банківські послуги,Інші витрати,384361,Миколаївська обласна організація,26029188,Миколаївська область,Розрахунково-касове обслуговування,26001001018134,current,2.50,"АТ ""Укрексімбанк""",00032112,юридична особа
ЄС,"Миколаївська область, Арбузинський район, Арбузинка, вулиця Шевченка, 187",79,2016-12-29,1403,"Оренда будинків і приміщень та експлуатаційні витрати (прибирання, страхування орендованих будинків, охорона, сигналізація, ремонт, вивіз сміття, тощо)",Оренда нерухомості,384360,Миколаївська обласна організація,26029188,Миколаївська область,Оренда та експлуатаційні послуги,26001001018134,current,2068.00,Тарасенко Оксана Петрівна,2673900207,фізична особа
ЄС,"Київ, вулиця Володимира Сосюри, 5",79,2016-12-29,23,"Оренда будинків і приміщень та експлуатаційні витрати (прибирання, страхування орендованих будинків, охорона, сигналізація, ремонт, вивіз сміття, тощо)",Оренда нерухомості,382937,Київська обласна організація,39495516,Київська область,"водопостачання, згідно рахунка на оплату № М8/16-0035/2/12від30.11.16 року, дог № М8/16-0035/201від 01.07.16",26004300956820,current,3782.15,"ТОВ ""Юрент""",38497549,юридична особа
ЄС,"Київ, вулиця Володимира Сосюри, 5",79,2016-12-29,23,"Оренда будинків і приміщень та експлуатаційні витрати (прибирання, страхування орендованих будинків, охорона, сигналізація, ремонт, вивіз сміття, тощо)",Оренда нерухомості,382936,Київська обласна організація,39495516,Київська область,"водопостачання, згідно рахунка на оплату № 161 від 31.12.16 року, дог № М8/16-0035/201 від 01.07.16 в т.ч. ПДВ 20%",26004300956820,current,3912.14,"ТОВ ""Юрент""",38497549,юридична особа
ЄС,"Івано-Франківська область, Івано-Франківськ, вулиця Берегова, 6",72,2016-12-29,124,"Придбання, ремонт офісної техніки та програмного забезпечення (Бухгалтерські програми, Ліга.закон, домени)",Придбання офісної техніки та програмного забезпечення,382257,Івано-Франківська обласна організація,39655372,Івано-Франківська область,"Оплата послуг затравки катриджів, згідно з актом надання послуг №НВ-0000282 від 23.11.16 року з ПДВ",26007557484900,current,90.00,"ПП ""НВ-КОПІ”",25598116,юридична особа
ЄС,"Івано-Франківська область, Крихівці, вулиця Двірська, 30, 6",72,2016-12-29,123,"Придбання, ремонт офісної техніки та програмного забезпечення (Бухгалтерські програми, Ліга.закон, домени)",Придбання офісної техніки та програмного забезпечення,382256,Івано-Франківська обласна організація,39655372,Івано-Франківська область,Оплата інформаційно-консультаційних послуг з питань інформатизації згідно з актом від 2016-11-01 року без ПДВ.,26007557484900,current,1000.00,Равлик Роман Олексійович,3028021012,фізична особа
ЄС,"Київ, вулиця Андріївська, 2/12",70,2016-12-29,1579314168,Банківські послуги,Інші витрати,382255,Івано-Франківська обласна організація,39655372,Івано-Франківська область,Списання комісії по рахунку 26007557484900 UAH за зовнішній платіж СЕП ССП зг.Дог. №03557484901 від 2015-03-23 без ПДВ,26007557484900,current,1.50,"АТ ""Укрсиббанк""",09807750,юридична особа
ЄС,"Київ, вулиця Антоновича, 127",70,2016-12-29,"1046538,1",Банківські послуги,Інші витрати,382041,Запорізька обласна організація,39434317,Запорізька область,ком.винагорода за розрах.обсуг пот.рахунку,2600501759900,current,22.50,"АТ ""Укрексімбанк""",00032112,юридична особа
ЄС,"Запорізька область, Запоріжжя",84,2016-12-29,2,"Заробітна плата, премії","Заробітна плата, лікарняні, вагітності, відрядження, компенсації",381924,Запорізька обласна організація,39434317,Запорізька область,заробітна плаза,2600501759900,current,953.99,Дюміна Наталя Валеріївна,,фізична особа
ЄС,"Житомирська область, Радомишльський район, Радомишль, вулиця Велика Житомирська, 1",79,2016-12-29,202,"Оренда будинків і приміщень та експлуатаційні витрати (прибирання, страхування орендованих будинків, охорона, сигналізація, ремонт, вивіз сміття, тощо)",Оренда нерухомості,381625,Житомирська обласна організація,39682762,Житомирська область,Оренда приміщення,26000300890814,current,6000.00,"ТОВ ТЦ ""Радимишиль""",40591794,юридична особа
ЄС,"Житомирська область, Малин, вулиця Герцена, 7",79,2016-12-29,201,"Оренда будинків і приміщень та експлуатаційні витрати (прибирання, страхування орендованих будинків, охорона, сигналізація, ремонт, вивіз сміття, тощо)",Оренда нерухомості,381624,Житомирська обласна організація,39682762,Житомирська область,Оренда приміщення,26000300890814,current,2000.00,Лисенко Володимир Володимирович,,фізична особа
ЄС,"Житомирська область, Житомир, вулиця Святослава Ріхтера, 12/5",60,2016-12-29,199,Інші податки,Податкові платежі,381623,Житомирська обласна організація,39682762,Житомирська область,Податки та збори,26000300890814,current,82.50,УДКСУ у м. Житомирі,38035726,юридична особа
ЄС,"Житомирська область, Житомир, вулиця Святослава Ріхтера, 12/5",60,2016-12-29,198,Інші податки,Податкові платежі,381622,Житомирська обласна організація,39682762,Житомирська область,Податки та збори,26000300890814,current,990.00,УДКСУ у м. Житомирі,38035726,юридична особа
ЄС,"Житомирська область, Баранівський район, Баранівка",79,2016-12-29,197,"Оренда будинків і приміщень та експлуатаційні витрати (прибирання, страхування орендованих будинків, охорона, сигналізація, ремонт, вивіз сміття, тощо)",Оренда нерухомості,381621,Житомирська обласна організація,39682762,Житомирська область,Оренда приміщення,26000300890814,current,648.85,"КП ""Полісся"" Баранівської районної ради",02407496,юридична особа
ЄС,"Житомирська область, Попільнянський район, Попільня, вулиця Садова",79,2016-12-29,196,"Оренда будинків і приміщень та експлуатаційні витрати (прибирання, страхування орендованих будинків, охорона, сигналізація, ремонт, вивіз сміття, тощо)",Оренда нерухомості,381620,Житомирська обласна організація,39682762,Житомирська область,Оренда приміщення,26000300890814,current,7000.00,"ТОВ ""СВП МАЙСТЕР""",35100184,юридична особа
ЄС,"Житомирська область, Коростишівський район, Коростишів, вулиця Святотроїцька, 6",79,2016-12-29,195,"Оренда будинків і приміщень та експлуатаційні витрати (прибирання, страхування орендованих будинків, охорона, сигналізація, ремонт, вивіз сміття, тощо)",Оренда нерухомості,381619,Житомирська обласна організація,39682762,Житомирська область,Оренда приміщення,26000300890814,current,3725.45,"КП ""Коростишівський комунальник""",34403525,юридична особа
ЄС,"Житомирська область, Чуднівський район, Чуднів",79,2016-12-29,194,"Оренда будинків і приміщень та експлуатаційні витрати (прибирання, страхування орендованих будинків, охорона, сигналізація, ремонт, вивіз сміття, тощо)",Оренда нерухомості,381618,Житомирська обласна організація,39682762,Житомирська область,Оренда приміщення,26000300890814,current,1512.21,Чуднівське районне комунальне підприємство по обслуговуванню приміщень,32342141,юридична особа
ЄС,"Житомирська область, Олевський район, Олевськ, вулиця Володимирська, 2",59,2016-12-29,4,Грошова застава,Грошова застава,381617,Житомирська обласна організація,39682762,Житомирська область,Грошова застава місцевої організації політичної партії,26000300890814,current,1554.00,Олевська міська виборча комісія,34008945,юридична особа
ЄС,"Житомирська область, Коростишівський район, Коростишів, вулиця Володимирська, 1",59,2016-12-29,5,Грошова застава,Грошова застава,381616,Житомирська обласна організація,39682762,Житомирська область,Грошова застава місцевої організації політичної партії,26000300890814,current,1307.00,Коростишівська МВК Коростишівського району Житомирської області,34022053,юридична особа
ЄС,"Житомирська область, Лугинський район, Лугини",79,2016-12-29,200,"Оренда будинків і приміщень та експлуатаційні витрати (прибирання, страхування орендованих будинків, охорона, сигналізація, ремонт, вивіз сміття, тощо)",Оренда нерухомості,381557,Житомирська обласна організація,39682762,Житомирська область,Оренда приміщення,26000300890814,current,4427.50,Теплякова Наталія Василівна,,фізична особа
ЄС,"Київ, вулиця Госпітальна, 12Г",70,2016-12-29,111,Банківські послуги,Інші витрати,381487,Донецька обласна організація,39645186,Донецька область,"Переказ коштів, утримання комісії за перерахування заробітньої плати",26006300913474,current,309.66,"АТ ""Ощадбанк""",00032129,юридична особа
ЄС,"Донецька область, Маріуполь, проспект Миру, 68",63,2016-12-29,107,Податок на доходи,Податкові платежі,381486,Донецька обласна організація,39645186,Донецька область,"ПДФО з суми заробітньої плати за другу половину місяця (12.2016р)-18% -8654,40грн)",26006300913474,current,8654.40,УДКСУ у м. Маріуполі Донецької області,37989721,юридична особа
ЄС,"Донецька область, Маріуполь, проспект Миру, 68",61,2016-12-29,108,Військовий збір,Податкові платежі,381485,Донецька обласна організація,39645186,Донецька область,"військовий збір з суми заробітньої плати за другу половину місяця(12.2016р)-1,5% (721,20грн)",26006300913474,current,721.20,УДКСУ у м. Маріуполі Донецької області,37989721,юридична особа
ЄС,"Донецька область, Маріуполь, проспект Металургів, 193",62,2016-12-29,109,Сплата ЄСВ,Податкові платежі,381484,Донецька обласна організація,39645186,Донецька область,"ЕСВ на ФОП за другу половину місяця(12.2016р) - 22% -10577,60.",26006300913474,current,10577.60,Маріупольська ОДПІ,39883670,юридична особа
ЄС,"Донецька область, Покровський район, Новотроїцьке",84,2016-12-29,8_2,"Заробітна плата, премії","Заробітна плата, лікарняні, вагітності, відрядження, компенсації",381431,Донецька обласна організація,39645186,Донецька область,Зарахування ЗП за 2-гу половину грудня 2016.,26006300913474,current,2012.50,Демешко Даниїл Олександрович,,фізична особа
ЄС,"Донецька область, Маріуполь",84,2016-12-29,11_2,"Заробітна плата, премії","Заробітна плата, лікарняні, вагітності, відрядження, компенсації",381430,Донецька обласна організація,39645186,Донецька область,Зарахування ЗП за 2-гу половину грудня 2016.,26006300913474,current,2012.50,Макарова Христина Ольгертівна,,фізична особа
ЄС,"Донецька область, Бахмут",84,2016-12-29,10_2,"Заробітна плата, премії","Заробітна плата, лікарняні, вагітності, відрядження, компенсації",381429,Донецька обласна організація,39645186,Донецька область,Зарахування ЗП за 2-гу половину грудня 2016.,26006300913474,current,2012.50,Черепова Вікторія Анатоліївна,,фізична особа
ЄС,"Донецька область, Краматорськ",84,2016-12-29,6_2,"Заробітна плата, премії","Заробітна плата, лікарняні, вагітності, відрядження, компенсації",381428,Донецька обласна організація,39645186,Донецька область,Зарахування ЗП за 2-гу половину грудня 2016.,26006300913474,current,2012.50,Востоков Олексій Вікторович,,фізична особа
ЄС,"Донецька область, Краматорськ, вулиця Марата, 11",84,2016-12-29,2_2,"Заробітна плата, премії","Заробітна плата, лікарняні, вагітності, відрядження, компенсації",381427,Донецька обласна організація,39645186,Донецька область,Зарахування ЗП за 2-гу половину грудня 2016.,26006300913474,current,10626.00,Лучко Дарʼя Юріївна,,фізична особа
ЄС,"Донецька область, Краматорськ",84,2016-12-29,4_2,"Заробітна плата, премії","Заробітна плата, лікарняні, вагітності, відрядження, компенсації",381426,Донецька обласна організація,39645186,Донецька область,Зарахування ЗП за 2-гу половину грудня 2016.,26006300913474,current,7550.90,Жалкіна Любов Олексіївна,,фізична особа
ЄС,"Донецька область, Покровськ",84,2016-12-29,7_2,"Заробітна плата, премії","Заробітна плата, лікарняні, вагітності, відрядження, компенсації",381425,Донецька обласна організація,39645186,Донецька область,Зарахування ЗП за 2-гу половину грудня 2016.,26006300913474,current,2012.50,Соболевська Христина Олексіївна,,фізична особа
ЄС,"Донецька область, Донецьк",84,2016-12-29,3_2,"Заробітна плата, премії","Заробітна плата, лікарняні, вагітності, відрядження, компенсації",381424,Донецька обласна організація,39645186,Донецька область,Зарахування ЗП за 2-гу половину грудня 2016.,26006300913474,current,4226.25,Маліков Едуард Артурович,,фізична особа
ЄС,"Донецька область, Краматорськ, вулиця Академічна, 92",84,2016-12-29,5_2,"Заробітна плата, премії","Заробітна плата, лікарняні, вагітності, відрядження, компенсації",381423,Донецька обласна організація,39645186,Донецька область,Зарахування ЗП за 2-гу половину грудня 2016.,26006300913474,current,4226.25,Зирянова Марія Валеріївна,,фізична особа
ЄС,"Донецька область, Часів Яр, вулиця Горького, 11, 18",84,2016-12-29,9_2,"Заробітна плата, премії","Заробітна плата, лікарняні, вагітності, відрядження, компенсації",381422,Донецька обласна організація,39645186,Донецька область,Зарахування ЗП за 2-гу половину грудня 2016.,26006300913474,current,2012.50,Акіменко Едуард Васильович,,фізична особа
ЄС,"Волинська область, Луцьк",49,2016-12-29,31,Публікування матеріалів у друкованих ЗМІ,Реклама в друкованих ЗМІ,381345,Волинська обласна організація,39402400,Волинська область,"Інформаційні послуги в газеті ""Твій вибір"", зг. рах. №346 від 2016-12-16 р.ДДВ 20% 180.00 три.",26006010004725,current,1080.00,"ПП РІА ""Твій вибір""",33837545,юридична особа
ЄС,"Одеська область, Одеса, вулиця Краснова, 6/1",70,2016-12-29,5763068,Банківські послуги,Інші витрати,381340,Волинська обласна організація,39402400,Волинська область,Документ комісії за зарахування коштів по ЗП згідно відомості 5 від 2016-12-29,26006010004725,current,1.35,"АБ ""Південний""",20953647,юридична особа
ЄС,"Волинська область, Луцьк",62,2016-12-29,35,Сплата ЄСВ,Податкові платежі,381339,Волинська обласна організація,39402400,Волинська область,"*;101;39402400; ЄСВ 22% із премії найм. працівників за листопад 2016р., перерах. повністю;;;",26006010004725,current,55.00,Луцька ОДПІ ГУ ДФС у Волинській обл.,39497665,юридична особа
ЄС,"Волинська область, Луцьк, вулиця Стрілецька, 4А",63,2016-12-29,34,Податок на доходи,Податкові платежі,381338,Волинська обласна організація,39402400,Волинська область,"*;101;39402400;Податокз доходів 18% із заробітної плати найм. працівників за грудень 2016р., перерах. повністю;;;",26006010004725,current,45.00,УДКСУ у м. Луцьку,38009628,юридична особа
ЄС,"Волинська область, Луцьк, вулиця Стрілецька, 4А",61,2016-12-29,33,Військовий збір,Податкові платежі,381337,Волинська обласна організація,39402400,Волинська область,"ʼ*;101;39402400; Військовий збір 1,5% із зарплати найм. працівників за грудень 2016р.,перерах. повністю;;;",26006010004725,current,10.00,УДКСУ у м. Луцьку,38009628,юридична особа
ЄС,Волинська область,79,2016-12-29,32,"Оренда будинків і приміщень та експлуатаційні витрати (прибирання, страхування орендованих будинків, охорона, сигналізація, ремонт, вивіз сміття, тощо)",Оренда нерухомості,381336,Волинська обласна організація,39402400,Волинська область,"За оренду приміщення за жовтень, листопад 2016 року зг. рах. №223 від 2016-11-22 р., №205 від 2016-10-26 р. Без ПДВ",26006010004725,current,2000.00,Горохівська Райспоживспілка,01744240,юридична особа
ЄС,Волинська область,84,2016-12-29,36,"Заробітна плата, премії","Заробітна плата, лікарняні, вагітності, відрядження, компенсації",381256,Волинська обласна організація,39402400,Волинська область,Премія для найманих працівників за листопад 2016 року. Податки сплачено 19.12.16р.,26006010004725,current,168.80,Мельничук Ярослав Олександрович,,фізична особа
ЄС,"Київ, вулиця Михайла Грушевського, 1Д",70,2016-12-28,1228L43SLA,Банківські послуги,Інші витрати,386672,Рівненська обласна організація,39757256,Рівненська область,Комісія за поповнення карток для виплат та нецільові платежі,26009054713048,current,5.03,"ПАТ КБ ""Приватбанк""",14360570,юридична особа
ЄС,"Київ, вулиця Михайла Грушевського, 1Д",70,2016-12-28,1228L43RPA,Банківські послуги,Інші витрати,386671,Рівненська обласна організація,39757256,Рівненська область,Комісія за поповнення карток для виплат та нецільові платежі,26009054713048,current,5.03,"ПАТ КБ ""Приватбанк""",14360570,юридична особа
ЄС,"Чернігівська область, Чернігів, вулиця Гетьмана Полуботка, 18",74,2016-12-28,153,"Придбання канцтоварів, паперу, інших предметів і матеріалів, а також госп товари",Придбання канцтоварів та госп. товарів,386668,Чернігівська обласна організація,39742680,Чернігівська область,"Сплата за канцелярські товари згідно рахунку №ВВЧСР4479/2020 3 від 2016-12-26р.у т.ч.ПДВ 16521,66",26006011627020,current,99129.94,"ТОВ ""Виробничо-комерційна фірма ""ВВ""",14236166,юридична особа
ЄС,"Чернівецька область, Кіцманський район, Нижні Станівці",74,2016-12-28,55,"Придбання канцтоварів, паперу, інших предметів і матеріалів, а також госп товари",Придбання канцтоварів та госп. товарів,386574,Чернівецька обласна організація,39692702,Чернівецька область,Оплата за канцтовари по рах.SNSCM №0066 від 2016-12-19,26001266565,current,1861.05,Сопетик Микола Васильович,3406415075,фізична особа
ЄС,"Чернівецька область, Чернівці, вулиця Кобилянської, 11",63,2016-12-28,52,Податок на доходи,Податкові платежі,386571,Чернівецька обласна організація,39692702,Чернівецька область,ПДФО за оренду Коблюк по вул. Горького 17 за грудень 2016,26001266565,current,1080.00,УДКСУ у м. Чернівці,37978173,юридична особа
ЄС,"Чернівецька область, Чернівці, вулиця Кобилянської, 11",61,2016-12-28,53,Військовий збір,Податкові платежі,386570,Чернівецька обласна організація,39692702,Чернівецька область,Військ. Збір за оренду за Коблюк за грудень 2016,26001266565,current,90.00,УДКСУ у м. Чернівці,37978173,юридична особа
ЄС,"Чернівецька область, Глибоцький район, Чагор",79,2016-12-28,54,"Оренда будинків і приміщень та експлуатаційні витрати (прибирання, страхування орендованих будинків, охорона, сигналізація, ремонт, вивіз сміття, тощо)",Оренда нерухомості,386509,Чернівецька обласна організація,39692702,Чернівецька область,"за оренду приміщення за адресою м.Чернівці, вул. Горького, 17 за грудень 2016 р.",26001266565,current,4830.00,Коблюк Крістіна Костянтинівна,,фізична особа
ЄС,"Черкаська область, Монастирищенський район, Монастирище, вулиця Соборна, 121",79,2016-12-28,84923726,"Оренда будинків і приміщень та експлуатаційні витрати (прибирання, страхування орендованих будинків, охорона, сигналізація, ремонт, вивіз сміття, тощо)",Оренда нерухомості,386492,Черкаська обласна організація,39602603,Черкаська область,Оренда офісу,26002001135423,current,2285.28,Монастири щенська районна рада,25210767,юридична особа
ЄС,"Черкаська область, Маньківський район, Маньківка, вулиця Шевченка, 20",79,2016-12-28,84955458,"Оренда будинків і приміщень та експлуатаційні витрати (прибирання, страхування орендованих будинків, охорона, сигналізація, ремонт, вивіз сміття, тощо)",Оренда нерухомості,386491,Черкаська обласна організація,39602603,Черкаська область,Оренда офісу,26002001135423,current,1017.62,"ТОВ ""Маньківські новини""",02475995,юридична особа
ЄС,"Хмельницька область, Хмельницький, вулиця Героїв Майдану, 12",62,2016-12-28,614,Сплата ЄСВ,Податкові платежі,386426,Хмельницька обласна організація,39545645,Хмельницька область,Сплата ЄСВ,26001011576381,current,23595.00,ДПІ у м. Хмельницькому,39564228,юридична особа
ЄС,"Хмельницька область, Хмельницький, вулиця Проскурівська, 56",63,2016-12-28,615,Податок на доходи,Податкові платежі,386425,Хмельницька обласна організація,39545645,Хмельницька область,Сплата ПДФО з винагороди за ЦПД,26001011576381,current,19305.00,УДКСУ у м. Хмельницькому,38045529,юридична особа
ЄС,"Хмельницька область, Хмельницький, вулиця Проскурівська, 56",61,2016-12-28,616,Військовий збір,Податкові платежі,386424,Хмельницька обласна організація,39545645,Хмельницька область,Сплата військового збору з винагороди за ЦПД,26001011576381,current,1644.75,УДКСУ у м. Хмельницькому,38045529,юридична особа
ЄС,"Хмельницька, Чемеровецький район, Чемерівці",79,2016-12-28,613,"Оренда будинків і приміщень та експлуатаційні витрати (прибирання, страхування орендованих будинків, охорона, сигналізація, ремонт, вивіз сміття, тощо)",Оренда нерухомості,386423,Хмельницька обласна організація,39545645,Хмельницька область,За оренду приміщення,26001011576381,current,770.40,Чемеровецька селищна рада,04403930,юридична особа
ЄС,"Хмельницька область, Хмельницький, вулиця Соборна, 34",70,2016-12-28,141614,Банківські послуги,Інші витрати,386422,Хмельницька обласна організація,39545645,Хмельницька область,Погашення комісії,26001011576381,current,37.50,"ПАТ ""Укрсоцбанк""",00039019,юридична особа
ЄС,Хмельницька область,82,2016-12-28,583,"Гонорари, в тому числі за надані консультаційні послуги","Гонорари, в тому числі за надані консультаційні послуги",386299,Хмельницька обласна організація,39545645,Хмельницька область,Винагорода за ЦПД,26001011576381,current,5232.50,Котовська Інна Анатоліївна,,фізична особа
ЄС,"Хмельницька область, Хмельницький",82,2016-12-28,612,"Гонорари, в тому числі за надані консультаційні послуги","Гонорари, в тому числі за надані консультаційні послуги",386298,Хмельницька обласна організація,39545645,Хмельницька область,Винагорода за ЦПД,26001011576381,current,13685.00,Косовська Олена Черказівна,,фізична особа
ЄС,"Хмельницька область, Хмельницький",82,2016-12-28,600,"Гонорари, в тому числі за надані консультаційні послуги","Гонорари, в тому числі за надані консультаційні послуги",386297,Хмельницька обласна організація,39545645,Хмельницька область,Винагорода за ЦПД,26001011576381,current,5232.50,Курбацький Віталій Володимирович,,фізична особа
ЄС,Хмельницька область,82,2016-12-28,599,"Гонорари, в тому числі за надані консультаційні послуги","Гонорари, в тому числі за надані консультаційні послуги",386296,Хмельницька обласна організація,39545645,Хмельницька область,Винагорода за ЦПД,26001011576381,current,5232.50,Близнюк Ірина Володимирівна,,фізична особа
ЄС,Хмельницька область,82,2016-12-28,607,"Гонорари, в тому числі за надані консультаційні послуги","Гонорари, в тому числі за надані консультаційні послуги",386295,Хмельницька обласна організація,39545645,Хмельницька область,Винагорода за ЦПД,26001011576381,current,5232.50,Стаднік Віталій Олександрович,,фізична особа
ЄС,Хмельницька область,82,2016-12-28,596,"Гонорари, в тому числі за надані консультаційні послуги","Гонорари, в тому числі за надані консультаційні послуги",386294,Хмельницька обласна організація,39545645,Хмельницька область,Винагорода за ЦПД,26001011576381,current,5232.50,Очкур Орест Анатолійович,,фізична особа
ЄС,Хмельницька область,82,2016-12-28,597,"Гонорари, в тому числі за надані консультаційні послуги","Гонорари, в тому числі за надані консультаційні послуги",386293,Хмельницька обласна організація,39545645,Хмельницька область,Винагорода за ЦПД,26001011576381,current,5232.50,Голубкова Інна Петрівна,,фізична особа
ЄС,Хмельницька область,82,2016-12-28,595,"Гонорари, в тому числі за надані консультаційні послуги","Гонорари, в тому числі за надані консультаційні послуги",386292,Хмельницька обласна організація,39545645,Хмельницька область,Винагорода за ЦПД,26001011576381,current,5232.50,Кобильник Лілія Миколаївна,,фізична особа
ЄС,Хмельницька область,82,2016-12-28,587,"Гонорари, в тому числі за надані консультаційні послуги","Гонорари, в тому числі за надані консультаційні послуги",386291,Хмельницька обласна організація,39545645,Хмельницька область,Винагорода за ЦПД,26001011576381,current,5232.50,Адамчук Галина Олександрівна,,фізична особа
ЄС,"Хмельницька область, Нетішин, вулиця Шевченка, 6, 35",82,2016-12-28,594,"Гонорари, в тому числі за надані консультаційні послуги","Гонорари, в тому числі за надані консультаційні послуги",386290,Хмельницька обласна організація,39545645,Хмельницька область,Винагорода за ЦПД,26001011576381,current,5232.50,Рощук Андрій Олегович,,фізична особа
ЄС,Хмельницька область,82,2016-12-28,605,"Гонорари, в тому числі за надані консультаційні послуги","Гонорари, в тому числі за надані консультаційні послуги",386289,Хмельницька обласна організація,39545645,Хмельницька область,Винагорода за ЦПД,26001011576381,current,5232.50,Чорнописький Сергій Олександрович,,фізична особа
ЄС,Хмельницька область,82,2016-12-28,588,"Гонорари, в тому числі за надані консультаційні послуги","Гонорари, в тому числі за надані консультаційні послуги",386288,Хмельницька обласна організація,39545645,Хмельницька область,Винагорода за ЦПД,26001011576381,current,5232.50,Чумак Олена Петрівна,,фізична особа
ЄС,Хмельницька область,82,2016-12-28,586,"Гонорари, в тому числі за надані консультаційні послуги","Гонорари, в тому числі за надані консультаційні послуги",386287,Хмельницька обласна організація,39545645,Хмельницька область,Винагорода за ЦПД,26001011576381,current,5232.50,Криницька Неля Анатоліївна,,фізична особа
ЄС,Хмельницька область,82,2016-12-28,593,"Гонорари, в тому числі за надані консультаційні послуги","Гонорари, в тому числі за надані консультаційні послуги",386286,Хмельницька обласна організація,39545645,Хмельницька область,Винагорода за ЦПД,26001011576381,current,5232.50,Підставська Оксана Анатоліївна,,фізична особа
ЄС,Хмельницька область,82,2016-12-28,602,"Гонорари, в тому числі за надані консультаційні послуги","Гонорари, в тому числі за надані консультаційні послуги",386285,Хмельницька обласна організація,39545645,Хмельницька область,Винагорода за ЦПД,26001011576381,current,2616.25,Вершняк Тетяна Миколаївна,,фізична особа
ЄС,Хмельницька область,82,2016-12-28,604,"Гонорари, в тому числі за надані консультаційні послуги","Гонорари, в тому числі за надані консультаційні послуги",386284,Хмельницька обласна організація,39545645,Хмельницька область,Винагорода за ЦПД,26001011576381,current,2616.25,Питлик Володимир Миколайович,,фізична особа
ЄС,Хмельницька область,82,2016-12-28,598,"Гонорари, в тому числі за надані консультаційні послуги","Гонорари, в тому числі за надані консультаційні послуги",386283,Хмельницька обласна організація,39545645,Хмельницька область,Винагорода за ЦПД,26001011576381,current,2616.25,Ковальська Валентина Іванівна,,фізична особа
ЄС,Хмельницька область,82,2016-12-28,603,"Гонорари, в тому числі за надані консультаційні послуги","Гонорари, в тому числі за надані консультаційні послуги",386282,Хмельницька обласна організація,39545645,Хмельницька область,Винагорода за ЦПД,26001011576381,current,2616.25,Шияновський Микола Володимирович,,фізична особа
ЄС,Хмельницька область,82,2016-12-28,608,"Гонорари, в тому числі за надані консультаційні послуги","Гонорари, в тому числі за надані консультаційні послуги",386281,Хмельницька обласна організація,39545645,Хмельницька область,Винагорода за ЦПД,26001011576381,current,2616.25,Бродецький Микола Демʼянович,,фізична особа
ЄС,Хмельницька область,82,2016-12-28,606,"Гонорари, в тому числі за надані консультаційні послуги","Гонорари, в тому числі за надані консультаційні послуги",386280,Хмельницька обласна організація,39545645,Хмельницька область,Винагорода за ЦПД,26001011576381,current,2616.25,Шлякова Марія Едуардівна,,фізична особа
ЄС,Хмельницька область,82,2016-12-28,601,"Гонорари, в тому числі за надані консультаційні послуги","Гонорари, в тому числі за надані консультаційні послуги",386279,Хмельницька обласна організація,39545645,Хмельницька область,Винагорода за ЦПД,26001011576381,current,2616.25,Кенс Ольга Миколаївна,,фізична особа
ЄС,"Харківська область, Харків, вулиця Космічна, 26",58,2016-12-28,467,"Виготовлення друкованих матеріалів (плакатів, листівок, буклетів та інших агітаційних матеріалів)",Друкована агітація,386069,Харківська обласна організація,39740347,Харківська область,виготовлення друкованої продукції,2600912063,current,62040.00,"ТОВ ""Золоті Сторінки""",30430555,юридична особа
ЄС,"Харківська область, Харків, вулиця Пушкінська, 57",57,2016-12-28,470,Виготовлення брендованої продукції,"Виготовлення брендованої продукції (футболки, кепки, парасольки)",386068,Харківська обласна організація,39740347,Харківська область,виготовлення брендованої продукції,2600912063,current,51000.00,"ТОВ ""ВОСТОК СПХ""",40679171,юридична особа
ЄС,"Харківська область, Харків, вулиця Космічна, 26",58,2016-12-28,468,"Виготовлення друкованих матеріалів (плакатів, листівок, буклетів та інших агітаційних матеріалів)",Друкована агітація,386067,Харківська обласна організація,39740347,Харківська область,виготовлення друкованої продукції,2600912063,current,20520.00,"ТОВ ""Золоті Сторінки""",30430555,юридична особа
ЄС,"Харківська область, Харків, вулиця Космічна, 26",58,2016-12-28,469,"Виготовлення друкованих матеріалів (плакатів, листівок, буклетів та інших агітаційних матеріалів)",Друкована агітація,386066,Харківська обласна організація,39740347,Харківська область,виготовлення друкованої продукції,2600912063,current,2400.00,"ТОВ ""Золоті Сторінки""",30430555,юридична особа
ЄС,"Харківська область, Харків",43,2016-12-28,494,Інші витрати,Інші витрати,386062,Харківська обласна організація,39740347,Харківська область,Придбання предметів і матеріалів,2600912063,current,6000.00,Литвинов П С,2855919119,фізична особа
ЄС,"Харківська область, Харків",43,2016-12-28,488,Інші витрати,Інші витрати,386061,Харківська обласна організація,39740347,Харківська область,Придбання предметів і матеріалів,2600912063,current,5364.00,Литвинов П С,2855919119,фізична особа
ЄС,"Харківська область, Харків",43,2016-12-28,490,Інші витрати,Інші витрати,386060,Харківська обласна організація,39740347,Харківська область,Придбання предметів і матеріалів,2600912063,current,5109.00,Литвинов П С,2855919119,фізична особа
ЄС,"Харківська область, Харків",43,2016-12-28,493,Інші витрати,Інші витрати,386059,Харківська обласна організація,39740347,Харківська область,Придбання предметів і матеріалів,2600912063,current,5050.00,Литвинов П С,2855919119,фізична особа
ЄС,"Харківська область, Дворічанський район, Дворічна, Радянська вулиця, 40",79,2016-12-28,475,"Оренда будинків і приміщень та експлуатаційні витрати (прибирання, страхування орендованих будинків, охорона, сигналізація, ремонт, вивіз сміття, тощо)",Оренда нерухомості,386058,Харківська обласна організація,39740347,Харківська область,Оренда та експлуатаційні послуги,2600912063,current,3600.00,Гревець Євген Анатолійович,2722607455,фізична особа
ЄС,"Харківська область, Чугуїв, вулиця Харківська",79,2016-12-28,481,"Оренда будинків і приміщень та експлуатаційні витрати (прибирання, страхування орендованих будинків, охорона, сигналізація, ремонт, вивіз сміття, тощо)",Оренда нерухомості,386057,Харківська обласна організація,39740347,Харківська область,Оренда та експлуатаційні послуги,2600912063,current,3500.00,"ТОВ ""Плюсинвест- торг""",33757931,юридична особа
ЄС,"Харківська область, Дергачівський район, Солоницівка, улица Пушкина, 18, 34",79,2016-12-28,473,"Оренда будинків і приміщень та експлуатаційні витрати (прибирання, страхування орендованих будинків, охорона, сигналізація, ремонт, вивіз сміття, тощо)",Оренда нерухомості,386056,Харківська обласна організація,39740347,Харківська область,Оренда та експлуатаційні послуги,2600912063,current,3390.00,"ТОВ ""Сабсан-інвест""",35207019,юридична особа
ЄС,"Харківська область, Харків",43,2016-12-28,495,Інші витрати,Інші витрати,386055,Харківська обласна організація,39740347,Харківська область,Придбання предметів і матеріалів,2600912063,current,3270.00,Литвинов П С,2855919119,фізична особа
ЄС,"Харківська область, Харків",43,2016-12-28,492,Інші витрати,Інші витрати,386054,Харківська обласна організація,39740347,Харківська область,Придбання предметів і матеріалів,2600912063,current,3270.00,Литвинов П С,2855919119,фізична особа
ЄС,"Харківська область, Балаклійський район, Балаклія, улица Алиева",79,2016-12-28,479,"Оренда будинків і приміщень та експлуатаційні витрати (прибирання, страхування орендованих будинків, охорона, сигналізація, ремонт, вивіз сміття, тощо)",Оренда нерухомості,386053,Харківська обласна організація,39740347,Харківська область,Оплата комунальних послуг та енергоносіїв,2600912063,current,2875.26,"КП ""Балаклійські теплові мережі""",34328904,юридична особа
ЄС,"Харківська область, Харків",43,2016-12-28,489,Інші витрати,Інші витрати,386052,Харківська обласна організація,39740347,Харківська область,Придбання предметів і матеріалів,2600912063,current,2424.00,Литвинов П С,2855919119,фізична особа
ЄС,"Харківська область, Балаклійський район, Балаклія, улица Алиева",79,2016-12-28,480,"Оренда будинків і приміщень та експлуатаційні витрати (прибирання, страхування орендованих будинків, охорона, сигналізація, ремонт, вивіз сміття, тощо)",Оренда нерухомості,386051,Харківська обласна організація,39740347,Харківська область,Оплата комунальних послуг та енергоносіїв,2600912063,current,2396.05,"КП ""Балаклійські теплові мережі""",34328904,юридична особа
ЄС,"Харківська область, Харків",43,2016-12-28,491,Інші витрати,Інші витрати,386050,Харківська обласна організація,39740347,Харківська область,Придбання предметів і матеріалів,2600912063,current,2133.00,Литвинов П С,2855919119,фізична особа
ЄС,"Харківська область, Харків, вулиця Бакуліна, 18",63,2016-12-28,483,Податок на доходи,Податкові платежі,386049,Харківська обласна організація,39740347,Харківська область,податок з доходів фізичних осіб з оренди нежитлового приміщення,2600912063,current,1611.30,УДКСУ у Шевченківському районі м. Харкова,37999654,юридична особа
ЄС,"Харківська область, Дергачівський район, Солоницівка, улица Пушкина, 18, 34",79,2016-12-28,472,"Оренда будинків і приміщень та експлуатаційні витрати (прибирання, страхування орендованих будинків, охорона, сигналізація, ремонт, вивіз сміття, тощо)",Оренда нерухомості,386048,Харківська обласна організація,39740347,Харківська область,Оплата комунальних послуг та енергоносіїв,2600912063,current,1577.03,"ТОВ ""Сабсан-інвест""",35207019,юридична особа
ЄС,"Харківська область, Харків, вулиця Бакуліна, 18",63,2016-12-28,487,Податок на доходи,Податкові платежі,386047,Харківська обласна організація,39740347,Харківська область,податок з доходів фізичних осіб з оренди нежитлового приміщення,2600912063,current,1260.00,УДКСУ у Шевченківському районі м. Харкова,37999654,юридична особа
ЄС,"Харківська область, Люботин",79,2016-12-28,471,"Оренда будинків і приміщень та експлуатаційні витрати (прибирання, страхування орендованих будинків, охорона, сигналізація, ремонт, вивіз сміття, тощо)",Оренда нерухомості,386046,Харківська обласна організація,39740347,Харківська область,Оренда та експлуатаційні послуги,2600912063,current,1176.00,Куц Вадим Володимирович,2571614493,фізична особа
ЄС,"Харківська область, Харків, вулиця Бакуліна, 18",63,2016-12-28,477,Податок на доходи,Податкові платежі,386045,Харківська обласна організація,39740347,Харківська область,податок з доходів фізичних осіб з оренди нежитлового приміщення,2600912063,current,864.00,УДКСУ у Шевченківському районі м. Харкова,37999654,юридична особа
ЄС,"Харківська область, Печенізький район, Печеніги, вул. Незалежності",79,2016-12-28,474,"Оренда будинків і приміщень та експлуатаційні витрати (прибирання, страхування орендованих будинків, охорона, сигналізація, ремонт, вивіз сміття, тощо)",Оренда нерухомості,386044,Харківська обласна організація,39740347,Харківська область,Оренда та експлуатаційні послуги,2600912063,current,340.00,Відділ культури і туризму Печенізької РДА,23148194,юридична особа
ЄС,"Харківська область, Харків, вулиця Бакуліна, 18",61,2016-12-28,486,Військовий збір,Податкові платежі,386043,Харківська обласна організація,39740347,Харківська область,військовий збір з доходів фізичних осіб з оренди нежитлового приміщення,2600912063,current,239.28,УДКСУ у Шевченківському районі м. Харкова,37999654,юридична особа
ЄС,"Харківська область, Харків, вулиця Бакуліна, 18",61,2016-12-28,478,Військовий збір,Податкові платежі,386042,Харківська обласна організація,39740347,Харківська область,військовий збір з доходів фізичних осіб з оренди нежитлового приміщення,2600912063,current,72.00,УДКСУ у Шевченківському районі м. Харкова,37999654,юридична особа
ЄС,"Харківська область, Харків, вулиця Алчевських, 30",70,2016-12-28,ЯШ2032_959,Банківські послуги,Інші витрати,385973,Харківська обласна організація,39740347,Харківська область,Розрахунково-касове обслуговування,2600912063,current,461.79,"ПАТ ""Мегабанк""",09804119,юридична особа
ЄС,"Харківська область, Харків",79,2016-12-28,485,"Оренда будинків і приміщень та експлуатаційні витрати (прибирання, страхування орендованих будинків, охорона, сигналізація, ремонт, вивіз сміття, тощо)",Оренда нерухомості,385566,Харківська обласна організація,39740347,Харківська область,Оренда та експлуатаційні послуги,2600912063,current,7206.02,Третякова Галина Олександрівна,,фізична особа
ЄС,"Харківська область, Барвінківський район, Барвінкове, вул. Центральна, 37, 25",79,2016-12-28,476,"Оренда будинків і приміщень та експлуатаційні витрати (прибирання, страхування орендованих будинків, охорона, сигналізація, ремонт, вивіз сміття, тощо)",Оренда нерухомості,385565,Харківська обласна організація,39740347,Харківська область,Оренда та експлуатаційні послуги,2600912063,current,3864.00,Самсонов Сергій Миколайович,2276414774,фізична особа
ЄС,"Харківська область, Вовчанський район, Вовчанськ",79,2016-12-28,484,"Оренда будинків і приміщень та експлуатаційні витрати (прибирання, страхування орендованих будинків, охорона, сигналізація, ремонт, вивіз сміття, тощо)",Оренда нерухомості,385564,Харківська обласна організація,39740347,Харківська область,Оренда та експлуатаційні послуги,2600912063,current,5635.00,Дудка Леонід Андрійович,,фізична особа
ЄС,"Тернопільська область, Тернопіль",82,2016-12-28,23,"Гонорари, в тому числі за надані консультаційні послуги","Гонорари, в тому числі за надані консультаційні послуги",385310,Тернопільська обласна організація,39614425,Тернопільська область,виплата за договором ЦПХ,26009055114295,current,10223.50,Питель Юрій Святославович,,фізична особа
ЄС,Тернопільська область,82,2016-12-28,24,"Гонорари, в тому числі за надані консультаційні послуги","Гонорари, в тому числі за надані консультаційні послуги",385308,Тернопільська обласна організація,39614425,Тернопільська область,виплата за договором ЦПХ,26009055114295,current,7647.50,Процик Ірина Василівна,,фізична особа
ЄС,"Київ, вулиця Михайла Грушевського, 1Д",70,2016-12-28,1228Ы4СКУ,Банківські послуги,Інші витрати,385306,Сумська обласна організація,39587135,Сумська область,комісія банку,26009055016910,current,3.00,"ПАТ КБ ""Приватбанк""",14360570,юридична особа
ЄС,"Сумська область, Суми, Покровська площа, 6",49,2016-12-28,283,Публікування матеріалів у друкованих ЗМІ,Реклама в друкованих ЗМІ,385305,Сумська обласна організація,39587135,Сумська область,Інформаційні послуги,26009055016910,current,1300.00,"ТОВ ""Всі Суми Панорама-Медіа""",36898197,юридична особа
ЄС,"Київ, вулиця Михайла Грушевського, 1Д",70,2016-12-28,1228Ь14СОУ,Банківські послуги,Інші витрати,385304,Сумська обласна організація,39587135,Сумська область,комісія банку,26009055016910,current,3.00,"ПАТ КБ ""Приватбанк""",14360570,юридична особа
ЄС,"Сумська область, Суми, вулиця Пушкіна, 22, 13",74,2016-12-28,284,"Придбання канцтоварів, паперу, інших предметів і матеріалів, а також госп товари",Придбання канцтоварів та госп. товарів,385303,Сумська обласна організація,39587135,Сумська область,канцелярські товари,26009055016910,current,99970.00,Міленін М А,3320000852,фізична особа
ЄС,"Рівненська область, Володимирецький район, Володимирець, вулиця Грушевського, 68",79,2016-12-28,229,"Оренда будинків і приміщень та експлуатаційні витрати (прибирання, страхування орендованих будинків, охорона, сигналізація, ремонт, вивіз сміття, тощо)",Оренда нерухомості,385011,Рівненська обласна організація,39757256,Рівненська область,"Оплата оренди приміщення за грудень2016 зг. рах^ 110/16 У сумі 378.13 грн., ПДВ - 20 % 75.63 грн. тендер не передбачено",26009054713048,current,453.76,"КП ""Аква""",30925565,юридична особа
ЄС,"Рівненська область, Рівне, вулиця Вячеслава Чорновола, 2",79,2016-12-28,227,"Оренда будинків і приміщень та експлуатаційні витрати (прибирання, страхування орендованих будинків, охорона, сигналізація, ремонт, вивіз сміття, тощо)",Оренда нерухомості,385010,Рівненська обласна організація,39757256,Рівненська область,Оплата оренди приміщення за листопад2016 зг. рах^ 30 від 2016-11-30р Без ПДВ тендер не передбачено,26009054713048,current,4000.00,Мамонтова Марія Романівна,1489002385,фізична особа
ЄС,"Київ, вулиця Михайла Грушевського, 1Д",70,2016-12-28,1228L3CLMY,Банківські послуги,Інші витрати,385009,Рівненська обласна організація,39757256,Рівненська область,"Комісія за виконання платежів в національній валюті, згідно з відкритою офертою банку N б/н від 2015-04-29 та тарифів банку, без ПДВ.",26009054713048,current,3.00,"ПАТ КБ ""Приватбанк""",14360570,юридична особа
ЄС,"Рівненська область, Рівне, вулиця Вячеслава Чорновола, 2",79,2016-12-28,228,"Оренда будинків і приміщень та експлуатаційні витрати (прибирання, страхування орендованих будинків, охорона, сигналізація, ремонт, вивіз сміття, тощо)",Оренда нерухомості,385008,Рівненська обласна організація,39757256,Рівненська область,Оплата оренди приміщення за грудень2016 зг. рах^ 24 Без ПДВ тендер не передбачено,26009054713048,current,4000.00,Мамонтова Марія Романівна,1489002385,фізична особа
ЄС,"Київ, вулиця Михайла Грушевського, 1Д",70,2016-12-28,1228L3COXY,Банківські послуги,Інші витрати,385007,Рівненська обласна організація,39757256,Рівненська область,"Комісія за виконання платежів в національній валюті, згідно з відкритою офертою банку N б/н від 2015-04-29 та тарифів банку, без ПДВ.",26009054713048,current,3.00,"ПАТ КБ ""Приватбанк""",14360570,юридична особа
ЄС,"Рівненська область, Острог, провулок Садовий, 2",79,2016-12-28,225,"Оренда будинків і приміщень та експлуатаційні витрати (прибирання, страхування орендованих будинків, охорона, сигналізація, ремонт, вивіз сміття, тощо)",Оренда нерухомості,385006,Рівненська обласна організація,39757256,Рівненська область,Оплата оренди приміщення за листопад2016 зг. рах^ 23 від 2016-11-30р Без ПДВ тендер не передбачено,26009054713048,current,4000.00,"ТОВ ""Явір-95""",32039458,юридична особа
ЄС,"Київ, вулиця Михайла Грушевського, 1Д",70,2016-12-28,1228L3CDDY,Банківські послуги,Інші витрати,385005,Рівненська обласна організація,39757256,Рівненська область,"Комісія за виконання платежів в національній валюті, згідно з відкритою офертою банку N б/н від 2015-04-29 та тарифів банку, без ПДВ.",26009054713048,current,3.00,"ПАТ КБ ""Приватбанк""",14360570,юридична особа
ЄС,"Рівненська область, Острог, провулок Садовий, 2",79,2016-12-28,226,"Оренда будинків і приміщень та експлуатаційні витрати (прибирання, страхування орендованих будинків, охорона, сигналізація, ремонт, вивіз сміття, тощо)",Оренда нерухомості,385004,Рівненська обласна організація,39757256,Рівненська область,Оплата оренди приміщення за грудень2016 зг. рах^ 24 Без ПДВ тендер не передбачено,26009054713048,current,4000.00,"ТОВ ""Явір-95""",32039458,юридична особа
ЄС,"Київ, вулиця Михайла Грушевського, 1Д",70,2016-12-28,1228L3CHWY,Банківські послуги,Інші витрати,385003,Рівненська обласна організація,39757256,Рівненська область,"Комісія за виконання платежів в національній валюті, згідно з відкритою офертою банку N б/н від 2015-04-29 та тарифів банку, без ПДВ.",26009054713048,current,3.00,"ПАТ КБ ""Приватбанк""",14360570,юридична особа
ЄС,"Рівненська область, Березнівський район, Березне, вулиця Київська, 7",79,2016-12-28,222,"Оренда будинків і приміщень та експлуатаційні витрати (прибирання, страхування орендованих будинків, охорона, сигналізація, ремонт, вивіз сміття, тощо)",Оренда нерухомості,385002,Рівненська обласна організація,39757256,Рівненська область,Оплата оренди приміщення за грудень2016 зг. рах^ 159 від 2016-12-19р. тендер не передбачено Без ПДВ,26009054713048,current,2103.16,"КП ""Березнівс ька друкарня""",02468500,юридична особа
ЄС,"Київ, вулиця Михайла Грушевського, 1Д",70,2016-12-28,1228L3BI9Y,Банківські послуги,Інші витрати,385001,Рівненська обласна організація,39757256,Рівненська область,"Комісія за виконання платежів в національній валюті, згідно з відкритою офертою банку N б/н від 2015-04-29 та тарифів банку, без ПДВ.",26009054713048,current,3.00,"ПАТ КБ ""Приватбанк""",14360570,юридична особа
ЄС,"Рівненська область, Володимирецький район, Володимирець, вулиця Грушевського, 68",79,2016-12-28,223,"Оренда будинків і приміщень та експлуатаційні витрати (прибирання, страхування орендованих будинків, охорона, сигналізація, ремонт, вивіз сміття, тощо)",Оренда нерухомості,385000,Рівненська обласна організація,39757256,Рівненська область,"Оплата оренди приміщення за листопад2016 зг. рах.N 99/16 У сумі 371.44 грн., ПДВ - 20 % 74.28 грн.тендер не передбачено",26009054713048,current,445.72,"КП ""Аква""",30925565,юридична особа
ЄС,"Рівненська область, Здолбунівський район, Здолбунів, вулиця Хмельницького, 10",79,2016-12-28,220,"Оренда будинків і приміщень та експлуатаційні витрати (прибирання, страхування орендованих будинків, охорона, сигналізація, ремонт, вивіз сміття, тощо)",Оренда нерухомості,384999,Рівненська обласна організація,39757256,Рівненська область,Оплата оренди приміщення за грудень2016 зг. рах.N 2844 тендер не передбачено Без ПДВ,26009054713048,current,834.95,"ЗАТ ""Фірма ""Здолбунівсервіс""",13986913,юридична особа
ЄС,"Рівненська область, Березнівський район, Березне, вулиця Київська, 7",79,2016-12-28,221,"Оренда будинків і приміщень та експлуатаційні витрати (прибирання, страхування орендованих будинків, охорона, сигналізація, ремонт, вивіз сміття, тощо)",Оренда нерухомості,384998,Рівненська обласна організація,39757256,Рівненська область,Оплата оренди приміщення за листопад2016 зг. рахК 158 від 2016-11-30р. тендер не передбачено Без ПДВ,26009054713048,current,2064.36,"КП ""Березнівс ька друкарня""",02468500,юридична особа
ЄС,"Київ, вулиця Михайла Грушевського, 1Д",70,2016-12-28,1228L3BAAY,Банківські послуги,Інші витрати,384997,Рівненська обласна організація,39757256,Рівненська область,"Комісія за виконання платежів в національній валюті, згідно з відкритою офертою банку N б/н від 2015-04-29 та тарифів банку, без ПДВ.",26009054713048,current,3.00,"ПАТ КБ ""Приватбанк""",14360570,юридична особа
ЄС,"Рівненська область, Здолбунівський район, Здолбунів, вулиця Хмельницького, 10",79,2016-12-28,219,"Оренда будинків і приміщень та експлуатаційні витрати (прибирання, страхування орендованих будинків, охорона, сигналізація, ремонт, вивіз сміття, тощо)",Оренда нерухомості,384996,Рівненська обласна організація,39757256,Рівненська область,Оплата оренди приміщення за листопад2016 зг. рах.N 2814 тендер не передбачено Без ПДВ,26009054713048,current,834.95,"ЗАТ ""Фірма ""Здолбунівсервіс""",13986913,юридична особа
ЄС,"Рівненська область, Корецький район, Корець, вулиця Хмельницького, 1",79,2016-12-28,218,"Оренда будинків і приміщень та експлуатаційні витрати (прибирання, страхування орендованих будинків, охорона, сигналізація, ремонт, вивіз сміття, тощо)",Оренда нерухомості,384995,Рівненська обласна організація,39757256,Рівненська область,Оплата оренди приміщення за грудень2016 зг. рах.N 36 від 2016-12-19р. тендер не передбачено Без ПДВ,26009054713048,current,803.00,"ВК ""Корецьпобутсервіс""",13992670,юридична особа
ЄС,"Рівненська область, Корецький район, Корець, вулиця Хмельницького, 1",79,2016-12-28,217,"Оренда будинків і приміщень та експлуатаційні витрати (прибирання, страхування орендованих будинків, охорона, сигналізація, ремонт, вивіз сміття, тощо)",Оренда нерухомості,384994,Рівненська обласна організація,39757256,Рівненська область,Оплата оренди примщення за листопад2016 зг. рах^ 34 від 2016-11-28р. тендер не передбачено Без ПДВ,26009054713048,current,753.00,"ВК ""Корецьпобутсервіс""",13992670,юридична особа
ЄС,"Рівненська область, Рівне, вулиця Яворницького, 34",61,2016-12-28,210,Військовий збір,Податкові платежі,384993,Рівненська обласна організація,39757256,Рівненська область,"*;101;39757256;сплата Військового збору за листопад, грудень 2016 за рахунками по оплаті оренди;;;",26009054713048,current,120.00,ГУ ДКСУ у Рівненській області,38012714,юридична особа
ЄС,"Київ, вулиця Михайла Грушевського, 1Д",70,2016-12-28,1228L39H1Y,Банківські послуги,Інші витрати,384992,Рівненська обласна організація,39757256,Рівненська область,"Комісія за виконання платежів в національній валюті, згідно з відкритою офертою банку N б/н від 2015-04-29 та тарифів банку, без ПДВ.",26009054713048,current,3.00,"ПАТ КБ ""Приватбанк""",14360570,юридична особа
ЄС,"Рівненська область, Рівне, вулиця Яворницького, 34",63,2016-12-28,209,Податок на доходи,Податкові платежі,384991,Рівненська обласна організація,39757256,Рівненська область,"*;101;39757256;сплата ПДФО за листопад,грудень 2016 за рахунками по оплаті оренди;;;",26009054713048,current,1440.00,ГУ ДКСУ у Рівненській області,38012714,юридична особа
ЄС,"Київ, вулиця Михайла Грушевського, 1Д",70,2016-12-28,1228L39GGY,Банківські послуги,Інші витрати,384990,Рівненська обласна організація,39757256,Рівненська область,"Комісія за виконання платежів в національній валюті, згідно з відкритою офертою банку N б/н від 2015-04-29 та тарифів банку, без ПДВ.",26009054713048,current,3.00,"ПАТ КБ ""Приватбанк""",14360570,юридична особа
ЄС,"Рівненська область, Рівне, вулиця Данила Галицького, 19",74,2016-12-28,208,"Придбання канцтоварів, паперу, інших предметів і матеріалів, а також госп товари",Придбання канцтоварів та госп. товарів,384989,Рівненська обласна організація,39757256,Рівненська область,Оплата за канцтовари згідно рахунку N28 від 22 грудня 2016р. Без ПДВ,26009054713048,current,78430.07,Кравчук Т М,3017504825,фізична особа
ЄС,"Рівненська область, Володимирецький район, Великий Жолудськ",79,2016-12-28,214,"Оренда будинків і приміщень та експлуатаційні витрати (прибирання, страхування орендованих будинків, охорона, сигналізація, ремонт, вивіз сміття, тощо)",Оренда нерухомості,384955,Рівненська обласна організація,39757256,Рівненська область,Оплата суборенди приміщення зг. рахПДТ-0000002від2016-12-19р.подат ки сплачені 2016-12-28 Без ПЦВ тендер не передбачено,26009054713048,current,2012.50,Сергійчук Галина Федорівна,,фізична особа
ЄС,"Рівненська область, Володимирецький район, Великий Жолудськ",79,2016-12-28,213,"Оренда будинків і приміщень та експлуатаційні витрати (прибирання, страхування орендованих будинків, охорона, сигналізація, ремонт, вивіз сміття, тощо)",Оренда нерухомості,384954,Рівненська обласна організація,39757256,Рівненська область,Оплата суборенди приміщення зг. рахПДТ-0000001від2016-11-29р.подат ки сплачені 2016-12-28 Без ПДВ тендер не передбачено,26009054713048,current,2012.50,Сергійчук Галина Федорівна,,фізична особа
ЄС,"Рівненська область, Костопільський район, Костопіль, вулиця Грушевського, 87",79,2016-12-28,215,"Оренда будинків і приміщень та експлуатаційні витрати (прибирання, страхування орендованих будинків, охорона, сигналізація, ремонт, вивіз сміття, тощо)",Оренда нерухомості,384953,Рівненська обласна організація,39757256,Рівненська область,Оплата оренди приміщення за листопад2016 зг. рахП 1від2016-12-01р.податки сплачені 2016-12-28 Без ПДВ тендер не передбачено,26009054713048,current,1207.50,Толочик Аліна Юріївна,3396301569,фізична особа
ЄС,"Рівненська область, Костопільський район, Костопіль, вулиця Грушевського, 87",79,2016-12-28,216,"Оренда будинків і приміщень та експлуатаційні витрати (прибирання, страхування орендованих будинків, охорона, сигналізація, ремонт, вивіз сміття, тощо)",Оренда нерухомості,384952,Рівненська обласна організація,39757256,Рівненська область,Оплата оренди приміщення за грудень2016 зг. рах^ 2від2016-12-20р.податки сплачені 2016-12-28 Без ПДВ тендер не передбачено,26009054713048,current,1207.50,Толочик Аліна Юріївна,3396301569,фізична особа
ЄС,"Полтавська область, Полтава, вулиця Котляревського, 22А",79,2016-12-28,204,"Оренда будинків і приміщень та експлуатаційні витрати (прибирання, страхування орендованих будинків, охорона, сигналізація, ремонт, вивіз сміття, тощо)",Оренда нерухомості,384921,Полтавська обласна організація,26090791,Полтавська область,За оренду нежитлового приміщення,26000279199,current,4326.90,"ТОВ ""Сучасний Дім”",32690096,юридична особа
ЄС,Полтавська область,84,2016-12-28,206,"Заробітна плата, премії","Заробітна плата, лікарняні, вагітності, відрядження, компенсації",384844,Полтавська обласна організація,26090791,Полтавська область,Заробітна плата,26000279199,current,2616.25,Гальченко Анжеліка Василівна,2991814649,фізична особа
ЄС,Полтавська область,84,2016-12-28,205,"Заробітна плата, премії","Заробітна плата, лікарняні, вагітності, відрядження, компенсації",384843,Полтавська обласна організація,26090791,Полтавська область,Заробітна плата,26000279199,current,2616.25,Черненко Сергій Анатолійович,3297910858,фізична особа
ЄС,"Дніпропетровська область, Дніпро́, вулиця Курсантська, 24",70,2016-12-28,384622,Банківські послуги,Інші витрати,384742,Одеська обласна організація,39607381,Одеська область,Комісія за виконання 2016-12-28р. платежів зг. дог. 26/77182/980 від 2015-04-20р. Без ПДВ,26003010325274,current,6.00,"ПАТ ""Банк Восток""",26237202,юридична особа
ЄС,"Дніпропетровська область, Дніпро́, вулиця Курсантська, 24",70,2016-12-28,МА785332 7/,Банківські послуги,Інші витрати,384741,Одеська обласна організація,39607381,Одеська область,"Комісія за видачу готівки по чеку (143 561,68грн.) відп. договору № 26/77182/980 від 2015-04-20р, згідно тарифів Банку. Без ПДВ",26003010325274,current,1435.62,"ПАТ ""Банк Восток""",26237202,юридична особа
ЄС,"Одеська область, Одеса, Французький бульвар, 7",62,2016-12-28,909,Сплата ЄСВ,Податкові платежі,384740,Одеська обласна організація,39607381,Одеська область,*;101;39607381;ЄСВ 22% за договорами ЦПХ за грудень 2016р.;код 71010000; перераховано повністю;;;,26003010325274,current,28710.00,ДПІ у Приморському районі м. Одеси ГУ ДФС в Одеській області,39565511,юридична особа
ЄС,"Одеська область, Одеса, вулиця Черняховського, 6",63,2016-12-28,910,Податок на доходи,Податкові платежі,384739,Одеська обласна організація,39607381,Одеська область,*;101;39607381;ПДФ О з договорів ЦПХ за грудень 2016р.; код 11010400;перерахова но повністю;;;,26003010325274,current,23490.00,УДКСУ у м. Одесі,38016923,юридична особа
ЄС,"Одеська область, Одеса, вулиця Черняховського, 6",61,2016-12-28,911,Військовий збір,Податкові платежі,384738,Одеська обласна організація,39607381,Одеська область,*;101;39607381;війсь ковий збір з договорів ЦПХ за грудень 2016р.;ккд11011000;п ерераховано повністю;;;,26003010325274,current,1957.50,УДКСУ у м. Одесі,38016923,юридична особа
ЄС,"Одеська область, Миколаївський район, Стрюкове",82,2016-12-28,МА785332 7,"Гонорари, в тому числі за надані консультаційні послуги","Гонорари, в тому числі за надані консультаційні послуги",384587,Одеська обласна організація,39607381,Одеська область,Виплати за договорами ЦПХ №147 від 01.11.16 (143561.68грн.),26003010325274,current,2415.00,Ющенко Антоніна Миколаївна,2600218082,фізична особа
ЄС,"Дніпропетровська область, Марганець",82,2016-12-28,МА785332 7,"Гонорари, в тому числі за надані консультаційні послуги","Гонорари, в тому числі за надані консультаційні послуги",384586,Одеська обласна організація,39607381,Одеська область,Виплати за договорами ЦПХ №147 від 01.11.16 (143561.68грн.),26003010325274,current,2817.50,Юргін Денис Васильович,,фізична особа
ЄС,"Одеська область, Балтський район, Балта",82,2016-12-28,МА785332 7,"Гонорари, в тому числі за надані консультаційні послуги","Гонорари, в тому числі за надані консультаційні послуги",384585,Одеська обласна організація,39607381,Одеська область,Виплати за договорами ЦПХ №147 від 01.11.16 (143561.68грн.),26003010325274,current,2817.50,Шиндер Фіонія Василівна,,фізична особа
ЄС,"Одеська область, Ширяївський район, Ширяєве",82,2016-12-28,МА785332 7,"Гонорари, в тому числі за надані консультаційні послуги","Гонорари, в тому числі за надані консультаційні послуги",384584,Одеська обласна організація,39607381,Одеська область,Виплати за договорами ЦПХ №147 від 01.11.16 (143561.68грн.),26003010325274,current,2415.00,Шабанова Валентина Володимирівна,,фізична особа
ЄС,"Одеська область, Любашівський район, Петрівка",82,2016-12-28,МА785332 7,"Гонорари, в тому числі за надані консультаційні послуги","Гонорари, в тому числі за надані консультаційні послуги",384583,Одеська обласна організація,39607381,Одеська область,Виплати за договорами ЦПХ №147 від 01.11.16 (143561.68грн.),26003010325274,current,2415.00,Чікурова Лідія Олександрівна,,фізична особа
ЄС,"Одеська область, Окнянський район",82,2016-12-28,МА785332 7,"Гонорари, в тому числі за надані консультаційні послуги","Гонорари, в тому числі за надані консультаційні послуги",384582,Одеська обласна організація,39607381,Одеська область,Виплати за договорами ЦПХ №147 від 01.11.16 (143561.68грн.),26003010325274,current,2415.00,Чаповський Павло Русланович,,фізична особа
ЄС,"Одеська область, Кілійський район, Кілія",82,2016-12-28,МА785332 7,"Гонорари, в тому числі за надані консультаційні послуги","Гонорари, в тому числі за надані консультаційні послуги",384581,Одеська обласна організація,39607381,Одеська область,Виплати за договорами ЦПХ №147 від 01.11.16 (143561.68грн.),26003010325274,current,2817.50,Цибульський Сергій Олександрович,,фізична особа
ЄС,"Одеська область, Одеса",82,2016-12-28,МА785332 7,"Гонорари, в тому числі за надані консультаційні послуги","Гонорари, в тому числі за надані консультаційні послуги",384580,Одеська обласна організація,39607381,Одеська область,Виплати за договорами ЦПХ №147 від 01.11.16 (143561.68грн.),26003010325274,current,2817.50,Хома Віра Олексіївна,,фізична особа
ЄС,"Одеська область, Білгород-Дністровський район, Андріївка",82,2016-12-28,МА785332 7,"Гонорари, в тому числі за надані консультаційні послуги","Гонорари, в тому числі за надані консультаційні послуги",384579,Одеська обласна організація,39607381,Одеська область,Виплати за договорами ЦПХ №147 від 01.11.16 (143561.68грн.),26003010325274,current,2817.50,Фомічов Руслан Михайлович,,фізична особа
ЄС,"Одеська область, Теплодар",82,2016-12-28,МА785332 7,"Гонорари, в тому числі за надані консультаційні послуги","Гонорари, в тому числі за надані консультаційні послуги",384578,Одеська обласна організація,39607381,Одеська область,Виплати за договорами ЦПХ №147 від 01.11.16 (143561.68грн.),26003010325274,current,2817.50,Ульянова Ірина Федорівна,,фізична особа
ЄС,"Одеська область, Балтський район, Балта",82,2016-12-28,МА785332 7,"Гонорари, в тому числі за надані консультаційні послуги","Гонорари, в тому числі за надані консультаційні послуги",384577,Одеська обласна організація,39607381,Одеська область,Виплати за договорами ЦПХ №147 від 01.11.16 (143561.68грн.),26003010325274,current,2415.00,Ткачук Тетяна Миколаївна,,фізична особа
ЄС,"Одеська область, Чорноморськ",82,2016-12-28,МА785332 7,"Гонорари, в тому числі за надані консультаційні послуги","Гонорари, в тому числі за надані консультаційні послуги",384576,Одеська обласна організація,39607381,Одеська область,Виплати за договорами ЦПХ №147 від 01.11.16 (143561.68грн.),26003010325274,current,2415.00,Тарасенко Роман Андрійович,,фізична особа
ЄС,"Одеська область, Южне",82,2016-12-28,МА785332 7,"Гонорари, в тому числі за надані консультаційні послуги","Гонорари, в тому числі за надані консультаційні послуги",384575,Одеська обласна організація,39607381,Одеська область,Виплати за договорами ЦПХ №147 від 01.11.16 (143561.68грн.),26003010325274,current,2817.50,Павлова Катерина Миколаївна,,фізична особа
ЄС,"Одеська область, Ренійський район, Рені",82,2016-12-28,МА785332 7,"Гонорари, в тому числі за надані консультаційні послуги","Гонорари, в тому числі за надані консультаційні послуги",384574,Одеська обласна організація,39607381,Одеська область,Виплати за договорами ЦПХ №147 від 01.11.16 (143561.68грн.),26003010325274,current,2415.00,Нівня Марина Георгіївна,,фізична особа
ЄС,"Одеська область, Окнянський район",82,2016-12-28,МА785332 7,"Гонорари, в тому числі за надані консультаційні послуги","Гонорари, в тому числі за надані консультаційні послуги",384573,Одеська обласна організація,39607381,Одеська область,Виплати за договорами ЦПХ №147 від 01.11.16 (143561.68грн.),26003010325274,current,2817.50,Мойсеєв Вʼячеслав Валентинович,,фізична особа
ЄС,"Одеська область, Одеса",82,2016-12-28,МА785332 7,"Гонорари, в тому числі за надані консультаційні послуги","Гонорари, в тому числі за надані консультаційні послуги",384572,Одеська обласна організація,39607381,Одеська область,Виплати за договорами ЦПХ №147 від 01.11.16 (143561.68грн.),26003010325274,current,2817.50,Малиновський Микола Володимирович,,фізична особа
ЄС,"Одеська область, Лиманський район",82,2016-12-28,МА785332 7,"Гонорари, в тому числі за надані консультаційні послуги","Гонорари, в тому числі за надані консультаційні послуги",384571,Одеська обласна організація,39607381,Одеська область,Виплати за договорами ЦПХ №147 від 01.11.16 (143561.68грн.),26003010325274,current,2817.50,Лупан Алла Геннадіївна,,фізична особа
ЄС,"Одеська область, Ізмаїльський район, Ізмаїл",82,2016-12-28,МА785332 7,"Гонорари, в тому числі за надані консультаційні послуги","Гонорари, в тому числі за надані консультаційні послуги",384570,Одеська обласна організація,39607381,Одеська область,Виплати за договорами ЦПХ №147 від 01.11.16 (143561.68грн.),26003010325274,current,2817.50,Лузанов Андрій Аркадійович,,фізична особа
ЄС,"Одеська область, Подільськ",82,2016-12-28,МА785332 7,"Гонорари, в тому числі за надані консультаційні послуги","Гонорари, в тому числі за надані консультаційні послуги",384569,Одеська обласна організація,39607381,Одеська область,Виплати за договорами ЦПХ №147 від 01.11.16 (143561.68грн.),26003010325274,current,2817.50,Крівцова Людмила Степанівна,,фізична особа
ЄС,"Одеська область, Лиманський район, Кінне",82,2016-12-28,МА785332 7,"Гонорари, в тому числі за надані консультаційні послуги","Гонорари, в тому числі за надані консультаційні послуги",384568,Одеська обласна організація,39607381,Одеська область,Виплати за договорами ЦПХ №147 від 01.11.16 (143561.68грн.),26003010325274,current,2415.00,Коцюр Олена Олегівна,,фізична особа
ЄС,"Одеська область, Ізмаїльський район, Ізмаїл",82,2016-12-28,МА785332 7,"Гонорари, в тому числі за надані консультаційні послуги","Гонорари, в тому числі за надані консультаційні послуги",384567,Одеська обласна організація,39607381,Одеська область,Виплати за договорами ЦПХ №147 від 01.11.16 (143561.68грн.),26003010325274,current,2415.00,Костіна Ксенія Андріївна,,фізична особа
ЄС,"Одеська область, Ширяївський район, Ширяєве",82,2016-12-28,МА785332 7,"Гонорари, в тому числі за надані консультаційні послуги","Гонорари, в тому числі за надані консультаційні послуги",384566,Одеська обласна організація,39607381,Одеська область,Виплати за договорами ЦПХ №147 від 01.11.16 (143561.68грн.),26003010325274,current,2817.50,Кирилюк Алла Федорівна,,фізична особа
ЄС,"Одеська область, Миколаївський район, Стрюкове",82,2016-12-28,МА785332 7,"Гонорари, в тому числі за надані консультаційні послуги","Гонорари, в тому числі за надані консультаційні послуги",384565,Одеська обласна організація,39607381,Одеська область,Виплати за договорами ЦПХ №147 від 01.11.16 (143561.68грн.),26003010325274,current,2817.50,Канєвський Олександр Григорович,,фізична особа
ЄС,"Одеська область, Любашівський район, Зеленогірське",82,2016-12-28,МА785332 7,"Гонорари, в тому числі за надані консультаційні послуги","Гонорари, в тому числі за надані консультаційні послуги",384564,Одеська обласна організація,39607381,Одеська область,Виплати за договорами ЦПХ №147 від 01.11.16 (143561.68грн.),26003010325274,current,2817.50,Іпатова Людмила Вікторівна,,фізична особа
ЄС,"Одеська область, Захарівський район, Захарівка",82,2016-12-28,МА785332 7,"Гонорари, в тому числі за надані консультаційні послуги","Гонорари, в тому числі за надані консультаційні послуги",384563,Одеська обласна організація,39607381,Одеська область,Виплати за договорами ЦПХ №147 від 01.11.16 (143561.68грн.),26003010325274,current,2415.00,Дерменжи Інна Леонідівна,,фізична особа
ЄС,"Одеська область, Одеса",82,2016-12-28,МА785332 7,"Гонорари, в тому числі за надані консультаційні послуги","Гонорари, в тому числі за надані консультаційні послуги",384562,Одеська обласна організація,39607381,Одеська область,Виплати за договорами ЦПХ №147 від 01.11.16 (143561.68грн.),26003010325274,current,2415.00,Гнєушева Крістіна Сергіївна,,фізична особа
ЄС,"Одеська область, Одеса",82,2016-12-28,МА785332 7,"Гонорари, в тому числі за надані консультаційні послуги","Гонорари, в тому числі за надані консультаційні послуги",384561,Одеська обласна організація,39607381,Одеська область,Виплати за договорами ЦПХ №147 від 01.11.16 (143561.68грн.),26003010325274,current,2415.00,Галайда Вадим Валерійович,,фізична особа
ЄС,"Одеська область, Чорноморськ",82,2016-12-28,МА785332 7,"Гонорари, в тому числі за надані консультаційні послуги","Гонорари, в тому числі за надані консультаційні послуги",384560,Одеська обласна організація,39607381,Одеська область,Виплати за договорами ЦПХ №147 від 01.11.16 (143561.68грн.),26003010325274,current,2817.50,Волинська Марія Владиславівна,,фізична особа
ЄС,"Одеська область, Подільськ",82,2016-12-28,МА785332 7,"Гонорари, в тому числі за надані консультаційні послуги","Гонорари, в тому числі за надані консультаційні послуги",384559,Одеська обласна організація,39607381,Одеська область,Виплати за договорами ЦПХ №147 від 01.11.16 (143561.68грн.),26003010325274,current,2415.00,Новицька Олена Миколаївна,,фізична особа
ЄС,"Одеська область, Кілійський район, Шевченкове",82,2016-12-28,МА785332 7,"Гонорари, в тому числі за надані консультаційні послуги","Гонорари, в тому числі за надані консультаційні послуги",384558,Одеська обласна організація,39607381,Одеська область,Виплати за договорами ЦПХ №147 від 01.11.16 (143561.68грн.),26003010325274,current,2415.00,Дрібноход Майя Вікторівна,,фізична особа
ЄС,"Одеська область, Ізмаїльський район, Ізмаїл",82,2016-12-28,МА785332 7,"Гонорари, в тому числі за надані консультаційні послуги","Гонорари, в тому числі за надані консультаційні послуги",384557,Одеська обласна організація,39607381,Одеська область,Виплати за договорами ЦПХ №147 від 01.11.16 (143561.68грн.),26003010325274,current,2415.00,Макаров Вʼячеслав Назарійович,,фізична особа
ЄС,"Одеська область, Ізмаїльський район, Ізмаїл",82,2016-12-28,МА785332 7,"Гонорари, в тому числі за надані консультаційні послуги","Гонорари, в тому числі за надані консультаційні послуги",384556,Одеська обласна організація,39607381,Одеська область,Виплати за договорами ЦПХ №147 від 01.11.16 (143561.68грн.),26003010325274,current,2817.50,Полякова Тетяна Володимирівна,,фізична особа
ЄС,"Одеська область, Березівський район, Березівка",82,2016-12-28,МА785332 7,"Гонорари, в тому числі за надані консультаційні послуги","Гонорари, в тому числі за надані консультаційні послуги",384555,Одеська обласна організація,39607381,Одеська область,Виплати за договорами ЦПХ №147 від 01.11.16 (143561.68грн.),26003010325274,current,2817.50,Поперечна Валентина Михайлівна,,фізична особа
ЄС,"Одеська область, Березівський район, Березівка",82,2016-12-28,МА785332 7,"Гонорари, в тому числі за надані консультаційні послуги","Гонорари, в тому числі за надані консультаційні послуги",384554,Одеська обласна організація,39607381,Одеська область,Виплати за договорами ЦПХ №147 від 01.11.16 (143561.68грн.),26003010325274,current,2415.00,Вертій Галина Іванівна,,фізична особа
ЄС,"Одеська область, Біляївський район, Великий Дальник",82,2016-12-28,МА785332 7,"Гонорари, в тому числі за надані консультаційні послуги","Гонорари, в тому числі за надані консультаційні послуги",384553,Одеська обласна організація,39607381,Одеська область,Виплати за договорами ЦПХ №147 від 01.11.16 (143561.68грн.),26003010325274,current,2415.00,Боярська Тетяна Володимирівна,,фізична особа
ЄС,"Одеська область, Біляївський район, Біляївка",82,2016-12-28,МА785332 7,"Гонорари, в тому числі за надані консультаційні послуги","Гонорари, в тому числі за надані консультаційні послуги",384552,Одеська обласна організація,39607381,Одеська область,Виплати за договорами ЦПХ №147 від 01.11.16 (143561.68грн.),26003010325274,current,2817.50,Касьяненко Тетяна Анатоліївна,,фізична особа
ЄС,"Одеська область, Арцизький район, Арциз",82,2016-12-28,МА785332 7,"Гонорари, в тому числі за надані консультаційні послуги","Гонорари, в тому числі за надані консультаційні послуги",384551,Одеська обласна організація,39607381,Одеська область,Виплати за договорами ЦПХ №147 від 01.11.16 (143561.68грн.),26003010325274,current,2817.50,Славова Ірина Олексіївна,,фізична особа
ЄС,"Одеська область, Білгород-Дністровський",82,2016-12-28,МА785332 7,"Гонорари, в тому числі за надані консультаційні послуги","Гонорари, в тому числі за надані консультаційні послуги",384550,Одеська обласна організація,39607381,Одеська область,Виплати за договорами ЦПХ №147 від 01.11.16 (143561.68грн.),26003010325274,current,2415.00,Газарян Ангеліна Анатоліївна,,фізична особа
ЄС,"Одеська область, Білгород-Дністровський",82,2016-12-28,МА785332 7,"Гонорари, в тому числі за надані консультаційні послуги","Гонорари, в тому числі за надані консультаційні послуги",384549,Одеська обласна організація,39607381,Одеська область,Виплати за договорами ЦПХ №147 від 01.11.16 (143561.68грн.),26003010325274,current,2817.50,Кучеренко Олена Іванівна,,фізична особа
ЄС,"Одеська область, Одеса",82,2016-12-28,МА785332 7,"Гонорари, в тому числі за надані консультаційні послуги","Гонорари, в тому числі за надані консультаційні послуги",384548,Одеська обласна організація,39607381,Одеська область,Виплати за договорами ЦПХ №147 від 01.11.16 (143561.68грн.),26003010325274,current,6933.06,Сізоненко Сергій Вадимович,,фізична особа
ЄС,"Одеська область, Одеса",82,2016-12-28,МА785332 7,"Гонорари, в тому числі за надані консультаційні послуги","Гонорари, в тому числі за надані консультаційні послуги",384547,Одеська обласна організація,39607381,Одеська область,Виплати за договорами ЦПХ №147 від 01.11.16 (143561.68грн.),26003010325274,current,10907.75,Подолян Наталія Володимирівна,,фізична особа
ЄС,"Одеська область, Одеса",82,2016-12-28,МА785332 7,"Гонорари, в тому числі за надані консультаційні послуги","Гонорари, в тому числі за надані консультаційні послуги",384546,Одеська обласна організація,39607381,Одеська область,Виплати за договорами ЦПХ №147 від 01.11.16 (143561.68грн.),26003010325274,current,10002.12,Кущик Ірина Петрівна,,фізична особа
ЄС,"Одеська область, Одеса",82,2016-12-28,МА785332 7,"Гонорари, в тому числі за надані консультаційні послуги","Гонорари, в тому числі за надані консультаційні послуги",384545,Одеська обласна організація,39607381,Одеська область,Виплати за договорами ЦПХ №147 від 01.11.16 (143561.68грн.),26003010325274,current,8050.00,Клименко Олена Володимирівна,,фізична особа
ЄС,"Одеська область, Одеса",82,2016-12-28,МА785332 7,"Гонорари, в тому числі за надані консультаційні послуги","Гонорари, в тому числі за надані консультаційні послуги",384544,Одеська обласна організація,39607381,Одеська область,Виплати за договорами ЦПХ №147 від 01.11.16 (143561.68грн.),26003010325274,current,5031.25,Чередник Марина Сергіївна,,фізична особа
ЄС,"Одеська область, Одеса, Люстдорфська дорога, 144, 6",84,2016-12-28,908,"Заробітна плата, премії","Заробітна плата, лікарняні, вагітності, відрядження, компенсації",384543,Одеська обласна організація,39607381,Одеська область,"Виплата заробітної плати ОТОП ""БЛОК ПЕТРА ПОРОШЕНКА СОЛІДАРНІСТЬ"" згідно відомості N 18 від 2016-12-28 грудень 2016 року",26003010325274,current,4010.36,Шульц Валентина Вікторівна,,фізична особа
ЄС,"Одеська область, Одеса",84,2016-12-28,908,"Заробітна плата, премії","Заробітна плата, лікарняні, вагітності, відрядження, компенсації",384542,Одеська обласна організація,39607381,Одеська область,"Виплата заробітної плати ОТОП ""БЛОК ПЕТРА ПОРОШЕНКА СОЛІДАРНІСТЬ"" згідно відомості N 18 від 2016-12-28 грудень 2016 року",26003010325274,current,3637.13,Чухало Юлія Олегівна,,фізична особа
ЄС,"Київ, вулиця Михайла Грушевського, 1Д",70,2016-12-28,1228L3FVTY,Банківські послуги,Інші витрати,384479,Миколаївська обласна організація,26029188,Миколаївська область,Розрахунково-касове обслуговування,26001053219711,current,3.00,"ПАТ КБ ""Приватбанк""",14360570,юридична особа
ЄС,"Київ, вулиця Михайла Грушевського, 1Д",70,2016-12-28,1228L3FWJ Y,Банківські послуги,Інші витрати,384478,Миколаївська обласна організація,26029188,Миколаївська область,Розрахунково-касове обслуговування,26001053219711,current,3.00,"ПАТ КБ ""Приватбанк""",14360570,юридична особа
ЄС,"Київ, вулиця Михайла Грушевського, 1Д",70,2016-12-28,1228L3FWK Y,Банківські послуги,Інші витрати,384477,Миколаївська обласна організація,26029188,Миколаївська область,Розрахунково-касове обслуговування,26001053219711,current,3.00,"ПАТ КБ ""Приватбанк""",14360570,юридична особа
ЄС,"Київ, вулиця Михайла Грушевського, 1Д",70,2016-12-28,1228L2N2EY,Банківські послуги,Інші витрати,384476,Миколаївська обласна організація,26029188,Миколаївська область,Розрахунково-касове обслуговування,26001053219711,current,3.00,"ПАТ КБ ""Приватбанк""",14360570,юридична особа
ЄС,"Київ, вулиця Михайла Грушевського, 1Д",70,2016-12-28,1228L2N2M Y,Банківські послуги,Інші витрати,384475,Миколаївська обласна організація,26029188,Миколаївська область,Розрахунково-касове обслуговування,26001053219711,current,3.00,"ПАТ КБ ""Приватбанк""",14360570,юридична особа
ЄС,"Миколаївська область, Миколаїв, вулиця Індустріальна, 2",58,2016-12-28,204,"Виготовлення друкованих матеріалів (плакатів, листівок, буклетів та інших агітаційних матеріалів)",Друкована агітація,384474,Миколаївська обласна організація,26029188,Миколаївська область,Виготовлення агітаційних матеріалів,26001053219711,current,102944.00,"ПГО ""Центр виробричої практики інвалідів АТО ""Літопис""",35287555,юридична особа
ЄС,"Миколаївська область, Миколаїв, вулиця Потьомкінська, 24",62,2016-12-28,203,Сплата ЄСВ,Податкові платежі,384473,Миколаївська обласна організація,26029188,Миколаївська область,ЄСВ22% наразування,26001053219711,current,42592.00,ДПІ у Центральному районі м. Миколаєва ГУ Міндоходів у Миколаївській області,38790114,юридична особа
ЄС,"Миколаївська область, Миколаїв, проспект Центральний, 97",63,2016-12-28,201,Податок на доходи,Податкові платежі,384472,Миколаївська обласна організація,26029188,Миколаївська область,ПДФО 18%,26001053219711,current,34848.00,УДКСУ у м. Миколаєві,37992781,юридична особа
ЄС,"Миколаївська область, Миколаїв, проспект Центральний, 97",61,2016-12-28,202,Військовий збір,Податкові платежі,384471,Миколаївська обласна організація,26029188,Миколаївська область,"Перерахування 1,5% на військовий збір",26001053219711,current,2904.00,УДКСУ у м. Миколаєві,37992781,юридична особа
ЄС,"Полтавська область, Полтава, вулиця Європейська, 57",75,2016-12-28,198,Поштові послуги та поширення друкованих матеріалів,Поштові послуги та поширення друкованих матеріалів,384470,Миколаївська обласна організація,26029188,Миколаївська область,Оплата транспортних послуг та утримання транспортних засобів,26001053219711,current,7493.50,"ТОВ ""Нова пошта""",31316718,юридична особа
ЄС,"Миколаївська область, Миколаїв, вулиця Московська, 45",43,2016-12-28,200,Інші витрати,Інші витрати,384469,Миколаївська обласна організація,26029188,Миколаївська область,Придбання предметів і матеріалів,26001053219711,current,78551.41,"ПП ""Фірма ""Пепс і Ко""",13852348,юридична особа
ЄС,"Київ, вулиця Михайла Грушевського, 1Д",70,2016-12-28,1228L2N2YY,Банківські послуги,Інші витрати,384468,Миколаївська обласна організація,26029188,Миколаївська область,Розрахунково-касове обслуговування,26001053219711,current,3.00,"ПАТ КБ ""Приватбанк""",14360570,юридична особа
ЄС,"Миколаївська область, Миколаїв, Лютнева вулиця, 47",43,2016-12-28,199,Інші витрати,Інші витрати,384467,Миколаївська обласна організація,26029188,Миколаївська область,Придбання предметів і матеріалів,26001053219711,current,112.00,Молчанова Світлана Анатоліївна,2479510442,фізична особа
ЄС,"Миколаївська область, Миколаїв",84,2016-12-28,205,"Заробітна плата, премії","Заробітна плата, лікарняні, вагітності, відрядження, компенсації",383812,Миколаївська обласна організація,26029188,Миколаївська область,Заробітна плата,26001053219711,current,5232.50,Сторчева Ольга Володимирівна,,фізична особа
ЄС,"Київська обл., Васильківський район, Гребінки",84,2016-12-28,205,"Заробітна плата, премії","Заробітна плата, лікарняні, вагітності, відрядження, компенсації",383811,Миколаївська обласна організація,26029188,Миколаївська область,Заробітна плата,26001053219711,current,35017.50,Бузіло Антоніна Юріївна,,фізична особа
ЄС,"Донецька область, Донецьк, вулиця Перемоги, 24, 18",84,2016-12-28,205,"Заробітна плата, премії","Заробітна плата, лікарняні, вагітності, відрядження, компенсації",383810,Миколаївська обласна організація,26029188,Миколаївська область,Заробітна плата,26001053219711,current,26162.50,Мосін Олександр Володимирович,,фізична особа
ЄС,"Миколаївська область, Вітовський район, Луч",84,2016-12-28,205,"Заробітна плата, премії","Заробітна плата, лікарняні, вагітності, відрядження, компенсації",383809,Миколаївська обласна організація,26029188,Миколаївська область,Заробітна плата,26001053219711,current,5635.00,Калюжна Оксана Миколаївна,,фізична особа
ЄС,"Миколаївська область, Вітовський район, Михайло-Ларине",84,2016-12-28,205,"Заробітна плата, премії","Заробітна плата, лікарняні, вагітності, відрядження, компенсації",383808,Миколаївська обласна організація,26029188,Миколаївська область,Заробітна плата,26001053219711,current,5232.50,Садовий Сергій Миколайович,,фізична особа
ЄС,"Миколаївська область, Миколаївський район, Ковалівка",84,2016-12-28,205,"Заробітна плата, премії","Заробітна плата, лікарняні, вагітності, відрядження, компенсації",383807,Миколаївська обласна організація,26029188,Миколаївська область,Заробітна плата,26001053219711,current,30791.25,Бірюков Юрій Сергійович,,фізична особа
ЄС,"Миколаївська область, Миколаїв",84,2016-12-28,205,"Заробітна плата, премії","Заробітна плата, лікарняні, вагітності, відрядження, компенсації",383806,Миколаївська обласна організація,26029188,Миколаївська область,Заробітна плата,26001053219711,current,2696.75,Недбай Лілія Сергіївна,,фізична особа
ЄС,"Миколаївська область, Миколаїв",84,2016-12-28,205,"Заробітна плата, премії","Заробітна плата, лікарняні, вагітності, відрядження, компенсації",383805,Миколаївська обласна організація,26029188,Миколаївська область,Заробітна плата,26001053219711,current,23546.25,Купінець Олександра Степанівна,,фізична особа
ЄС,"Миколаївська область, Миколаїв",84,2016-12-28,205,"Заробітна плата, премії","Заробітна плата, лікарняні, вагітності, відрядження, компенсації",383804,Миколаївська обласна організація,26029188,Миколаївська область,Заробітна плата,26001053219711,current,4830.00,Добровольська Алевтина Русланівна,,фізична особа
ЄС,"Миколаївська область, Миколаїв",84,2016-12-28,205,"Заробітна плата, премії","Заробітна плата, лікарняні, вагітності, відрядження, компенсації",383803,Миколаївська обласна організація,26029188,Миколаївська область,Заробітна плата,26001053219711,current,5232.50,Звягінцева Анастасія Володимирівна,,фізична особа
ЄС,"Миколаївська область, Миколаїв",84,2016-12-28,205,"Заробітна плата, премії","Заробітна плата, лікарняні, вагітності, відрядження, компенсації",383802,Миколаївська обласна організація,26029188,Миколаївська область,Заробітна плата,26001053219711,current,11471.25,Цуканова Марина Юріївна,,фізична особа
ЄС,"Львівська область, вулиця Євгена Коновальця, 7/10",79,2016-12-28,9,"Оренда будинків і приміщень та експлуатаційні витрати (прибирання, страхування орендованих будинків, охорона, сигналізація, ремонт, вивіз сміття, тощо)",Оренда нерухомості,383434,Львівська обласна організація,39702118,Львівська область,Оплата за оренду приміщення,26004010318212,current,3200.00,"Дрогобицька ГО ""Спілка української молоді""",33914844,юридична особа
ЄС,"Львівська область, Радехівський район, Радехів, вулиця Олександра Мишуги, 20",79,2016-12-28,7,"Оренда будинків і приміщень та експлуатаційні витрати (прибирання, страхування орендованих будинків, охорона, сигналізація, ремонт, вивіз сміття, тощо)",Оренда нерухомості,383433,Львівська обласна організація,39702118,Львівська область,Оплата за оренду приміщення,26004010318212,current,3000.00,"ТОВ ""Радехівтеплосервіс""",36687003,юридична особа
ЄС,"Львівська область, Львів",79,2016-12-28,5,"Оренда будинків і приміщень та експлуатаційні витрати (прибирання, страхування орендованих будинків, охорона, сигналізація, ремонт, вивіз сміття, тощо)",Оренда нерухомості,383432,Львівська обласна організація,39702118,Львівська область,Оплата за оренду приміщення,26004010318212,current,910.00,"ПрАТ ""Сколівське карʼєроуправління""",03327227,юридична особа
ЄС,"Львівська область, Кам'янка-Бузький район, Кам'янка-Бузька, вулиця Ярослава Мудрого, 8",79,2016-12-28,6,"Оренда будинків і приміщень та експлуатаційні витрати (прибирання, страхування орендованих будинків, охорона, сигналізація, ремонт, вивіз сміття, тощо)",Оренда нерухомості,383431,Львівська обласна організація,39702118,Львівська область,Оплата за оренду приміщення,26004010318212,current,840.00,Сектор культури Кам'янка-Бузької РДА Львівської області,02229273,юридична особа
ЄС,"Львівська область, Дрогобич, вулиця Петра Сагайдачного, 100",79,2016-12-28,4,"Оренда будинків і приміщень та експлуатаційні витрати (прибирання, страхування орендованих будинків, охорона, сигналізація, ремонт, вивіз сміття, тощо)",Оренда нерухомості,383430,Львівська обласна організація,39702118,Львівська область,Оплата за оренду приміщення,26004010318212,current,400.00,"ДФ ТОВ ""Медичне училище ""Медик""",25562584,юридична особа
ЄС,"Львівська область, Львів, вулиця Генерала Чупринки, 64",63,2016-12-28,11,Податок на доходи,Податкові платежі,383429,Львівська обласна організація,39702118,Львівська область,ПДФО з оренди приміщення за грудень 2016 Ониськів А.О.,26004010318212,current,360.00,УДКСУ у Франківському районі м. Львова,37965138,юридична особа
ЄС,"Київ, вулиця Лаврська, 16",70,2016-12-28,1912186,Банківські послуги,Інші витрати,383428,Львівська обласна організація,39702118,Львівська область,Комісія- абоненська плата за допомогою системи Клієнт-Банк (іFOBS),26004010318212,current,160.00,"ПАТ ""МІБ""",35810511,юридична особа
ЄС,"Львівська область, Львів, вулиця Генерала Чупринки, 64",61,2016-12-28,10,Військовий збір,Податкові платежі,383427,Львівська обласна організація,39702118,Львівська область,Військовий збір з договорів оренди за грудень 2016 Ониськів А.О.,26004010318212,current,30.00,УДКСУ у Франківському районі м. Львова,37965138,юридична особа
ЄС,"Львівська область, Борислав",79,2016-12-28,8,"Оренда будинків і приміщень та експлуатаційні витрати (прибирання, страхування орендованих будинків, охорона, сигналізація, ремонт, вивіз сміття, тощо)",Оренда нерухомості,383381,Львівська обласна організація,39702118,Львівська область,оплата по договору ЦПХ за грудень 2016,26004010318212,current,1610.00,Ониськів Андрій Олегович,,фізична особа
ЄС,"Київ, вулиця Михайла Грушевського, 1Д",70,2016-12-28,16С1400006,Банківські послуги,Інші витрати,383354,Луганська обласна організація,39825996,Луганська область,Оплата комісії за касове обслуговування по ЛТО ПАРТІЇ БПП СОЛІДАРНІСТЬ.,26009053718941,current,14.09,"ПАТ КБ ""Приватбанк""",14360570,юридична особа
ЄС,"Київ, вулиця Михайла Грушевського, 1Д",70,2016-12-28,16С1400006,Банківські послуги,Інші витрати,383353,Луганська обласна організація,39825996,Луганська область,Оплата комісії за касове обслуговування по ЛТО ПАРТІЇ БПП СОЛІДАРНІСТЬ.,26009053718941,current,855.79,"ПАТ КБ ""Приватбанк""",14360570,юридична особа
ЄС,"Київ, вулиця Михайла Грушевського, 1Д",70,2016-12-28,1228Ь0СГМУ,Банківські послуги,Інші витрати,383352,Луганська обласна організація,39825996,Луганська область,"Комісія за виконання платежів згідно тарифів банку, без ПДВ.",26009053718941,current,3.00,"ПАТ КБ ""Приватбанк""",14360570,юридична особа
ЄС,"Луганська область, Кремінський район, Кремінна",74,2016-12-28,91,"Придбання канцтоварів, паперу, інших предметів і матеріалів, а також госп товари",Придбання канцтоварів та госп. товарів,383351,Луганська обласна організація,39825996,Луганська область,оплата за канцелярські товари згідно рахунку N 165 від 2016-12-22р. Без ПДВ.,26009053718941,current,84105.75,Гардаш Ангеліна Юріївна,3525903109,фізична особа
ЄС,"Кіровоградська область, Кропивницький, вулиця В'ячеслава Чорновола",74,2016-12-28,118,"Придбання канцтоварів, паперу, інших предметів і матеріалів, а також госп товари",Придбання канцтоварів та госп. товарів,383170,Кіровоградська обласна організація,39697790,Кіровоградська область,Придбання предметів і матеріалів,26002052912613,current,27443.70,Марус В О,2950406637,фізична особа
ЄС,"Кіровоградська область, Кропивницький",61,2016-12-28,128,Військовий збір,Податкові платежі,383164,Кіровоградська обласна організація,39697790,Кіровоградська область,Військовий збір з орендної плати Зеленокорінного А.С. за листопад 2016 р.,26002052912613,current,12.00,УДКСУ у м. Кропивницькому,38037409,юридична особа
ЄС,"Кіровоградська область, Кропивницький",61,2016-12-28,127,Військовий збір,Податкові платежі,383163,Кіровоградська обласна організація,39697790,Кіровоградська область,Військовий збір з орендної плати Зеленокорінного А.С. за грудень 2016 р.,26002052912613,current,12.00,УДКСУ у м. Кропивницькому,38037409,юридична особа
ЄС,"Кіровоградська область, Кропивницький",63,2016-12-28,126,Податок на доходи,Податкові платежі,383162,Кіровоградська обласна організація,39697790,Кіровоградська область,ПДФО із орендної плати Зеленокорінного А.С. за листопад 2016р.,26002052912613,current,144.00,УДКСУ у м. Кропивницькому,38037409,юридична особа
ЄС,"Кіровоградська область, Кропивницький",63,2016-12-28,125,Податок на доходи,Податкові платежі,383161,Кіровоградська обласна організація,39697790,Кіровоградська область,ПДФО із орендної плати Зеленокорінного А.С. за грудень 2016р.,26002052912613,current,144.00,УДКСУ у м. Кропивницькому,38037409,юридична особа
ЄС,"Кіровоградська область, Кропивницький",61,2016-12-28,116,Військовий збір,Податкові платежі,383160,Кіровоградська обласна організація,39697790,Кіровоградська область,Військовий збір з орендної плати Кісєльовій Е.Р. за листопад 2016 р.,26002052912613,current,54.78,УДКСУ у м. Кропивницькому,38037409,юридична особа
ЄС,"Кіровоградська область, Кропивницький",61,2016-12-28,115,Військовий збір,Податкові платежі,383159,Кіровоградська обласна організація,39697790,Кіровоградська область,Військовий збір з орендної плати Кісєльовій Е.Р. за грудень 2016 р.,26002052912613,current,54.78,УДКСУ у м. Кропивницькому,38037409,юридична особа
ЄС,"Кіровоградська область, Кропивницький",63,2016-12-28,114,Податок на доходи,Податкові платежі,383158,Кіровоградська обласна організація,39697790,Кіровоградська область,ПДФО із орендної плати Кісєльовій Е.Р. за грудень 2016р.,26002052912613,current,657.36,УДКСУ у м. Кропивницькому,38037409,юридична особа
ЄС,"Кіровоградська область, Кропивницький",63,2016-12-28,113,Податок на доходи,Податкові платежі,383157,Кіровоградська обласна організація,39697790,Кіровоградська область,ПДФО із орендної плати Кісєльовій Е.Р. за листопад 2016р.,26002052912613,current,657.36,УДКСУ у м. Кропивницькому,38037409,юридична особа
ЄС,"Кіровоградська область, Кропивницький",61,2016-12-28,110,Військовий збір,Податкові платежі,383156,Кіровоградська обласна організація,39697790,Кіровоградська область,Військовий збір з орендної плати Терещенку В.С. за грудень 2016 р.,26002052912613,current,59.25,УДКСУ у м. Кропивницькому,38037409,юридична особа
ЄС,"Кіровоградська область, Кропивницький",63,2016-12-28,109,Податок на доходи,Податкові платежі,383155,Кіровоградська обласна організація,39697790,Кіровоградська область,ПДФО з орендної плати Терещенку В.С. за грудень 2016 р.,26002052912613,current,711.00,УДКСУ у м. Кропивницькому,38037409,юридична особа
ЄС,"Кіровоградська область, Кропивницький",61,2016-12-28,107,Військовий збір,Податкові платежі,383154,Кіровоградська обласна організація,39697790,Кіровоградська область,Військовий збір з орендної плати Терещенку В.С. за листопад 2016 р.,26002052912613,current,59.25,УДКСУ у м. Кропивницькому,38037409,юридична особа
ЄС,"Кіровоградська область, Кропивницький",63,2016-12-28,106,Податок на доходи,Податкові платежі,383153,Кіровоградська обласна організація,39697790,Кіровоградська область,ПДФО з орендної плати Терещенку В.С. за листопад 2016 р.,26002052912613,current,711.00,УДКСУ у м. Кропивницькому,38037409,юридична особа
ЄС,"Кіровоградська область, Кропивницький",61,2016-12-28,124,Військовий збір,Податкові платежі,383152,Кіровоградська обласна організація,39697790,Кіровоградська область,Військовий збір з орендної плати Г амалій Н.М. за грудень 2016 р.,26002052912613,current,7.50,УДКСУ у м. Кропивницькому,38037409,юридична особа
ЄС,"Кіровоградська область, Кропивницький",61,2016-12-28,123,Військовий збір,Податкові платежі,383151,Кіровоградська обласна організація,39697790,Кіровоградська область,Військовий збір з орендної плати Г амалій Н.М. за листопад 2016 р.,26002052912613,current,7.50,УДКСУ у м. Кропивницькому,38037409,юридична особа
ЄС,"Кіровоградська область, Кропивницький",63,2016-12-28,122,Податок на доходи,Податкові платежі,383150,Кіровоградська обласна організація,39697790,Кіровоградська область,ПДФО із орендної плати Г амалій Н.М. за листопад 2016р.,26002052912613,current,90.00,УДКСУ у м. Кропивницькому,38037409,юридична особа
ЄС,"Кіровоградська область, Кропивницький",63,2016-12-28,121,Податок на доходи,Податкові платежі,383149,Кіровоградська обласна організація,39697790,Кіровоградська область,ПДФО із орендної плати Г амалій Н.М. за грудень 2016р.,26002052912613,current,90.00,УДКСУ у м. Кропивницькому,38037409,юридична особа
ЄС,"Черкаська область, Черкаси, вулиця Івана Піддубного, 3",79,2016-12-28,120,"Оренда будинків і приміщень та експлуатаційні витрати (прибирання, страхування орендованих будинків, охорона, сигналізація, ремонт, вивіз сміття, тощо)",Оренда нерухомості,383133,Кіровоградська обласна організація,39697790,Кіровоградська область,Оренда та експлуатаційні послуги,26002052912613,current,402.50,Гамалій Наталія Миколаївна,2288721127,фізична особа
ЄС,"Черкаська область, Черкаси, вулиця Івана Піддубного, 3",79,2016-12-28,119,"Оренда будинків і приміщень та експлуатаційні витрати (прибирання, страхування орендованих будинків, охорона, сигналізація, ремонт, вивіз сміття, тощо)",Оренда нерухомості,383132,Кіровоградська обласна організація,39697790,Кіровоградська область,Оренда та експлуатаційні послуги,26002052912613,current,402.50,Гамалій Наталія Миколаївна,2288721127,фізична особа
ЄС,"Кіровоградська область, Кропивницький",79,2016-12-28,104,"Оренда будинків і приміщень та експлуатаційні витрати (прибирання, страхування орендованих будинків, охорона, сигналізація, ремонт, вивіз сміття, тощо)",Оренда нерухомості,383130,Кіровоградська обласна організація,39697790,Кіровоградська область,Оренда та експлуатаційні послуги,26002052912613,current,1000.00,Новоархангельська районна рада,23689458,юридична особа
ЄС,"Кіровоградська область, Кропивницький",79,2016-12-28,103,"Оренда будинків і приміщень та експлуатаційні витрати (прибирання, страхування орендованих будинків, охорона, сигналізація, ремонт, вивіз сміття, тощо)",Оренда нерухомості,383129,Кіровоградська обласна організація,39697790,Кіровоградська область,Оренда та експлуатаційні послуги,26002052912613,current,2000.00,"ПП ""Коріда-Сервіс""",33455182,юридична особа
ЄС,"Кіровоградська область, Кропивницький",79,2016-12-28,102,"Оренда будинків і приміщень та експлуатаційні витрати (прибирання, страхування орендованих будинків, охорона, сигналізація, ремонт, вивіз сміття, тощо)",Оренда нерухомості,383128,Кіровоградська обласна організація,39697790,Кіровоградська область,Оренда та експлуатаційні послуги,26002052912613,current,2000.00,"ПП ""Коріда-Сервіс""",33455182,юридична особа
ЄС,"Кіровоградська область, Кропивницький",79,2016-12-28,101,"Оренда будинків і приміщень та експлуатаційні витрати (прибирання, страхування орендованих будинків, охорона, сигналізація, ремонт, вивіз сміття, тощо)",Оренда нерухомості,383127,Кіровоградська обласна організація,39697790,Кіровоградська область,Оренда та експлуатаційні послуги,26002052912613,current,1500.00,"ПрАТ ""Райпобутком-бінат""",20644283,юридична особа
ЄС,"Кіровоградська область, Кропивницький",79,2016-12-28,100,"Оренда будинків і приміщень та експлуатаційні витрати (прибирання, страхування орендованих будинків, охорона, сигналізація, ремонт, вивіз сміття, тощо)",Оренда нерухомості,383126,Кіровоградська обласна організація,39697790,Кіровоградська область,Оренда та експлуатаційні послуги,26002052912613,current,3000.00,"ТОВ ""РТП-О""",39051644,юридична особа
ЄС,"Кіровоградська область, Кропивницький",79,2016-12-28,99,"Оренда будинків і приміщень та експлуатаційні витрати (прибирання, страхування орендованих будинків, охорона, сигналізація, ремонт, вивіз сміття, тощо)",Оренда нерухомості,383125,Кіровоградська обласна організація,39697790,Кіровоградська область,Оренда та експлуатаційні послуги,26002052912613,current,1824.47,Дейкун Володимир Захарович,1910013858,фізична особа
ЄС,"Київ, вулиця Михайла Грушевського, 1Д",70,2016-12-28,1228ЫЯ8РЛ,Банківські послуги,Інші витрати,383099,Кіровоградська обласна організація,39697790,Кіровоградська область,Розрахунково-касове обслуговування,26002052912613,current,1.61,"ПАТ КБ ""Приватбанк""",14360570,юридична особа
ЄС,"Київ, вулиця Михайла Грушевського, 1Д",70,2016-12-28,1228Ь1ЯС8Л,Банківські послуги,Інші витрати,383098,Кіровоградська обласна організація,39697790,Кіровоградська область,Розрахунково-касове обслуговування,26002052912613,current,1.61,"ПАТ КБ ""Приватбанк""",14360570,юридична особа
ЄС,"Київ, вулиця Михайла Грушевського, 1Д",70,2016-12-28,1228Ь1дХИЛ,Банківські послуги,Інші витрати,383097,Кіровоградська обласна організація,39697790,Кіровоградська область,Розрахунково-касове обслуговування,26002052912613,current,1.01,"ПАТ КБ ""Приватбанк""",14360570,юридична особа
ЄС,"Київ, вулиця Михайла Грушевського, 1Д",70,2016-12-28,1228Ь1рХЬЛ,Банківські послуги,Інші витрати,383096,Кіровоградська обласна організація,39697790,Кіровоградська область,Розрахунково-касове обслуговування,26002052912613,current,1.01,"ПАТ КБ ""Приватбанк""",14360570,юридична особа
ЄС,"Київ, вулиця Михайла Грушевського, 1Д",70,2016-12-28,1227Ь3иУОУ_1,Банківські послуги,Інші витрати,383095,Кіровоградська обласна організація,39697790,Кіровоградська область,Розрахунково-касове обслуговування,26002052912613,current,3.00,"ПАТ КБ ""Приватбанк""",14360570,юридична особа
ЄС,"Київ, вулиця Михайла Грушевського, 1Д",70,2016-12-28,1227Ь3иУОУ,Банківські послуги,Інші витрати,383094,Кіровоградська обласна організація,39697790,Кіровоградська область,Розрахунково-касове обслуговування,26002052912613,current,3.00,"ПАТ КБ ""Приватбанк""",14360570,юридична особа
ЄС,"Київ, вулиця Михайла Грушевського, 1Д",70,2016-12-28,1227Ь3Ш9У_1,Банківські послуги,Інші витрати,383093,Кіровоградська обласна організація,39697790,Кіровоградська область,Розрахунково-касове обслуговування,26002052912613,current,3.00,"ПАТ КБ ""Приватбанк""",14360570,юридична особа
ЄС,"Київ, вулиця Михайла Грушевського, 1Д",70,2016-12-28,1227Ь3иУЛУ,Банківські послуги,Інші витрати,383092,Кіровоградська обласна організація,39697790,Кіровоградська область,Розрахунково-касове обслуговування,26002052912613,current,3.00,"ПАТ КБ ""Приватбанк""",14360570,юридична особа
ЄС,"Київ, вулиця Михайла Грушевського, 1Д",70,2016-12-28,1227Ь3иУБУ,Банківські послуги,Інші витрати,383091,Кіровоградська обласна організація,39697790,Кіровоградська область,Розрахунково-касове обслуговування,26002052912613,current,3.00,"ПАТ КБ ""Приватбанк""",14360570,юридична особа
ЄС,"Київ, вулиця Михайла Грушевського, 1Д",70,2016-12-28,1227Ь3ИУ6У,Банківські послуги,Інші витрати,383090,Кіровоградська обласна організація,39697790,Кіровоградська область,Розрахунково-касове обслуговування,26002052912613,current,3.00,"ПАТ КБ ""Приватбанк""",14360570,юридична особа
ЄС,"Київ, вулиця Михайла Грушевського, 1Д",70,2016-12-28,1227Ь3иУ5У,Банківські послуги,Інші витрати,383089,Кіровоградська обласна організація,39697790,Кіровоградська область,Розрахунково-касове обслуговування,26002052912613,current,3.00,"ПАТ КБ ""Приватбанк""",14360570,юридична особа
ЄС,"Київ, вулиця Михайла Грушевського, 1Д",70,2016-12-28,1227Ь3иШУ,Банківські послуги,Інші витрати,383088,Кіровоградська обласна організація,39697790,Кіровоградська область,Розрахунково-касове обслуговування,26002052912613,current,3.00,"ПАТ КБ ""Приватбанк""",14360570,юридична особа
ЄС,"Київ, вулиця Михайла Грушевського, 1Д",70,2016-12-28,1227Ь3Ш9У,Банківські послуги,Інші витрати,383087,Кіровоградська обласна організація,39697790,Кіровоградська область,Розрахунково-касове обслуговування,26002052912613,current,3.00,"ПАТ КБ ""Приватбанк""",14360570,юридична особа
ЄС,"Київ, вулиця Михайла Грушевського, 1Д",70,2016-12-28,1227Ь3ШМУ,Банківські послуги,Інші витрати,383086,Кіровоградська обласна організація,39697790,Кіровоградська область,Розрахунково-касове обслуговування,26002052912613,current,3.00,"ПАТ КБ ""Приватбанк""",14360570,юридична особа
ЄС,"Київ, вулиця Михайла Грушевського, 1Д",70,2016-12-28,1227L3UVWУ,Банківські послуги,Інші витрати,383085,Кіровоградська обласна організація,39697790,Кіровоградська область,Розрахунково-касове обслуговування,26002052912613,current,3.00,"ПАТ КБ ""Приватбанк""",14360570,юридична особа
ЄС,"Київ, вулиця Михайла Грушевського, 1Д",70,2016-12-28,1227Ь3ШВУ,Банківські послуги,Інші витрати,383084,Кіровоградська обласна організація,39697790,Кіровоградська область,Розрахунково-касове обслуговування,26002052912613,current,3.00,"ПАТ КБ ""Приватбанк""",14360570,юридична особа
ЄС,"Київ, вулиця Михайла Грушевського, 1Д",70,2016-12-28,1227Ь3иХОУ,Банківські послуги,Інші витрати,383083,Кіровоградська обласна організація,39697790,Кіровоградська область,Розрахунково-касове обслуговування,26002052912613,current,3.00,"ПАТ КБ ""Приватбанк""",14360570,юридична особа
ЄС,"Київ, вулиця Михайла Грушевського, 1Д",70,2016-12-28,1227Ь3иибУ,Банківські послуги,Інші витрати,383082,Кіровоградська обласна організація,39697790,Кіровоградська область,Розрахунково-касове обслуговування,26002052912613,current,3.00,"ПАТ КБ ""Приватбанк""",14360570,юридична особа
ЄС,"Київ, вулиця Михайла Грушевського, 1Д",70,2016-12-28,1227Ь3иТУУ,Банківські послуги,Інші витрати,383081,Кіровоградська обласна організація,39697790,Кіровоградська область,Розрахунково-касове обслуговування,26002052912613,current,3.00,"ПАТ КБ ""Приватбанк""",14360570,юридична особа
ЄС,"Київ, вулиця Михайла Грушевського, 1Д",70,2016-12-28,1228Ь1дХЕУ,Банківські послуги,Інші витрати,383080,Кіровоградська обласна організація,39697790,Кіровоградська область,Розрахунково-касове обслуговування,26002052912613,current,3.00,"ПАТ КБ ""Приватбанк""",14360570,юридична особа
ЄС,"Київ, вулиця Михайла Грушевського, 1Д",70,2016-12-28,1228Ь1Я42У,Банківські послуги,Інші витрати,383079,Кіровоградська обласна організація,39697790,Кіровоградська область,Розрахунково-касове обслуговування,26002052912613,current,3.00,"ПАТ КБ ""Приватбанк""",14360570,юридична особа
ЄС,"Київ, вулиця Михайла Грушевського, 1Д",70,2016-12-28,1228Ь1Я2НУ,Банківські послуги,Інші витрати,383078,Кіровоградська обласна організація,39697790,Кіровоградська область,Розрахунково-касове обслуговування,26002052912613,current,3.00,"ПАТ КБ ""Приватбанк""",14360570,юридична особа
ЄС,"Київ, вулиця Михайла Грушевського, 1Д",70,2016-12-28,1228ЫКН4У,Банківські послуги,Інші витрати,383077,Кіровоградська обласна організація,39697790,Кіровоградська область,Розрахунково-касове обслуговування,26002052912613,current,3.00,"ПАТ КБ ""Приватбанк""",14360570,юридична особа
ЄС,"Київ, вулиця Михайла Грушевського, 1Д",70,2016-12-28,1228Ь1КОгУ,Банківські послуги,Інші витрати,383076,Кіровоградська обласна організація,39697790,Кіровоградська область,Розрахунково-касове обслуговування,26002052912613,current,3.00,"ПАТ КБ ""Приватбанк""",14360570,юридична особа
ЄС,"Київ, вулиця Михайла Грушевського, 1Д",70,2016-12-28,1228Ь1Ш3У,Банківські послуги,Інші витрати,383075,Кіровоградська обласна організація,39697790,Кіровоградська область,Розрахунково-касове обслуговування,26002052912613,current,3.00,"ПАТ КБ ""Приватбанк""",14360570,юридична особа
ЄС,"Київ, вулиця Михайла Грушевського, 1Д",70,2016-12-28,1228Б1КМТУ,Банківські послуги,Інші витрати,383074,Кіровоградська обласна організація,39697790,Кіровоградська область,Розрахунково-касове обслуговування,26002052912613,current,3.00,"ПАТ КБ ""Приватбанк""",14360570,юридична особа
ЄС,"Київ, вулиця Михайла Грушевського, 1Д",70,2016-12-28,1228Ь1ЯдБУ,Банківські послуги,Інші витрати,383073,Кіровоградська обласна організація,39697790,Кіровоградська область,Розрахунково-касове обслуговування,26002052912613,current,3.00,"ПАТ КБ ""Приватбанк""",14360570,юридична особа
ЄС,"Київ, вулиця Михайла Грушевського, 1Д",70,2016-12-28,1228Ь1дХИУ,Банківські послуги,Інші витрати,383072,Кіровоградська обласна організація,39697790,Кіровоградська область,Розрахунково-касове обслуговування,26002052912613,current,3.00,"ПАТ КБ ""Приватбанк""",14360570,юридична особа
ЄС,"Київ, вулиця Михайла Грушевського, 1Д",70,2016-12-28,1228Ь1дХЬУ,Банківські послуги,Інші витрати,383071,Кіровоградська обласна організація,39697790,Кіровоградська область,Розрахунково-касове обслуговування,26002052912613,current,3.00,"ПАТ КБ ""Приватбанк""",14360570,юридична особа
ЄС,Кіровоградська область,79,2016-12-28,129,"Оренда будинків і приміщень та експлуатаційні витрати (прибирання, страхування орендованих будинків, охорона, сигналізація, ремонт, вивіз сміття, тощо)",Оренда нерухомості,382958,Кіровоградська обласна організація,39697790,Кіровоградська область,Оренда та експлуатаційні послуги,26002052912613,current,644.00,Зеленокорінний Андрій Сергійович,,фізична особа
ЄС,Кіровоградська область,79,2016-12-28,128,"Оренда будинків і приміщень та експлуатаційні витрати (прибирання, страхування орендованих будинків, охорона, сигналізація, ремонт, вивіз сміття, тощо)",Оренда нерухомості,382957,Кіровоградська обласна організація,39697790,Кіровоградська область,Оренда та експлуатаційні послуги,26002052912613,current,644.00,Зеленокорінний Андрій Сергійович,,фізична особа
ЄС,Кіровоградська область,79,2016-12-28,111,"Оренда будинків і приміщень та експлуатаційні витрати (прибирання, страхування орендованих будинків, охорона, сигналізація, ремонт, вивіз сміття, тощо)",Оренда нерухомості,382955,Кіровоградська обласна організація,39697790,Кіровоградська область,Оренда та експлуатаційні послуги,26002052912613,current,2939.86,Кісєльова Ельвіра Рустемівна,,фізична особа
ЄС,Кіровоградська область,79,2016-12-28,108,"Оренда будинків і приміщень та експлуатаційні витрати (прибирання, страхування орендованих будинків, охорона, сигналізація, ремонт, вивіз сміття, тощо)",Оренда нерухомості,382954,Кіровоградська обласна організація,39697790,Кіровоградська область,Оренда та експлуатаційні послуги,26002052912613,current,3179.75,Терещенко Владислав Сергійович,,фізична особа
ЄС,Кіровоградська область,79,2016-12-28,105,"Оренда будинків і приміщень та експлуатаційні витрати (прибирання, страхування орендованих будинків, охорона, сигналізація, ремонт, вивіз сміття, тощо)",Оренда нерухомості,382953,Кіровоградська обласна організація,39697790,Кіровоградська область,Оренда та експлуатаційні послуги,26002052912613,current,3179.75,Терещенко Владислав Сергійович,,фізична особа
ЄС,"Київ, вулиця Академіка Туполєва, 28",62,2016-12-28,13,Сплата ЄСВ,Податкові платежі,382934,Київська обласна організація,39495516,Київська область,"”;101;39495516;ЕСВ(22,00%) за грудень 2016 та по договорам ЦПХ ; Нарах, и перерах. повністю, без ПДВ;;;;",26004300956820,current,26241.60,ДПІ у Шевченківському районі у м. Києві,39561761,юридична особа
ЄС,"Київ, вулиця Академіка Туполєва, 28А",63,2016-12-28,12,Податок на доходи,Податкові платежі,382933,Київська обласна організація,39495516,Київська область,”;101;39495516;11010100;ПДФ О за грудень 2016 року та по договорам ЦПХ; Нарах.та перерах. повністю;без ПДВ.,26004300956820,current,22770.00,УДКСУ у Шевченківському районі м. Києва,37995466,юридична особа
ЄС,"Київ, вулиця Академіка Туполєва, 28А",61,2016-12-28,14,Військовий збір,Податкові платежі,382932,Київська обласна організація,39495516,Київська область,”;101;39495516;11011000; військовий збір грудень 2016 року та по договорам ЦПХ ;;;; без ПДВ.,26004300956820,current,1897.50,УДКСУ у Шевченківському районі м. Києва,37995466,юридична особа
ЄС,,82,2016-12-28,21,"Гонорари, в тому числі за надані консультаційні послуги","Гонорари, в тому числі за надані консультаційні послуги",382787,Київська обласна організація,39495516,Київська область,"оплата за послуги згідно договору ЦИХ № 02/11-2016 від 01,11,2016",26004300956820,current,15810.20,Толмачов Дмитро Васильович,,фізична особа
ЄС,Київська обл.,82,2016-12-28,18,"Гонорари, в тому числі за надані консультаційні послуги","Гонорари, в тому числі за надані консультаційні послуги",382786,Київська обласна організація,39495516,Київська область,"оплата за послуги згідно договору ЦИХ №04/11-2016 від 01,11,2016",26004300956820,current,15810.20,Грінченко Руслан Михайлович,,фізична особа
ЄС,Київ,82,2016-12-28,17,"Гонорари, в тому числі за надані консультаційні послуги","Гонорари, в тому числі за надані консультаційні послуги",382785,Київська обласна організація,39495516,Київська область,"оплата за послуги згідно договору ЦИХ № 03/11-2016 від 01,11,201",26004300956820,current,15810.20,Ковтун Євгеній Владиславович,,фізична особа
ЄС,"Хмельницька область, Хмельницький",82,2016-12-28,16,"Гонорари, в тому числі за надані консультаційні послуги","Гонорари, в тому числі за надані консультаційні послуги",382784,Київська обласна організація,39495516,Київська область,"оплата за послуги згідно договору ЦИХ № 01/11-2016 від 01,11,2016",26004300956820,current,15810.20,Смольц Сергій Петрович,,фізична особа
ЄС,,84,2016-12-28,2,"Заробітна плата, премії","Заробітна плата, лікарняні, вагітності, відрядження, компенсації",382783,Київська обласна організація,39495516,Київська область,Поповнення рахунку для виплати ЗП,26004300956820,current,3180.30,Червак Олександр Сергійович,,фізична особа
ЄС,,84,2016-12-28,2,"Заробітна плата, премії","Заробітна плата, лікарняні, вагітності, відрядження, компенсації",382782,Київська обласна організація,39495516,Київська область,Поповнення рахунку для виплати ЗП,26004300956820,current,3180.30,Стасюк Олександр Андрійович,,фізична особа
ЄС,,84,2016-12-28,19,"Заробітна плата, премії","Заробітна плата, лікарняні, вагітності, відрядження, компенсації",382781,Київська обласна організація,39495516,Київська область,Поповнення рахунку для виплати ЗП,26004300956820,current,35106.05,Червак Олександр Сергійович,,фізична особа
ЄС,,84,2016-12-28,19,"Заробітна плата, премії","Заробітна плата, лікарняні, вагітності, відрядження, компенсації",382780,Київська обласна організація,39495516,Київська область,Поповнення рахунку для виплати ЗП,26004300956820,current,35106.05,Стасюк Олександр Андрійович,,фізична особа
ЄС,"Київ, вулиця Ковпака, 28",70,2016-12-28,1415605826,Банківські послуги,Інші витрати,382735,Київська міська організація,39154804,Київ,Погашення комісії за РКО. Розрахунок за 2016-12-28. Договір №26008011649608 від 2015-07-22. Без ПДВ. (Вихідний платіж на виплату з\п в національній валюті в операційний час). [0310РБ8163630012],26008011649608,current,2.00,"ПАТ ""Укрсоцбанк""",00039019,юридична особа
ЄС,"Київ, вулиця Ковпака, 28",70,2016-12-28,1415605784,Банківські послуги,Інші витрати,382734,Київська міська організація,39154804,Київ,Погашення комісії за РКО. Розрахунок за 2016-12-28. Договір №26008011649608 від 2015-07-22. Без ПДВ. (Вихідний платіж на виплату з\п в національній валюті в операційний час). [0310PFS163630006],26008011649608,current,2.00,"ПАТ ""Укрсоцбанк""",00039019,юридична особа
ЄС,"Київ, вулиця Ковпака, 28",70,2016-12-28,1415605791,Банківські послуги,Інші витрати,382733,Київська міська організація,39154804,Київ,Погашення комісії за РКО. Розрахунок за 2016-12-28. Договір №26008011649608 від 2015-07-22. Без ПДВ. (Вихідний платіж на виплату з\п в національній валюті в операційний час). [0310PFS163630008],26008011649608,current,2.00,"ПАТ ""Укрсоцбанк""",00039019,юридична особа
ЄС,"Київ, вулиця Ковпака, 28",70,2016-12-28,1415605792,Банківські послуги,Інші витрати,382732,Київська міська організація,39154804,Київ,Погашення комісії за РКО. Розрахунок за 2016-12-28. Договір №26008011649608 від 2015-07-22. Без ПДВ. (Вихідний платіж на виплату з\п в національній валюті в операційний час). Г0310PFS1636300101,26008011649608,current,2.00,"ПАТ ""Укрсоцбанк""",00039019,юридична особа
ЄС,"Київ, вулиця Ковпака, 28",70,2016-12-28,1416228122,Банківські послуги,Інші витрати,382731,Київська міська організація,39154804,Київ,Погашення комісії за РКО. Розрахунок за 2016-12-28. Договір №26008011649608 від 2015-07-22. Без ПДВ. (Вихідний платіж на виплату з\п в національній валюті в операційний час). Г0310PFS1636300021,26008011649608,current,2.00,"ПАТ ""Укрсоцбанк""",00039019,юридична особа
ЄС,"Київ, вулиця Ковпака, 28",70,2016-12-28,1416228051,Банківські послуги,Інші витрати,382730,Київська міська організація,39154804,Київ,Погашення комісії за РКО. Розрахунок за 2016-12-28. Договір №26008011649608 від 2015-07-22. Без ПДВ. (Вихідний платіж на виплату з\п в національній валюті в операційний час).,26008011649608,current,2.00,"ПАТ ""Укрсоцбанк""",00039019,юридична особа
ЄС,"Київ, вулиця Ковпака, 28",70,2016-12-28,1415606050,Банківські послуги,Інші витрати,382729,Київська міська організація,39154804,Київ,Погашення комісії за РКО. Розрахунок за 2016-12-28. Договір №26008011649608 від 2015-07-22. Без ПДВ. (Вихідний платіж на виплату з\п в національній валюті в операційний час). Г0310РБ81636300131,26008011649608,current,2.00,"ПАТ ""Укрсоцбанк""",00039019,юридична особа
ЄС,"Київ, вулиця Ковпака, 28",70,2016-12-28,14156606041,Банківські послуги,Інші витрати,382728,Київська міська організація,39154804,Київ,Погашення комісії за РКО. Розрахунок за 2016-12-28. Договір №26008011649608 від 2015-07-22. Без ПДВ. (Вихідний платіж на виплату з\п в національній валюті в операційний час).,26008011649608,current,2.00,"ПАТ ""Укрсоцбанк""",00039019,юридична особа
ЄС,"Київ, вулиця Ковпака, 28",70,2016-12-28,1415606039,Банківські послуги,Інші витрати,382727,Київська міська організація,39154804,Київ,Погашення комісії за РКО. Розрахунок за 2016-12-28. Договір №26008011649608 від 2015-07-22. Без ПДВ. (Вихідний платіж на виплату з\п в національній валюті в операційний час). [0310PFS163630009],26008011649608,current,2.00,"ПАТ ""Укрсоцбанк""",00039019,юридична особа
ЄС,"Київ, вулиця Ковпака, 28",70,2016-12-28,1415605863,Банківські послуги,Інші витрати,382726,Київська міська організація,39154804,Київ,Погашення комісії за РКО. Розрахунок за 2016-12-28. Договір №26008011649608 від 2015-07-22. Без ПДВ. (Вихідний платіж на виплату з\п в національній валюті в операційний час). Г0310PFS1636300141,26008011649608,current,2.00,"ПАТ ""Укрсоцбанк""",00039019,юридична особа
ЄС,"Київ, вулиця Ковпака, 28",70,2016-12-28,1415605847,Банківські послуги,Інші витрати,382725,Київська міська організація,39154804,Київ,Погашення комісії за РКО. Розрахунок за 2016-12-28. Договір №26008011649608 від 2015-07-22. Без ПДВ. (Вихідний платіж на виплату з\п в національній валюті в операційний час). [0310PFS163630008],26008011649608,current,2.00,"ПАТ ""Укрсоцбанк""",00039019,юридична особа
ЄС,"Київ, вулиця Ковпака, 28",70,2016-12-28,1415605832,Банківські послуги,Інші витрати,382724,Київська міська організація,39154804,Київ,Погашення комісії за РКО. Розрахунок за 2016-12-28. Договір №26008011649608 від 2015-07-22. Без ПДВ. (Вихідний платіж на виплату з\п в національній валюті в операційний час). Г0310РБ81636300111,26008011649608,current,2.00,"ПАТ ""Укрсоцбанк""",00039019,юридична особа
ЄС,"Київ, вулиця Ковпака, 28",70,2016-12-28,,Банківські послуги,Інші витрати,382723,Київська міська організація,39154804,Київ,Погашення комісії за РКО. Договір №26008011649608 від 2015-07-22. Без ПДВ. (Вихідний платіж юр. особи в СЕП в гривні в операційний час) за 2016-12-28,26008011649608,current,18.00,"ПАТ ""Укрсоцбанк""",00039019,юридична особа
ЄС,"Київ, вулиця Ковпака, 28",70,2016-12-28,1415605800,Банківські послуги,Інші витрати,382722,Київська міська організація,39154804,Київ,Погашення комісії за РКО. Розрахунок за 2016-12-28. Договір №26008011649608 від 2015-07-22. Без ПДВ. (Вихідний платіж на виплату з\п в національній валюті в операційний час). [031OPFS163630003],26008011649608,current,2.00,"ПАТ ""Укрсоцбанк""",00039019,юридична особа
ЄС,"Київ, вулиця Ковпака, 28",70,2016-12-28,1415605799,Банківські послуги,Інші витрати,382721,Київська міська організація,39154804,Київ,Погашення комісії за РКО. Розрахунок за 2016-12-28. Договір №26008011649608 від 2015-07-22. Без ПДВ. (Вихідний платіж на виплату з\п в національній валюті в операційний час). [031OPFS163630004,26008011649608,current,2.00,"ПАТ ""Укрсоцбанк""",00039019,юридична особа
ЄС,"Київ, вулиця Ковпака, 28",70,2016-12-28,1415605794,Банківські послуги,Інші витрати,382720,Київська міська організація,39154804,Київ,Погашення комісії за РКО. Розрахунок за 2016-12-28. Договір №26008011649608 від 2015-07-22. Без ПДВ. (Вихідний платіж на виплату з\п в національній валюті в операційний час). [031OPFS163630003],26008011649608,current,2.00,"ПАТ ""Укрсоцбанк""",00039019,юридична особа
ЄС,"Київ, вулиця Челябінська, 9Г",79,2016-12-28,1406,"Оренда будинків і приміщень та експлуатаційні витрати (прибирання, страхування орендованих будинків, охорона, сигналізація, ремонт, вивіз сміття, тощо)",Оренда нерухомості,382719,Київська міська організація,39154804,Київ,Оплата за оренду зг. дог. №95/1 від 2015-05-26р. у т.ч. ПДВ 20.00 % - 0.20 UAH,26008011649608,current,1.20,"КП ""Керуюча компанія з обслуговування житлового фонду Дніпровського району м.Києва""",39606435,юридична особа
ЄС,"Київ, вулиця Челябінська, 9Г",79,2016-12-28,1407,"Оренда будинків і приміщень та експлуатаційні витрати (прибирання, страхування орендованих будинків, охорона, сигналізація, ремонт, вивіз сміття, тощо)",Оренда нерухомості,382718,Київська міська організація,39154804,Київ,Оплата за утримання прибуд. територій зг. Дог. № 919 від 2015-06-01р.,26008011649608,current,190.18,"КП ""Керуюча компанія з обслуговування житлового фонду Дніпровського району м.Києва""",39606435,юридична особа
ЄС,"Київ, вулиця Панаса Мирного, 28, 20",79,2016-12-28,1408,"Оренда будинків і приміщень та експлуатаційні витрати (прибирання, страхування орендованих будинків, охорона, сигналізація, ремонт, вивіз сміття, тощо)",Оренда нерухомості,382717,Київська міська організація,39154804,Київ,Оплата за комунальні послуги зг. Дог. №420366/7юр від 2016-04-27 року у т.ч. ПДВ 20.00 % - 976.47 UAH,26008011649608,current,5858.83,ТОВ “Євро- Реконструкція”,37739041,юридична особа
ЄС,"Київ, вулиця Ковпака, 28",70,2016-12-28,1404,Банківські послуги,Інші витрати,382716,Київська міська організація,39154804,Київ,"перерахування грошових коштів на СКР для виплати Зар.пл. за 12.2016р.ʼ, згідно договору N 301.5-002/3188 від 2016-03-04 р.; Без ПДВ",26008011649608,current,2183.46,"ПАТ ""Укрсоцбанк""",00039019,юридична особа
ЄС,"Київ, вулиця Райдужна, 13Б",79,2016-12-28,1397,"Оренда будинків і приміщень та експлуатаційні витрати (прибирання, страхування орендованих будинків, охорона, сигналізація, ремонт, вивіз сміття, тощо)",Оренда нерухомості,382715,Київська міська організація,39154804,Київ,Оплата за оренду приміщення зг. Дог. №14-16-23 від 2016-12-01р. Без ПДВ.,26008011649608,current,13600.00,"ТОВ ""ЛІЗИНГ-КРЕДИТ""",30973472,юридична особа
ЄС,"Київ, вулиця Райдужна, 13Б",79,2016-12-28,1396,"Оренда будинків і приміщень та експлуатаційні витрати (прибирання, страхування орендованих будинків, охорона, сигналізація, ремонт, вивіз сміття, тощо)",Оренда нерухомості,382714,Київська міська організація,39154804,Київ,Компенсація за комунальні послуги зг. Дог.14-16-23 від 2016-12-01р.Без ПДВ.,26008011649608,current,1806.67,"ТОВ ""ЛІЗИНГ-КРЕДИТ""",30973472,юридична особа
ЄС,"Київ, вулиця Межигірська, 25",63,2016-12-28,1401,Податок на доходи,Податкові платежі,382713,Київська міська організація,39154804,Київ,"*;101;39154804;Под. на дох. фіз.осіб, що сплачується под.агентами, із дох. плат. інших. ніж зар. плата за 12.2016 року.;Код платежу 11010400; Без ПДВ.",26008011649608,current,894.60,УДКСУ у Подільському районі м. Києва,37975298,юридична особа
ЄС,"Київ, вулиця Межигірська, 25",61,2016-12-28,1399,Військовий збір,Податкові платежі,382712,Київська міська організація,39154804,Київ,*;101;39154804; Військовий збір що спл. под.агент. з доходу плат. ін.ніж з.пл. за 12.2016 р. Код платежу 11011000. Без ПДВ.,26008011649608,current,450.00,УДКСУ у Подільському районі м. Києва,37975298,юридична особа
ЄС,"Київ, вулиця Межигірська, 25",63,2016-12-28,1400,Податок на доходи,Податкові платежі,382711,Київська міська організація,39154804,Київ,"*;101;39154804;Под. на дох. фіз.осіб, що сплачується под.агентами, із дох. плат. інших. ніж зар. плата за 12.2016 року.;Код платежу 11010400; Без ПДВ.",26008011649608,current,5400.00,УДКСУ у Подільському районі м. Києва,37975298,юридична особа
ЄС,"Київ, вулиця Межигірська, 25",61,2016-12-28,1402,Військовий збір,Податкові платежі,382710,Київська міська організація,39154804,Київ,*;101;39154804; Військовий збір що спл. под.агент. з доходу плат. ін.ніж з.пл. за 12.2016 р. Код платежу 11011000. Без ПДВ.,26008011649608,current,74.55,УДКСУ у Подільському районі м. Києва,37975298,юридична особа
ЄС,Київ,82,2016-12-28,1371,"Гонорари, в тому числі за надані консультаційні послуги","Гонорари, в тому числі за надані консультаційні послуги",382456,Київська міська організація,39154804,Київ,"4149625812984712,Винагорода по договору ЦПХ за 12.2016р. Боголєй Олександр Олександровтч.,3087923597",26008011649608,current,8702.05,Боголей Олександр Олександрович,,фізична особа
ЄС,Київ,82,2016-12-28,1370,"Гонорари, в тому числі за надані консультаційні послуги","Гонорари, в тому числі за надані консультаційні послуги",382455,Київська міська організація,39154804,Київ,"5168755520957024,Винагорода по договору ЦПХ за 12.2016р. Майоров Євгеній Валентинович.,3257322093",26008011649608,current,8702.05,Майоров Євгеній Валентинович,,фізична особа
ЄС,Київ,82,2016-12-28,1372,"Гонорари, в тому числі за надані консультаційні послуги","Гонорари, в тому числі за надані консультаційні послуги",382454,Київська міська організація,39154804,Київ,"4149625806654123,Винагорода по договору ЦПХ за 12.2016р.Слонецький Дмитро Андрійович.,3316315518",26008011649608,current,8702.05,Слонецький Дмитро Андрійович,,фізична особа
ЄС,"Київська обл., Києво-Святошинський район, Гатне",82,2016-12-28,1373,"Гонорари, в тому числі за надані консультаційні послуги","Гонорари, в тому числі за надані консультаційні послуги",382453,Київська міська організація,39154804,Київ,"4149497818851760,Винагорода по договору ЦПХ за 12.2016р. Прохорчук Тетяна В""ячеславівна.,3065420083",26008011649608,current,8702.05,Прохорчук Тетяна Вʼячеславівна,,фізична особа
ЄС,Київ,82,2016-12-28,1374,"Гонорари, в тому числі за надані консультаційні послуги","Гонорари, в тому числі за надані консультаційні послуги",382452,Київська міська організація,39154804,Київ,"5168757306373202,Винагорода по договору ЦПХ за 12.2016р.Науменко Антон Вікторович.,3327712650",26008011649608,current,8702.05,Науменко Антон Вікторович,,фізична особа
ЄС,Київ,82,2016-12-28,1375,"Гонорари, в тому числі за надані консультаційні послуги","Гонорари, в тому числі за надані консультаційні послуги",382451,Київська міська організація,39154804,Київ,"5168755609576141,Винагорода по договору ЦПХ за 12.2016р.Большаков Андрій Олександрович.,2590011010",26008011649608,current,8702.05,Большаков Андрій Олександрович,,фізична особа
ЄС,Київ,82,2016-12-28,1377,"Гонорари, в тому числі за надані консультаційні послуги","Гонорари, в тому числі за надані консультаційні послуги",382450,Київська міська організація,39154804,Київ,"Жигарева Тетяна Іванівна,2612408181, 4149437866142472,Винагорода по договору ЦПХ за 12.2016р..",26008011649608,current,8702.05,Жигарева Тетяна Іванівна,,фізична особа
ЄС,Київ,82,2016-12-28,1378,"Гонорари, в тому числі за надані консультаційні послуги","Гонорари, в тому числі за надані консультаційні послуги",382449,Київська міська організація,39154804,Київ,"5168742019312812,Винагорода по договору ЦПХ за 12.2016р., Шиндеровська Олена Анатоліївна.,2682413807",26008011649608,current,8702.05,Шиндеровська Олена Анатоліївна,,фізична особа
ЄС,Київ,82,2016-12-28,1379,"Гонорари, в тому числі за надані консультаційні послуги","Гонорари, в тому числі за надані консультаційні послуги",382448,Київська міська організація,39154804,Київ,"Винагорода по договору ЦПХ за 12.2016р. Марчук Олена Михайлівна, номер картк 26252000197117, ід.код 2843501306",26008011649608,current,8702.05,Марчук Олена Михайлівна,,фізична особа
ЄС,Київ,82,2016-12-28,1380,"Гонорари, в тому числі за надані консультаційні послуги","Гонорари, в тому числі за надані консультаційні послуги",382447,Київська міська організація,39154804,Київ,Винагорода по договору ЦПХ за грудень 2016 року зг. дог. №12 від 2016-11-01 року. Податки та збори сплачено. Без ПДВ.,26008011649608,current,6975.32,Магденко Андрій Сергійович,,фізична особа
ЄС,"Житомирська область, Новоград-Волинський район, Майстрова Воля",82,2016-12-28,1381,"Гонорари, в тому числі за надані консультаційні послуги","Гонорари, в тому числі за надані консультаційні послуги",382446,Київська міська організація,39154804,Київ,Винагорода по договору ЦПХ за грудень 2016 року зг.дог. .№13 від 2016-11-01 року. Податки та збори сплачено. Без ПДВ.,26008011649608,current,4000.85,Сулима Микола Васильович,,фізична особа
ЄС,"Кіровоградська область, Гайворонський район, Гайворон",82,2016-12-28,1395,"Гонорари, в тому числі за надані консультаційні послуги","Гонорари, в тому числі за надані консультаційні послуги",382445,Київська міська організація,39154804,Київ,"Винагорода по договору ЦПХ за 11.2016р.Івашко Ауріка Василівна.,3115919349",26008011649608,current,8702.05,Івашко Ауріка Василівна,,фізична особа
ЄС,Київ,82,2016-12-28,1382,"Гонорари, в тому числі за надані консультаційні послуги","Гонорари, в тому числі за надані консультаційні послуги",382444,Київська міська організація,39154804,Київ,"5168/5/21129/272,Винагорода по договору ЦПХ за 12.2016р. зг.дог.11 від 2016-11-01р. Магденко Валентина Андріївна",26008011649608,current,4000.85,Магденко Валентина Андріївна,,фізична особа
ЄС,Київ,79,2016-12-28,1398,"Оренда будинків і приміщень та експлуатаційні витрати (прибирання, страхування орендованих будинків, охорона, сигналізація, ремонт, вивіз сміття, тощо)",Оренда нерухомості,382443,Київська міська організація,39154804,Київ,Оплата за оренду приміщення за грудень 2016 зг.дог.№01-11/16 від 01.11.16р. Без ПДВ.,26008011649608,current,24150.00,Мещеряков Валерій Валентинович,,фізична особа
ЄС,Київ,77,2016-12-28,1405,"Оренда, ремонт та обслуговування автомобілів","Оренда, ремонт та обслуговування автомобілів",382442,Київська міська організація,39154804,Київ,Оплата за оренду авто за 12.2016 року.зг.дог. №1/12 від 2016-10-12 року. Податки та збори сплачено.,26008011649608,current,4000.85,Магденко Андрій Сергійович,,фізична особа
ЄС,Київ,84,2016-12-28,21,"Заробітна плата, премії","Заробітна плата, лікарняні, вагітності, відрядження, компенсації",382441,Київська міська організація,39154804,Київ,"Перерахування грошових коштів на скр для виплати ʼЗар.пл. за 12.2016р.ʼ, згідно договору N 301.5-002/3188 від 2016-03-04 р.; Без ПДВ",26008011649608,current,15456.00,Савранська Валентина Олександрівна,,фізична особа
ЄС,"Київська обл., Бориспільський район, Іванків",84,2016-12-28,21,"Заробітна плата, премії","Заробітна плата, лікарняні, вагітності, відрядження, компенсації",382440,Київська міська організація,39154804,Київ,"Перерахування грошових коштів на скр для виплати ʼЗар.пл. за 12.2016р.ʼ, згідно договору N 301.5-002/3188 від 2016-03-04 р.; Без",26008011649608,current,34293.00,Сорокін Максим Ігорович,,фізична особа
ЄС,"Житомирська область, Новоград-Волинський район, Анета",84,2016-12-28,21,"Заробітна плата, премії","Заробітна плата, лікарняні, вагітності, відрядження, компенсації",382439,Київська міська організація,39154804,Київ,"Перерахування грошових коштів на скр для виплати ʼЗар.пл. за 12.2016р.ʼ, згідно договору N 301.5-002/3188 від 2016-03-04 р.; Без ПДВ",26008011649608,current,21574.00,Гончарук Ігор Юрійович,,фізична особа
ЄС,Київ,84,2016-12-28,21,"Заробітна плата, премії","Заробітна плата, лікарняні, вагітності, відрядження, компенсації",382438,Київська міська організація,39154804,Київ,"Перерахування грошових коштів на скр для виплати ʼЗар.пл. за 12.2016р.ʼ, згідно договору N 301.5-002/3188 від 2016-03-04 р.; Без",26008011649608,current,34615.00,Петрова Тетяна Дмитрівна,,фізична особа
ЄС,"Львівська область, Львів",84,2016-12-28,21,"Заробітна плата, премії","Заробітна плата, лікарняні, вагітності, відрядження, компенсації",382437,Київська міська організація,39154804,Київ,"Перерахування грошових коштів на скр для виплати ʼЗар.пл. за 12.2016р.ʼ, згідно договору N 301.5-002/3188 від 2016-03-04 р.; Без ПДВ",26008011649608,current,25116.00,Кузик Євген Станіславович,,фізична особа
ЄС,"Рівненська область, Вараш",84,2016-12-28,21,"Заробітна плата, премії","Заробітна плата, лікарняні, вагітності, відрядження, компенсації",382436,Київська міська організація,39154804,Київ,"Перерахування грошових коштів на скр для виплати ʼЗар.пл. за 12.2016р.ʼ, згідно договору N 301.5-002/3188 від 2016-03-04 р.; Без",26008011649608,current,34615.00,Коренга Ірина Анатоліївна,,фізична особа
ЄС,Київ,84,2016-12-28,21,"Заробітна плата, премії","Заробітна плата, лікарняні, вагітності, відрядження, компенсації",382435,Київська міська організація,39154804,Київ,"Перерахування грошових коштів на скр для виплати ʼЗар.пл. за 12.2016р.ʼ, згідно договору N 301.5-002/3188 від 2016-03-04 р.; Без ПДВ",26008011649608,current,15496.25,Шейко Вікторія Володимирівна,,фізична особа
ЄС,Київ,84,2016-12-28,21,"Заробітна плата, премії","Заробітна плата, лікарняні, вагітності, відрядження, компенсації",382434,Київська міська організація,39154804,Київ,"Перерахування грошових коштів на скр для виплати ʼЗар.пл. за 12.2016р.ʼ, згідно договору N 301.5-002/3188 від 2016-03-04 р.; Без",26008011649608,current,21574.00,Олексюк Богдан Миколайович,,фізична особа
ЄС,Київ,84,2016-12-28,21,"Заробітна плата, премії","Заробітна плата, лікарняні, вагітності, відрядження, компенсації",382433,Київська міська організація,39154804,Київ,"Перерахування грошових коштів на скр для виплати ʼЗар.пл. за 12.2016р.ʼ, згідно договору N 301.5-002/3188 від 2016-03-04 р.; Без ПДВ",26008011649608,current,19199.25,Сушко Анна Олександрівна,,фізична особа
ЄС,Київ,84,2016-12-28,21,"Заробітна плата, премії","Заробітна плата, лікарняні, вагітності, відрядження, компенсації",382432,Київська міська організація,39154804,Київ,"Перерахування грошових коштів на скр для виплати ʼЗар.пл. за 12.2016р.ʼ, згідно договору N 301.5-002/3188 від 2016-03-04 р.; Без",26008011649608,current,22137.50,Синєгуб Руслан Петрович,,фізична особа
ЄС,Київ,84,2016-12-28,21,"Заробітна плата, премії","Заробітна плата, лікарняні, вагітності, відрядження, компенсації",382431,Київська міська організація,39154804,Київ,"Перерахування грошових коштів на скр для виплати ʼЗар.пл. за 12.2016р.ʼ, згідно договору N 301.5-002/3188 від 2016-03-04 р.; Без ПДВ",26008011649608,current,34615.00,Ахмедов Заур Гахраманович,,фізична особа
ЄС,Київ,84,2016-12-28,21,"Заробітна плата, премії","Заробітна плата, лікарняні, вагітності, відрядження, компенсації",382430,Київська міська організація,39154804,Київ,"Перерахування грошових коштів на скр для виплати ʼЗар.пл. за 12.2016р.ʼ, згідно договору N 301.5-002/3188 від 2016-03-04 р.; Без",26008011649608,current,62186.25,Тарасюк Павло Ігорович,,фізична особа
ЄС,Київ,84,2016-12-28,21,"Заробітна плата, премії","Заробітна плата, лікарняні, вагітності, відрядження, компенсації",382429,Київська міська організація,39154804,Київ,"Перерахування грошових коштів на скр для виплати ʼЗар.пл. за 12.2016р.ʼ, згідно договору N 301.5-002/3188 від 2016-03-04 р.; Без ПДВ",26008011649608,current,5071.50,Кєнжебаєва Алмагуль Абдісаметівна,,фізична особа
ЄС,Київ,84,2016-12-28,21,"Заробітна плата, премії","Заробітна плата, лікарняні, вагітності, відрядження, компенсації",382428,Київська міська організація,39154804,Київ,"Перерахування грошових коштів на скр для виплати ʼЗар.пл. за 12.2016р.ʼ, згідно договору N 301.5-002/3188 від 2016-03-04 р.; Без ПДВ",26008011649608,current,25116.00,Довжук Ігор Валентинович,,фізична особа
ЄС,"Черкаська область, Тальнівський район, Онопріївка",84,2016-12-28,21,"Заробітна плата, премії","Заробітна плата, лікарняні, вагітності, відрядження, компенсації",382427,Київська міська організація,39154804,Київ,"Перерахування грошових коштів на скр для виплати ʼЗар.пл. за 12.2016р.ʼ, згідно договору N 301.5-002/3188 від 2016-03-04 р.; Без ПДВ",26008011649608,current,15456.00,Серветник Володимир Віталійович,,фізична особа
ЄС,Київ,84,2016-12-28,21,"Заробітна плата, премії","Заробітна плата, лікарняні, вагітності, відрядження, компенсації",382426,Київська міська організація,39154804,Київ,"Перерахування грошових коштів на скр для виплати ʼЗар.пл. за 12.2016р.ʼ, згідно договору N 301.5-002/3188 від 2016-03-04 р.; Без ПДВ",26008011649608,current,15556.62,Алексюк Михайло Вікторович,,фізична особа
ЄС,"Одеська область, Одеса",84,2016-12-28,21,"Заробітна плата, премії","Заробітна плата, лікарняні, вагітності, відрядження, компенсації",382425,Київська міська організація,39154804,Київ,"Перерахування грошових коштів на скр для виплати ʼЗар.пл. за 12.2016р.ʼ, згідно договору N 301.5-002/3188 від 2016-03-04 р.; Без ПДВ",26008011649608,current,34615.00,Гуцол Руслан Валерійович,,фізична особа
ЄС,"Запорізька область, Запоріжжя, проспект Моторобудівників, 15",79,2016-12-28,58,"Оренда будинків і приміщень та експлуатаційні витрати (прибирання, страхування орендованих будинків, охорона, сигналізація, ремонт, вивіз сміття, тощо)",Оренда нерухомості,382043,Запорізька обласна організація,39434317,Запорізька область,Оренда приміщення,2600501759900,current,4570.62,"ПАТ ""Мотор Січ""",14307794,юридична особа
ЄС,"Запорізька область, Приморський район, Приморськ, вулиця Центральна, 7",59,2016-12-28,3,Грошова застава,Грошова застава,382042,Запорізька обласна організація,39434317,Запорізька область,Грошова застава,2600501759900,current,718.00,Приморська МВК,34126945,юридична особа
ЄС,"Запорізька область, Запоріжжя",63,2016-12-28,57,Податок на доходи,Податкові платежі,382040,Запорізька обласна організація,39434317,Запорізька область,податки заробітної плати,2600501759900,current,26171.20,Запорізька ОДПІ ГУ ДФС у Запорізькій області,39488184,юридична особа
ЄС,"Запорізька область, Запоріжжя, вулиця Олександрівська, 7",63,2016-12-28,56,Податок на доходи,Податкові платежі,382039,Запорізька обласна організація,39434317,Запорізька область,податки заробітної плати,2600501759900,current,23536.80,УДКСУ в Олександрівському районі м. Запоріжжя,38025440,юридична особа
ЄС,"Запорізька область, Запоріжжя, вулиця Олександрівська, 7",63,2016-12-28,56,Податок на доходи,Податкові платежі,382038,Запорізька обласна організація,39434317,Запорізька область,податки заробітної плати,2600501759900,current,1961.41,УДКСУ в Олександрівському районі м. Запоріжжя,38025440,юридична особа
ЄС,"Київ, вулиця Михайла Грушевського, 1Д",79,2016-12-28,54,"Оренда будинків і приміщень та експлуатаційні витрати (прибирання, страхування орендованих будинків, охорона, сигналізація, ремонт, вивіз сміття, тощо)",Оренда нерухомості,382037,Запорізька обласна організація,39434317,Запорізька область,Оренда приміщення,2600501759900,current,1791.24,"ПАТ КБ ""Приватбанк""",14360570,юридична особа
ЄС,"Київ, вулиця Антоновича, 127",70,2016-12-28,"970479,971 033,971036 ,971038,25 17,994808",Банківські послуги,Інші витрати,382036,Запорізька обласна організація,39434317,Запорізька область,ком.винагорода за розрах.обсуг пот.рахунку,2600501759900,current,1617.81,"АТ ""Укрексімбанк""",00032112,юридична особа
ЄС,"Запорізька область, Запоріжжя",84,2016-12-28,"1,2","Заробітна плата, премії","Заробітна плата, лікарняні, вагітності, відрядження, компенсації",381923,Запорізька обласна організація,39434317,Запорізька область,Заробітна плата,2600501759900,current,13660.85,Цвяткова Тетяна Іванівна,,фізична особа
ЄС,"Запорізька область, Запоріжжя",84,2016-12-28,"1,2","Заробітна плата, премії","Заробітна плата, лікарняні, вагітності, відрядження, компенсації",381922,Запорізька обласна організація,39434317,Запорізька область,Заробітна плата,2600501759900,current,12465.42,Світіч Наталія Олексіївна,,фізична особа
ЄС,"Запорізька область, Запоріжжя",84,2016-12-28,"1,2","Заробітна плата, премії","Заробітна плата, лікарняні, вагітності, відрядження, компенсації",381921,Запорізька обласна організація,39434317,Запорізька область,Заробітна плата,2600501759900,current,15146.01,Дюміна Наталя Валеріївна,,фізична особа
ЄС,Запорізька область,84,2016-12-28,"1,2","Заробітна плата, премії","Заробітна плата, лікарняні, вагітності, відрядження, компенсації",381920,Запорізька обласна організація,39434317,Запорізька область,Заробітна плата,2600501759900,current,23296.70,Гудименко Юрій Володимирович,,фізична особа
ЄС,"Запорізька область, Запоріжжя",84,2016-12-28,"1,2","Заробітна плата, премії","Заробітна плата, лікарняні, вагітності, відрядження, компенсації",381919,Запорізька обласна організація,39434317,Запорізька область,Заробітна плата,2600501759900,current,18269.47,Левченко Юлія Сергіївна,,фізична особа
ЄС,"Запорізька область, Новомиколаївський район, Новомиколаївка",84,2016-12-28,"1,2","Заробітна плата, премії","Заробітна плата, лікарняні, вагітності, відрядження, компенсації",381918,Запорізька обласна організація,39434317,Запорізька область,Заробітна плата,2600501759900,current,18329.85,Лишенко Сергій Сергійович,,фізична особа
ЄС,"Запорізька область, Запоріжжя",84,2016-12-28,"1,2","Заробітна плата, премії","Заробітна плата, лікарняні, вагітності, відрядження, компенсації",381917,Запорізька обласна організація,39434317,Запорізька область,Заробітна плата,2600501759900,current,53613.00,Чернов Олег Валерійович,,фізична особа
ЄС,"Житомирська область, Новоград-Волинський, вулиця Варшавська, 1",79,2016-12-28,193,"Оренда будинків і приміщень та експлуатаційні витрати (прибирання, страхування орендованих будинків, охорона, сигналізація, ремонт, вивіз сміття, тощо)",Оренда нерухомості,381615,Житомирська обласна організація,39682762,Житомирська область,Оренда приміщення,26000300890814,current,8000.00,"ПП ""Ремпобуттехні касервіс""",31185018,юридична особа
ЄС,"Житомирська область, Андрушівський район, Андрушівка, вулиця Леніна, 17",79,2016-12-28,192,"Оренда будинків і приміщень та експлуатаційні витрати (прибирання, страхування орендованих будинків, охорона, сигналізація, ремонт, вивіз сміття, тощо)",Оренда нерухомості,381614,Житомирська обласна організація,39682762,Житомирська область,Оренда приміщення,26000300890814,current,2000.00,Андрушівська райспоживспілка,01749266,юридична особа
ЄС,"Житомирська область, Брусилівський район, Брусилів",79,2016-12-28,190,"Оренда будинків і приміщень та експлуатаційні витрати (прибирання, страхування орендованих будинків, охорона, сигналізація, ремонт, вивіз сміття, тощо)",Оренда нерухомості,381613,Житомирська обласна організація,39682762,Житомирська область,Оренда приміщення,26000300890814,current,4000.00,"СК ""Брусилів-Агро",32101489,юридична особа
ЄС,"Житомирська область, Новоград-Волинський, вулиця Ковальського, 4, 46",79,2016-12-28,189,"Оренда будинків і приміщень та експлуатаційні витрати (прибирання, страхування орендованих будинків, охорона, сигналізація, ремонт, вивіз сміття, тощо)",Оренда нерухомості,381612,Житомирська обласна організація,39682762,Житомирська область,Оренда приміщення,26000300890814,current,8000.00,Ващенко Олег Миколайович,2653119114,фізична особа
ЄС,"Житомирська область, Ємільчинський район, Ємільчине",79,2016-12-28,188,"Оренда будинків і приміщень та експлуатаційні витрати (прибирання, страхування орендованих будинків, охорона, сигналізація, ремонт, вивіз сміття, тощо)",Оренда нерухомості,381611,Житомирська обласна організація,39682762,Житомирська область,Оренда приміщення,26000300890814,current,4000.00,"ПП ""Рембудсервіс""",03583901,юридична особа
ЄС,"Житомирська область, Хорошівський район, Хорошів",79,2016-12-28,187,"Оренда будинків і приміщень та експлуатаційні витрати (прибирання, страхування орендованих будинків, охорона, сигналізація, ремонт, вивіз сміття, тощо)",Оренда нерухомості,381610,Житомирська обласна організація,39682762,Житомирська область,Оренда приміщення,26000300890814,current,2717.00,Володарсько-Волинське районне споживче товариство,01749711,юридична особа
ЄС,"Житомирська область, Коростень, вулиця Шолом-Алейхема, 62",79,2016-12-28,186,"Оренда будинків і приміщень та експлуатаційні витрати (прибирання, страхування орендованих будинків, охорона, сигналізація, ремонт, вивіз сміття, тощо)",Оренда нерухомості,381609,Житомирська обласна організація,39682762,Житомирська область,Оренда приміщення,26000300890814,current,5190.00,"ТОВ ""Охоронне підприємство Дельта""",31650382,юридична особа
ЄС,"Житомирська область, Коростень, вулиця Шолом-Алейхема, 62",79,2016-12-28,185,"Оренда будинків і приміщень та експлуатаційні витрати (прибирання, страхування орендованих будинків, охорона, сигналізація, ремонт, вивіз сміття, тощо)",Оренда нерухомості,381608,Житомирська обласна організація,39682762,Житомирська область,Оренда приміщення,26000300890814,current,1808.00,"ТОВ ""Охоронне підприємство Дельта""",31650382,юридична особа
ЄС,"Запорізька область, Бердянськ, Мелітопольське шосе, 26, 85",52,2016-12-28,106,Інша реклама (без класифікації),Реклама (без класифікації),381496,Донецька обласна організація,39645186,Донецька область,"Проведення рекламної компанії згідно рахунку .№ 11/18/01 Договору №01/09/16Р від 01вересня2016 року, Про надання рекламних послуг за грудень.без ПДВ",26006300913474,current,237440.00,Бойко Світлана Геннадіївна,2930200485,фізична особа
ЄС,"Одеська область, Одеса, вулиця Краснова, 6/1",70,2016-12-28,5555439,Банківські послуги,Інші витрати,381335,Волинська обласна організація,39402400,Волинська область,Оплата користування системою ІБОВ 8 зг. дог. № ВА/1/0203/0004725 від 2015-04-16 за період 01.12.16-31.12.16.,26006010004725,current,75.00,"АБ ""Південний""",20953647,юридична особа
ЄС,"Одеська область, Одеса, вулиця Краснова, 6/1",70,2016-12-28,5555164,Банківські послуги,Інші витрати,381334,Волинська обласна організація,39402400,Волинська область,Оплата ведення рахунку зг. дог. № ВА/1/0203/0004725 від 2015-04-16 року за період 01.12.16-31.12.16.,26006010004725,current,50.00,"АБ ""Південний""",20953647,юридична особа
ЄС,"Одеська область, Одеса, вулиця Краснова, 6/1",70,2016-12-28,5555297,Банківські послуги,Інші витрати,381333,Волинська обласна організація,39402400,Волинська область,Оплата РКО зг. дог. № ВА/1/0203/0004725 від 2015-04-16 за період 01.12.16-31.12.16.,26006010004725,current,66.00,"АБ ""Південний""",20953647,юридична особа
ЄС,"Волинська область, Луцький район, вулиця Рівненська, 42",79,2016-12-28,29,"Оренда будинків і приміщень та експлуатаційні витрати (прибирання, страхування орендованих будинків, охорона, сигналізація, ремонт, вивіз сміття, тощо)",Оренда нерухомості,381332,Волинська обласна організація,39402400,Волинська область,Оплата за оренду приміщень за грудень 2016 р. згідно дог.№6-201/16 від 01.09.16р. в т. ч. в т. ч. ПДВ 20% 1605.31 три..,26006010004725,current,9631.85,"Дочірнє підприємство ""Автоскладальний завод №1"" ПАТ ""Автомобільна компанія ""Богдан моторс""",21752230,юридична особа
ЄС,"Київ, вулиця Лаврська, 16",70,2016-12-28,1902481,Банківські послуги,Інші витрати,381216,Вінницька обласна організація,39508645,Вінницька область,"Комісія за видачу готівки з пот. Рах. Зг. № А35687351 від 2016-12-14договору №7,15-СВА 20.03.15",26003010318161,current,3813.23,"ПАТ ""МІБ""",35810511,юридична особа
ЄС,"Вінницька область, Чечельницький район, Чечельник",84,2016-12-28,чек А35687352,"Заробітна плата, премії","Заробітна плата, лікарняні, вагітності, відрядження, компенсації",381111,Вінницька обласна організація,39508645,Вінницька область,Заробітна плата 2 пол грудня платіжна відомість НЗП №000006,26003010318161,current,3448.69,Логункова Олена Петрівна,,фізична особа
ЄС,Вінницька область,84,2016-12-28,чек А35687352,"Заробітна плата, премії","Заробітна плата, лікарняні, вагітності, відрядження, компенсації",381110,Вінницька обласна організація,39508645,Вінницька область,Заробітна плата 2 пол грудня платіжна відомість НЗП №000006,26003010318161,current,4857.44,Навроцька Наталія Яківна,,фізична особа
ЄС,Вінницька область,84,2016-12-28,чек А35687352,"Заробітна плата, премії","Заробітна плата, лікарняні, вагітності, відрядження, компенсації",381109,Вінницька обласна організація,39508645,Вінницька область,Заробітна плата 2 пол грудня платіжна відомість НЗП №000006,26003010318161,current,6064.94,Школьна Людмила Володимирівна,,фізична особа
ЄС,"Вінницька область, Хмільник",84,2016-12-28,чек А35687352,"Заробітна плата, премії","Заробітна плата, лікарняні, вагітності, відрядження, компенсації",381108,Вінницька обласна організація,39508645,Вінницька область,Заробітна плата 2 пол грудня платіжна відомість НЗП №000006,26003010318161,current,6778.46,Крученюк Олександр Васильович,,фізична особа
ЄС,"Вінницька область, Чечельницький район, Чечельник",84,2016-12-28,чек А35687352,"Заробітна плата, премії","Заробітна плата, лікарняні, вагітності, відрядження, компенсації",381107,Вінницька обласна організація,39508645,Вінницька область,Заробітна плата 2 пол грудня платіжна відомість НЗП №000006,26003010318161,current,4162.22,Гук Надія Василівна,,фізична особа
ЄС,Вінницька область,84,2016-12-28,чек А35687352,"Заробітна плата, премії","Заробітна плата, лікарняні, вагітності, відрядження, компенсації",381106,Вінницька обласна організація,39508645,Вінницька область,Заробітна плата 2 пол грудня платіжна відомість НЗП №000006,26003010318161,current,6778.47,Якубовський Анатолій Петрович,,фізична особа
ЄС,"Вінницька область, Теплицький район, Теплик",84,2016-12-28,чек А35687352,"Заробітна плата, премії","Заробітна плата, лікарняні, вагітності, відрядження, компенсації",381105,Вінницька обласна організація,39508645,Вінницька область,Заробітна плата 2 пол грудня платіжна відомість НЗП №000006,26003010318161,current,6375.97,Марцин Вадим Васильович,,фізична особа
ЄС,"Вінницька область, Крижопільський район, Крижопіль",84,2016-12-28,чек А35687352,"Заробітна плата, премії","Заробітна плата, лікарняні, вагітності, відрядження, компенсації",381104,Вінницька обласна організація,39508645,Вінницька область,Заробітна плата 2 пол грудня платіжна відомість НЗП №000006,26003010318161,current,6778.47,Левінсон Юлія Вікторівна,,фізична особа
ЄС,"Вінницька область, Іллінецький район, Іллінці",84,2016-12-28,чек А35687352,"Заробітна плата, премії","Заробітна плата, лікарняні, вагітності, відрядження, компенсації",381103,Вінницька обласна організація,39508645,Вінницька область,Заробітна плата 2 пол грудня платіжна відомість НЗП №000006,26003010318161,current,6146.25,Криган Олена Миколаївна,,фізична особа
ЄС,Вінницька область,84,2016-12-28,чек А35687352,"Заробітна плата, премії","Заробітна плата, лікарняні, вагітності, відрядження, компенсації",381102,Вінницька обласна організація,39508645,Вінницька область,Заробітна плата 2 пол грудня платіжна відомість НЗП №000006,26003010318161,current,12292.50,Журба Олена Григорівна,,фізична особа
ЄС,Вінницька область,84,2016-12-28,чек А35687352,"Заробітна плата, премії","Заробітна плата, лікарняні, вагітності, відрядження, компенсації",381101,Вінницька обласна організація,39508645,Вінницька область,Заробітна плата 2 пол грудня платіжна відомість НЗП №000006,26003010318161,current,3932.50,Хармай Тетяна Іванівна,,фізична особа
ЄС,Вінницька область,84,2016-12-28,чек А35687352,"Заробітна плата, премії","Заробітна плата, лікарняні, вагітності, відрядження, компенсації",381100,Вінницька обласна організація,39508645,Вінницька область,Заробітна плата 2 пол грудня платіжна відомість НЗП №000006,26003010318161,current,13097.50,Пойда Павло Петрович,,фізична особа
ЄС,"Вінницька область, Томашпільський район, Томашпіль, вулиця Івана Франка",84,2016-12-28,чек А35687352,"Заробітна плата, премії","Заробітна плата, лікарняні, вагітності, відрядження, компенсації",381099,Вінницька обласна організація,39508645,Вінницька область,Заробітна плата 2 пол грудня платіжна відомість НЗП №000006,26003010318161,current,3932.50,Крук Марія Семенівна,,фізична особа
ЄС,Вінницька область,84,2016-12-28,чек А35687352,"Заробітна плата, премії","Заробітна плата, лікарняні, вагітності, відрядження, компенсації",381098,Вінницька обласна організація,39508645,Вінницька область,Заробітна плата 2 пол грудня платіжна відомість НЗП №000006,26003010318161,current,11781.25,Гончарук Тетяна Дмитрівна,,фізична особа
ЄС,"Вінницька область, Калинівський район, Калинівка",84,2016-12-28,чек А35687352,"Заробітна плата, премії","Заробітна плата, лікарняні, вагітності, відрядження, компенсації",381097,Вінницька обласна організація,39508645,Вінницька область,Заробітна плата 2 пол грудня платіжна відомість НЗП №000006,26003010318161,current,12292.50,Шатов Віталій Вікторович,,фізична особа
ЄС,"Вінницька область, Могилів-Подільський",84,2016-12-28,чек А35687352,"Заробітна плата, премії","Заробітна плата, лікарняні, вагітності, відрядження, компенсації",381096,Вінницька обласна організація,39508645,Вінницька область,Заробітна плата 2 пол грудня платіжна відомість НЗП №000006,26003010318161,current,6146.25,Корсовська Юлія Вікторівна,,фізична особа
ЄС,Вінницька область,84,2016-12-28,чек А35687352,"Заробітна плата, премії","Заробітна плата, лікарняні, вагітності, відрядження, компенсації",381095,Вінницька обласна організація,39508645,Вінницька область,Заробітна плата 2 пол грудня платіжна відомість НЗП №000006,26003010318161,current,3932.50,Гончар Олена Олександрівна,,фізична особа
ЄС,"Вінницька область, Шаргородський район, Шаргород",84,2016-12-28,чек А35687352,"Заробітна плата, премії","Заробітна плата, лікарняні, вагітності, відрядження, компенсації",381094,Вінницька обласна організація,39508645,Вінницька область,Заробітна плата 2 пол грудня платіжна відомість НЗП №000006,26003010318161,current,13097.50,Саміла Наталія Вікторівна,,фізична особа
ЄС,"Вінницька область, Оратівський район, Оратів",84,2016-12-28,чек А35687352,"Заробітна плата, премії","Заробітна плата, лікарняні, вагітності, відрядження, компенсації",381093,Вінницька обласна організація,39508645,Вінницька область,Заробітна плата 2 пол грудня платіжна відомість НЗП №000006,26003010318161,current,3932.50,Схаб Тетяна Леонідівна,,фізична особа
ЄС,"Вінницька область, Оратівський район, Оратів",84,2016-12-28,чек А35687352,"Заробітна плата, премії","Заробітна плата, лікарняні, вагітності, відрядження, компенсації",381092,Вінницька обласна організація,39508645,Вінницька область,Заробітна плата 2 пол грудня платіжна відомість НЗП №000006,26003010318161,current,11781.25,Найда Віра Миколаївна,,фізична особа
ЄС,Вінницька область,84,2016-12-28,чек А35687352,"Заробітна плата, премії","Заробітна плата, лікарняні, вагітності, відрядження, компенсації",381091,Вінницька обласна організація,39508645,Вінницька область,Заробітна плата 2 пол грудня платіжна відомість НЗП №000006,26003010318161,current,6548.75,Осипенко Галина Василівна,,фізична особа
ЄС,"Вінницька область, Липовецький район, Липовець, вулиця Набережна",84,2016-12-28,чек А35687352,"Заробітна плата, премії","Заробітна плата, лікарняні, вагітності, відрядження, компенсації",381090,Вінницька обласна організація,39508645,Вінницька область,Заробітна плата 2 пол грудня платіжна відомість НЗП №000006,26003010318161,current,11781.25,Остапенко Сергій Володимирович,,фізична особа
ЄС,"Вінницька область, Немирівський район, Немирів",84,2016-12-28,чек А35687352,"Заробітна плата, премії","Заробітна плата, лікарняні, вагітності, відрядження, компенсації",381089,Вінницька обласна організація,39508645,Вінницька область,Заробітна плата 2 пол грудня платіжна відомість НЗП №000006,26003010318161,current,7865.00,Мадіянська Аліна Анатоліївна,,фізична особа
ЄС,"Вінницька область, Тиврівський район, Гнівань",84,2016-12-28,чек А35687352,"Заробітна плата, премії","Заробітна плата, лікарняні, вагітності, відрядження, компенсації",381088,Вінницька обласна організація,39508645,Вінницька область,Заробітна плата 2 пол грудня платіжна відомість НЗП №000006,26003010318161,current,12292.50,Заворітний Олександр Васильович,,фізична особа
ЄС,"Вінницька область, Гайсинський район, Гайсин",84,2016-12-28,чек А35687352,"Заробітна плата, премії","Заробітна плата, лікарняні, вагітності, відрядження, компенсації",381087,Вінницька обласна організація,39508645,Вінницька область,Заробітна плата 2 пол грудня платіжна відомість НЗП №000006,26003010318161,current,11781.25,Оріховська Валентина Іванівна,,фізична особа
ЄС,"Вінницька область, Гайсинський район, Гайсин",84,2016-12-28,чек А35687352,"Заробітна плата, премії","Заробітна плата, лікарняні, вагітності, відрядження, компенсації",381086,Вінницька обласна організація,39508645,Вінницька область,Заробітна плата 2 пол грудня платіжна відомість НЗП №000006,26003010318161,current,3932.50,Чорноморець Тетяна Василівна,,фізична особа
ЄС,Вінницька область,84,2016-12-28,чек А35687352,"Заробітна плата, премії","Заробітна плата, лікарняні, вагітності, відрядження, компенсації",381085,Вінницька обласна організація,39508645,Вінницька область,Заробітна плата 2 пол грудня платіжна відомість НЗП №000006,26003010318161,current,3932.50,Чорна Тетяна Сергіївна,,фізична особа
ЄС,"Вінницька область, Барський район, Бар, вулиця Героїв Майдану, 16",84,2016-12-28,чек А35687352,"Заробітна плата, премії","Заробітна плата, лікарняні, вагітності, відрядження, компенсації",381084,Вінницька обласна організація,39508645,Вінницька область,Заробітна плата 2 пол грудня платіжна відомість НЗП №000006,26003010318161,current,10976.25,Мельник Тетяна Олександрівна,,фізична особа
ЄС,"Вінницька область, Барський район, Гайове",84,2016-12-28,чек А35687352,"Заробітна плата, премії","Заробітна плата, лікарняні, вагітності, відрядження, компенсації",381083,Вінницька обласна організація,39508645,Вінницька область,Заробітна плата 2 пол грудня платіжна відомість НЗП №000006,26003010318161,current,3932.50,Гудзь Віта Олександрівна,,фізична особа
ЄС,"Вінницька область, Літинський район, Літин",84,2016-12-28,чек А35687352,"Заробітна плата, премії","Заробітна плата, лікарняні, вагітності, відрядження, компенсації",381082,Вінницька обласна організація,39508645,Вінницька область,Заробітна плата 2 пол грудня платіжна відомість НЗП №000006,26003010318161,current,5743.75,Чорна Лариса Іванівна,,фізична особа
ЄС,"Вінницька область, Томашпільський район, Томашпіль",84,2016-12-28,чек А35687352,"Заробітна плата, премії","Заробітна плата, лікарняні, вагітності, відрядження, компенсації",381081,Вінницька обласна організація,39508645,Вінницька область,Заробітна плата 2 пол грудня платіжна відомість НЗП №000006,26003010318161,current,11781.25,Купріянова Любов Сергіївна,,фізична особа
ЄС,"Вінницька область, Тульчинський район",84,2016-12-28,чек А35687352,"Заробітна плата, премії","Заробітна плата, лікарняні, вагітності, відрядження, компенсації",381080,Вінницька обласна організація,39508645,Вінницька область,Заробітна плата 2 пол грудня платіжна відомість НЗП №000006,26003010318161,current,11781.25,Швець Олена Вікторівна,,фізична особа
ЄС,"Вінницька область, Козятин",84,2016-12-28,чек А35687352,"Заробітна плата, премії","Заробітна плата, лікарняні, вагітності, відрядження, компенсації",381079,Вінницька обласна організація,39508645,Вінницька область,Заробітна плата 2 пол грудня платіжна відомість НЗП №000006,26003010318161,current,13097.50,Гилун Дмитро Дмитрович,,фізична особа
ЄС,"Вінницька область, Піщанський район, Піщанка",84,2016-12-28,чек А35687352,"Заробітна плата, премії","Заробітна плата, лікарняні, вагітності, відрядження, компенсації",381078,Вінницька обласна організація,39508645,Вінницька область,Заробітна плата 2 пол грудня платіжна відомість НЗП №000006,26003010318161,current,13097.50,Чорноус Валентина Іванівна,,фізична особа
ЄС,"Вінницька область, Мурованокуриловецький район, Рівне",84,2016-12-28,чек А35687352,"Заробітна плата, премії","Заробітна плата, лікарняні, вагітності, відрядження, компенсації",381077,Вінницька обласна організація,39508645,Вінницька область,Заробітна плата 2 пол грудня платіжна відомість НЗП №000006,26003010318161,current,13097.50,Колядич Микола Васильович,,фізична особа
ЄС,"Вінницька область, Ямпільський район, Ямпіль",84,2016-12-28,чек А35687352,"Заробітна плата, премії","Заробітна плата, лікарняні, вагітності, відрядження, компенсації",381076,Вінницька обласна організація,39508645,Вінницька область,Заробітна плата 2 пол грудня платіжна відомість НЗП №000006,26003010318161,current,13097.50,Петровська Лідія Михайлівна,,фізична особа
ЄС,Вінницька область,84,2016-12-28,чек А35687352,"Заробітна плата, премії","Заробітна плата, лікарняні, вагітності, відрядження, компенсації",381075,Вінницька обласна організація,39508645,Вінницька область,Заробітна плата 2 пол грудня платіжна відомість НЗП №000006,26003010318161,current,3932.50,Ніколенко Світлана Петрівна,,фізична особа
ЄС,Вінницька область,84,2016-12-28,чек А35687352,"Заробітна плата, премії","Заробітна плата, лікарняні, вагітності, відрядження, компенсації",381074,Вінницька обласна організація,39508645,Вінницька область,Заробітна плата 2 пол грудня платіжна відомість НЗП №000006,26003010318161,current,13097.50,Осадча Ірина Полікарпівна,,фізична особа
ЄС,"Вінницька область, Крижопільський район, Крижопіль",84,2016-12-28,чек А35687352,"Заробітна плата, премії","Заробітна плата, лікарняні, вагітності, відрядження, компенсації",381073,Вінницька обласна організація,39508645,Вінницька область,Заробітна плата 2 пол грудня платіжна відомість НЗП №000006,26003010318161,current,11781.25,Рибак Світлана Михайлівна,,фізична особа
ЄС,"Вінницька область, Вінниця",84,2016-12-28,чек А35687352,"Заробітна плата, премії","Заробітна плата, лікарняні, вагітності, відрядження, компенсації",381072,Вінницька обласна організація,39508645,Вінницька область,Заробітна плата 2 пол грудня платіжна відомість НЗП №000006,26003010318161,current,18330.00,Гончарук Віталій Степанович,,фізична особа
ЄС,"Вінницька область, Липовецький район, Липовець",84,2016-12-28,чек А35687352,"Заробітна плата, премії","Заробітна плата, лікарняні, вагітності, відрядження, компенсації",381071,Вінницька обласна організація,39508645,Вінницька область,Заробітна плата 2 пол грудня платіжна відомість НЗП №000006,26003010318161,current,3932.50,Бойко Олена Олександрівна,,фізична особа
ЄС,"Вінницька область, Вінниця",84,2016-12-28,чек А35687352,"Заробітна плата, премії","Заробітна плата, лікарняні, вагітності, відрядження, компенсації",381070,Вінницька обласна організація,39508645,Вінницька область,заробітна плата за 2 пол. груденя платіжна відомість НЗП №00005,26003010318161,current,7153.75,Булавенко Євгеній Михайлович,,фізична особа
ЄС,Вінницька область,84,2016-12-28,чек А35687352,"Заробітна плата, премії","Заробітна плата, лікарняні, вагітності, відрядження, компенсації",381069,Вінницька обласна організація,39508645,Вінницька область,заробітна плата за 2 пол. груденя платіжна відомість НЗП №00005,26003010318161,current,7153.75,Гриняк Олександр Вікторович,,фізична особа
ЄС,Вінницька область,84,2016-12-28,чек А35687352,"Заробітна плата, премії","Заробітна плата, лікарняні, вагітності, відрядження, компенсації",381068,Вінницька обласна організація,39508645,Вінницька область,заробітна плата за 2 пол. груденя платіжна відомість НЗП №00005,26003010318161,current,8470.00,Циркун Ольга Михайлівна,,фізична особа
ЄС,"Вінницька область, Літинський район, Літин",84,2016-12-28,чек А35687352,"Заробітна плата, премії","Заробітна плата, лікарняні, вагітності, відрядження, компенсації",381067,Вінницька обласна організація,39508645,Вінницька область,заробітна плата за 2 пол. груденя платіжна відомість НЗП №00005,26003010318161,current,9680.00,Шевчук Світлана Володимирівна,,фізична особа
ЄС,"Вінницька область, Вінниця",84,2016-12-28,чек А35687352,"Заробітна плата, премії","Заробітна плата, лікарняні, вагітності, відрядження, компенсації",381066,Вінницька обласна організація,39508645,Вінницька область,заробітна плата за 2 пол. груденя платіжна відомість НЗП №00005,26003010318161,current,23972.50,Кобринчук Марія Володимирівна,,фізична особа
ЄС,"Вінницька область, Вінниця",84,2016-12-28,чек А35687352,"Заробітна плата, премії","Заробітна плата, лікарняні, вагітності, відрядження, компенсації",381065,Вінницька обласна організація,39508645,Вінницька область,заробітна плата за 2 пол. груденя платіжна відомість НЗП №00005,26003010318161,current,27192.50,Чабан Олена Ігорівна,,фізична особа
ЄС,Вінницька область,84,2016-12-28,чек А35687352,"Заробітна плата, премії","Заробітна плата, лікарняні, вагітності, відрядження, компенсації",381064,Вінницька обласна організація,39508645,Вінницька область,заробітна плата за 2 пол. груденя платіжна відомість НЗП №00005,26003010318161,current,29902.50,Молодзієвська Ольга Іванівна,,фізична особа
ЄС,"Вінницька область, Іллінецький район, Іллінці",84,2016-12-28,чек А35687352,"Заробітна плата, премії","Заробітна плата, лікарняні, вагітності, відрядження, компенсації",381063,Вінницька обласна організація,39508645,Вінницька область,Заробітна плата за 1 полов.груденя платіжна відомість НЗП 000004,26003010318161,current,1300.00,Криган Олена Миколаївна,,фізична особа
ЄС,Вінницька область,84,2016-12-28,чек А35687352,"Заробітна плата, премії","Заробітна плата, лікарняні, вагітності, відрядження, компенсації",381062,Вінницька обласна організація,39508645,Вінницька область,Заробітна плата за 1 полов.груденя платіжна відомість НЗП 000004,26003010318161,current,2600.00,Журба Олена Григорівна,,фізична особа
ЄС,Вінницька область,84,2016-12-28,чек А35687352,"Заробітна плата, премії","Заробітна плата, лікарняні, вагітності, відрядження, компенсації",381061,Вінницька обласна організація,39508645,Вінницька область,Заробітна плата за 1 полов.груденя платіжна відомість НЗП 000004,26003010318161,current,1300.00,Хармай Тетяна Іванівна,,фізична особа
ЄС,Вінницька область,84,2016-12-28,чек А35687352,"Заробітна плата, премії","Заробітна плата, лікарняні, вагітності, відрядження, компенсації",381060,Вінницька обласна організація,39508645,Вінницька область,Заробітна плата за 1 полов.груденя платіжна відомість НЗП 000004,26003010318161,current,2600.00,Пойда Павло Петрович,,фізична особа
ЄС,"Вінницька область, Томашпільський район, Томашпіль, вулиця Івана Франка",84,2016-12-28,чек А35687352,"Заробітна плата, премії","Заробітна плата, лікарняні, вагітності, відрядження, компенсації",381059,Вінницька обласна організація,39508645,Вінницька область,Заробітна плата за 1 полов.груденя платіжна відомість НЗП 000004,26003010318161,current,1300.00,Крук Марія Семенівна,,фізична особа
ЄС,Вінницька область,84,2016-12-28,чек А35687352,"Заробітна плата, премії","Заробітна плата, лікарняні, вагітності, відрядження, компенсації",381058,Вінницька обласна організація,39508645,Вінницька область,Заробітна плата за 1 полов.груденя платіжна відомість НЗП 000004,26003010318161,current,1300.00,Гончарук Тетяна Дмитрівна,,фізична особа
ЄС,"Вінницька область, Калинівський район, Калинівка",84,2016-12-28,чек А35687352,"Заробітна плата, премії","Заробітна плата, лікарняні, вагітності, відрядження, компенсації",381057,Вінницька обласна організація,39508645,Вінницька область,Заробітна плата за 1 полов.груденя платіжна відомість НЗП 000004,26003010318161,current,2600.00,Шатов Віталій Вікторович,,фізична особа
ЄС,"Вінницька область, Могилів-Подільський",84,2016-12-28,чек А35687352,"Заробітна плата, премії","Заробітна плата, лікарняні, вагітності, відрядження, компенсації",381056,Вінницька обласна організація,39508645,Вінницька область,Заробітна плата за 1 полов.груденя платіжна відомість НЗП 000004,26003010318161,current,1300.00,Корсовська Юлія Вікторівна,,фізична особа
ЄС,Вінницька область,84,2016-12-28,чек А35687352,"Заробітна плата, премії","Заробітна плата, лікарняні, вагітності, відрядження, компенсації",381055,Вінницька обласна організація,39508645,Вінницька область,Заробітна плата за 1 полов.груденя платіжна відомість НЗП 000004,26003010318161,current,1300.00,Гончар Олена Олександрівна,,фізична особа
ЄС,"Вінницька область, Шаргородський район, Шаргород",84,2016-12-28,чек А35687352,"Заробітна плата, премії","Заробітна плата, лікарняні, вагітності, відрядження, компенсації",381054,Вінницька обласна організація,39508645,Вінницька область,Заробітна плата за 1 полов.груденя платіжна відомість НЗП 000004,26003010318161,current,2600.00,Саміла Наталія Вікторівна,,фізична особа
ЄС,"Вінницька область, Оратівський район, Оратів",84,2016-12-28,чек А35687352,"Заробітна плата, премії","Заробітна плата, лікарняні, вагітності, відрядження, компенсації",381053,Вінницька обласна організація,39508645,Вінницька область,Заробітна плата за 1 полов.груденя платіжна відомість НЗП 000004,26003010318161,current,1300.00,Схаб Тетяна Леонідівна,,фізична особа
ЄС,"Вінницька область, Оратівський район, Оратів",84,2016-12-28,чек А35687352,"Заробітна плата, премії","Заробітна плата, лікарняні, вагітності, відрядження, компенсації",381052,Вінницька обласна організація,39508645,Вінницька область,Заробітна плата за 1 полов.груденя платіжна відомість НЗП 000004,26003010318161,current,1300.00,Найда Віра Миколаївна,,фізична особа
ЄС,Вінницька область,84,2016-12-28,чек А35687352,"Заробітна плата, премії","Заробітна плата, лікарняні, вагітності, відрядження, компенсації",381051,Вінницька обласна організація,39508645,Вінницька область,Заробітна плата за 1 полов.груденя платіжна відомість НЗП 000004,26003010318161,current,1300.00,Осипенко Галина Василівна,,фізична особа
ЄС,"Вінницька область, Липовецький район, Липовець, вулиця Набережна",84,2016-12-28,чек А35687352,"Заробітна плата, премії","Заробітна плата, лікарняні, вагітності, відрядження, компенсації",381050,Вінницька обласна організація,39508645,Вінницька область,Заробітна плата за 1 полов.груденя платіжна відомість НЗП 000004,26003010318161,current,1300.00,Остапенко Сергій Володимирович,,фізична особа
ЄС,"Вінницька область, Немирівський район, Немирів",84,2016-12-28,чек А35687352,"Заробітна плата, премії","Заробітна плата, лікарняні, вагітності, відрядження, компенсації",381049,Вінницька обласна організація,39508645,Вінницька область,Заробітна плата за 1 полов.груденя платіжна відомість НЗП 000004,26003010318161,current,2600.00,Мадіянська Аліна Анатоліївна,,фізична особа
ЄС,"Вінницька область, Тиврівський район, Гнівань",84,2016-12-28,чек А35687352,"Заробітна плата, премії","Заробітна плата, лікарняні, вагітності, відрядження, компенсації",381048,Вінницька обласна організація,39508645,Вінницька область,Заробітна плата за 1 полов.груденя платіжна відомість НЗП 000004,26003010318161,current,2600.00,Заворітний Олександр Васильович,,фізична особа
ЄС,"Вінницька область, Гайсинський район, Гайсин",84,2016-12-28,чек А35687352,"Заробітна плата, премії","Заробітна плата, лікарняні, вагітності, відрядження, компенсації",381047,Вінницька обласна організація,39508645,Вінницька область,Заробітна плата за 1 полов.груденя платіжна відомість НЗП 000004,26003010318161,current,1300.00,Оріховська Валентина Іванівна,,фізична особа
ЄС,"Вінницька область, Гайсинський район, Гайсин",84,2016-12-28,чек А35687352,"Заробітна плата, премії","Заробітна плата, лікарняні, вагітності, відрядження, компенсації",381046,Вінницька обласна організація,39508645,Вінницька область,Заробітна плата за 1 полов.груденя платіжна відомість НЗП 000004,26003010318161,current,1300.00,Чорноморець Тетяна Василівна,,фізична особа
ЄС,Вінницька область,84,2016-12-28,чек А35687352,"Заробітна плата, премії","Заробітна плата, лікарняні, вагітності, відрядження, компенсації",381045,Вінницька обласна організація,39508645,Вінницька область,Заробітна плата за 1 полов.груденя платіжна відомість НЗП 000004,26003010318161,current,1300.00,Чорна Тетяна Сергіївна,,фізична особа
ЄС,"Вінницька область, Барський район, Бар, вулиця Героїв Майдану, 16",84,2016-12-28,чек А35687352,"Заробітна плата, премії","Заробітна плата, лікарняні, вагітності, відрядження, компенсації",381044,Вінницька обласна організація,39508645,Вінницька область,Заробітна плата за 1 полов.груденя платіжна відомість НЗП 000004,26003010318161,current,1300.00,Мельник Тетяна Олександрівна,,фізична особа
ЄС,"Вінницька область, Барський район, Гайове",84,2016-12-28,чек А35687352,"Заробітна плата, премії","Заробітна плата, лікарняні, вагітності, відрядження, компенсації",381043,Вінницька обласна організація,39508645,Вінницька область,Заробітна плата за 1 полов.груденя платіжна відомість НЗП 000004,26003010318161,current,1300.00,Гудзь Віта Олександрівна,,фізична особа
ЄС,"Вінницька область, Літинський район, Літин",84,2016-12-28,чек А35687352,"Заробітна плата, премії","Заробітна плата, лікарняні, вагітності, відрядження, компенсації",381042,Вінницька обласна організація,39508645,Вінницька область,Заробітна плата за 1 полов.груденя платіжна відомість НЗП 000004,26003010318161,current,1300.00,Чорна Лариса Іванівна,,фізична особа
ЄС,"Вінницька область, Томашпільський район, Томашпіль",84,2016-12-28,чек А35687352,"Заробітна плата, премії","Заробітна плата, лікарняні, вагітності, відрядження, компенсації",381041,Вінницька обласна організація,39508645,Вінницька область,Заробітна плата за 1 полов.груденя платіжна відомість НЗП 000004,26003010318161,current,1300.00,Купріянова Любов Сергіївна,,фізична особа
ЄС,"Вінницька область, Тульчинський район",84,2016-12-28,чек А35687352,"Заробітна плата, премії","Заробітна плата, лікарняні, вагітності, відрядження, компенсації",381040,Вінницька обласна організація,39508645,Вінницька область,Заробітна плата за 1 полов.груденя платіжна відомість НЗП 000004,26003010318161,current,1300.00,Швець Олена Вікторівна,,фізична особа
ЄС,"Вінницька область, Козятин",84,2016-12-28,чек А35687352,"Заробітна плата, премії","Заробітна плата, лікарняні, вагітності, відрядження, компенсації",381039,Вінницька обласна організація,39508645,Вінницька область,Заробітна плата за 1 полов.груденя платіжна відомість НЗП 000004,26003010318161,current,2600.00,Гилун Дмитро Дмитрович,,фізична особа
ЄС,"Вінницька область, Піщанський район, Піщанка",84,2016-12-28,чек А35687352,"Заробітна плата, премії","Заробітна плата, лікарняні, вагітності, відрядження, компенсації",381038,Вінницька обласна організація,39508645,Вінницька область,Заробітна плата за 1 полов.груденя платіжна відомість НЗП 000004,26003010318161,current,2600.00,Чорноус Валентина Іванівна,,фізична особа
ЄС,"Вінницька область, Мурованокуриловецький район, Рівне",84,2016-12-28,чек А35687352,"Заробітна плата, премії","Заробітна плата, лікарняні, вагітності, відрядження, компенсації",381037,Вінницька обласна організація,39508645,Вінницька область,Заробітна плата за 1 полов.груденя платіжна відомість НЗП 000004,26003010318161,current,2600.00,Колядич Микола Васильович,,фізична особа
ЄС,"Вінницька область, Ямпільський район, Ямпіль",84,2016-12-28,чек А35687352,"Заробітна плата, премії","Заробітна плата, лікарняні, вагітності, відрядження, компенсації",381036,Вінницька обласна організація,39508645,Вінницька область,Заробітна плата за 1 полов.груденя платіжна відомість НЗП 000004,26003010318161,current,2600.00,Петровська Лідія Михайлівна,,фізична особа
ЄС,Вінницька область,84,2016-12-28,чек А35687352,"Заробітна плата, премії","Заробітна плата, лікарняні, вагітності, відрядження, компенсації",381035,Вінницька обласна організація,39508645,Вінницька область,Заробітна плата за 1 полов.груденя платіжна відомість НЗП 000004,26003010318161,current,1300.00,Ніколенко Світлана Петрівна,,фізична особа
ЄС,Вінницька область,84,2016-12-28,чек А35687352,"Заробітна плата, премії","Заробітна плата, лікарняні, вагітності, відрядження, компенсації",381034,Вінницька обласна організація,39508645,Вінницька область,Заробітна плата за 1 полов.груденя платіжна відомість НЗП 000004,26003010318161,current,2600.00,Осадча Ірина Полікарпівна,,фізична особа
ЄС,"Вінницька область, Крижопільський район, Крижопіль",84,2016-12-28,чек А35687352,"Заробітна плата, премії","Заробітна плата, лікарняні, вагітності, відрядження, компенсації",381033,Вінницька обласна організація,39508645,Вінницька область,Заробітна плата за 1 полов.груденя платіжна відомість НЗП 000004,26003010318161,current,1300.00,Рибак Світлана Михайлівна,,фізична особа
ЄС,"Вінницька область, Вінниця",84,2016-12-28,чек А35687352,"Заробітна плата, премії","Заробітна плата, лікарняні, вагітності, відрядження, компенсації",381032,Вінницька обласна організація,39508645,Вінницька область,Заробітна плата за 1 полов.груденя платіжна відомість НЗП 000004,26003010318161,current,2600.00,Гончарук Віталій Степанович,,фізична особа
ЄС,"Вінницька область, Липовецький район, Липовець",84,2016-12-28,чек А35687352,"Заробітна плата, премії","Заробітна плата, лікарняні, вагітності, відрядження, компенсації",381031,Вінницька обласна організація,39508645,Вінницька область,Заробітна плата за 1 полов.груденя платіжна відомість НЗП 000004,26003010318161,current,1300.00,Бойко Олена Олександрівна,,фізична особа
ЄС,Вінницька область,84,2016-12-28,чек А35687352,"Заробітна плата, премії","Заробітна плата, лікарняні, вагітності, відрядження, компенсації",381030,Вінницька обласна організація,39508645,Вінницька область,Заробітна плата за 1 полов.груденя платіжна відомість НЗП 000004,26003010318161,current,1500.00,Булавенко Євгеній Михайлович,,фізична особа
ЄС,Вінницька область,84,2016-12-28,чек А35687352,"Заробітна плата, премії","Заробітна плата, лікарняні, вагітності, відрядження, компенсації",381029,Вінницька обласна організація,39508645,Вінницька область,Заробітна плата за 1 пол груденя платіжна відомість НЗП 000003,26003010318161,current,1500.00,Гриняк Олександр Вікторович,,фізична особа
ЄС,Вінницька область,84,2016-12-28,чек А35687352,"Заробітна плата, премії","Заробітна плата, лікарняні, вагітності, відрядження, компенсації",381028,Вінницька обласна організація,39508645,Вінницька область,Заробітна плата за 1 пол груденя платіжна відомість НЗП 000003,26003010318161,current,2800.00,Циркун Ольга Михайлівна,,фізична особа
ЄС,"Вінницька область, Літинський район, Літин",84,2016-12-28,чек А35687352,"Заробітна плата, премії","Заробітна плата, лікарняні, вагітності, відрядження, компенсації",381027,Вінницька обласна організація,39508645,Вінницька область,Заробітна плата за 1 пол груденя платіжна відомість НЗП 000003,26003010318161,current,3200.00,Шевчук Світлана Володимирівна,,фізична особа
ЄС,"Вінницька область, Вінниця",84,2016-12-28,чек А35687352,"Заробітна плата, премії","Заробітна плата, лікарняні, вагітності, відрядження, компенсації",381026,Вінницька обласна організація,39508645,Вінницька область,Заробітна плата за 1 пол груденя платіжна відомість НЗП 000003,26003010318161,current,3800.00,Кобринчук Марія Володимирівна,,фізична особа
ЄС,"Вінницька область, Вінниця",84,2016-12-28,чек А35687352,"Заробітна плата, премії","Заробітна плата, лікарняні, вагітності, відрядження, компенсації",381025,Вінницька обласна організація,39508645,Вінницька область,Заробітна плата за 1 пол груденя платіжна відомість НЗП 000003,26003010318161,current,3800.00,Чабан Олена Ігорівна,,фізична особа
ЄС,Вінницька область,84,2016-12-28,чек А35687352,"Заробітна плата, премії","Заробітна плата, лікарняні, вагітності, відрядження, компенсації",381024,Вінницька обласна організація,39508645,Вінницька область,Заробітна плата за 1 пол груденя платіжна відомість НЗП 000003,26003010318161,current,2700.00,Молодзієвська Ольга Іванівна,,фізична особа
ЄС,"Київ, вулиця Єреванська, 1",70,2016-12-28,TR.2405837. 442538.2667,Банківські послуги,Інші витрати,380873,Білопільська районна організація,39813336,Сумська область,абонплата за розрахункове касове обслуговування по рахунку з 2016-12-01 по 2016-12-31 згідно Договору №2016/РКО/306-007 від 2016-08-04,26004924417302,current,30.00,"АБ ""Укргазбанк""",23697280,юридична особа
ЄС,"Київ, вулиця Єреванська, 1",70,2016-12-28,ТК2405837. 460242.2667,Банківські послуги,Інші витрати,380872,Білопільська районна організація,39813336,Сумська область,плата за розрахункове касове обслуговування по рахунку з 2016-12-01 по 2016-12-31 згідно Договору №2016/РКО/306-007 від 2016-08-04,26004924417302,current,13.00,"АБ ""Укргазбанк""",23697280,юридична особа
ЄС,"Сумська область, Білопільський район, Білопілля, вулиця Старопутивльська, 39",79,2016-12-28,№13,"Оренда будинків і приміщень та експлуатаційні витрати (прибирання, страхування орендованих будинків, охорона, сигналізація, ремонт, вивіз сміття, тощо)",Оренда нерухомості,380871,Білопільська районна організація,39813336,Сумська область,відшкодування комунальних платежів:водопостачання за грудень згідно акту наданих послуг №260 від 19.12.16,26004924417302,current,9.30,Відділ культури і туризму Білопільської РДА Сумської області,02230230,юридична особа
ЄС,"Сумська область, Білопільський район, Білопілля, вулиця Старопутивльська, 39",79,2016-12-28,№12,"Оренда будинків і приміщень та експлуатаційні витрати (прибирання, страхування орендованих будинків, охорона, сигналізація, ремонт, вивіз сміття, тощо)",Оренда нерухомості,380870,Білопільська районна організація,39813336,Сумська область,відшкодування комунальних платежів:водопостачання за листопад згідно акту наданих послуг №240 від 28.11.16,26004924417302,current,12.40,Відділ культури і туризму Білопільської РДА Сумської області,02230230,юридична особа
ЄС,"Сумська область, Білопільський район, Білопілля, вулиця Старопутивльська, 39",79,2016-12-28,№11,"Оренда будинків і приміщень та експлуатаційні витрати (прибирання, страхування орендованих будинків, охорона, сигналізація, ремонт, вивіз сміття, тощо)",Оренда нерухомості,380869,Білопільська районна організація,39813336,Сумська область,відшкодування комунальних платежів теплопостачання за грудень згідно акту наданих послуг №264 від 21.12.16,26004924417302,current,408.06,Відділ культури і туризму Білопільської РДА Сумської області,02230230,юридична особа
ЄС,"Сумська область, Білопільський район, Білопілля, вулиця Старопутивльська, 39",79,2016-12-28,№10,"Оренда будинків і приміщень та експлуатаційні витрати (прибирання, страхування орендованих будинків, охорона, сигналізація, ремонт, вивіз сміття, тощо)",Оренда нерухомості,380868,Білопільська районна організація,39813336,Сумська область,відшкодування комунальних платежів теплопостачання за листопад-грудень згідно акту наданих послуг №254 від 12.12.16,26004924417302,current,542.56,Відділ культури і туризму Білопільської РДА Сумської області,02230230,юридична особа
ЄС,"Сумська область, Білопільський район, Білопілля, вулиця Старопутивльська, 39",79,2016-12-28,№9,"Оренда будинків і приміщень та експлуатаційні витрати (прибирання, страхування орендованих будинків, охорона, сигналізація, ремонт, вивіз сміття, тощо)",Оренда нерухомості,380867,Білопільська районна організація,39813336,Сумська область,відшкодування комунальних платежів :теплопостачання за листопад згідно акту наданих послуг №235 від 28.11.16,26004924417302,current,350.86,Відділ культури і туризму Білопільської РДА Сумської області,02230230,юридична особа
ЄС,"Сумська область, Білопільський район, Білопілля, вулиця Старопутивльська, 39",79,2016-12-28,№8,"Оренда будинків і приміщень та експлуатаційні витрати (прибирання, страхування орендованих будинків, охорона, сигналізація, ремонт, вивіз сміття, тощо)",Оренда нерухомості,380866,Білопільська районна організація,39813336,Сумська область,відшкодування комунальних платежів теплопостачання за жовтень згідно акту наданих послуг №218 від 14.11.16,26004924417302,current,404.26,Відділ культури і туризму Білопільської РДА Сумської області,02230230,юридична особа
ЄС,"Сумська область, Білопільський район, Білопілля, вулиця Старопутивльська, 39",79,2016-12-28,№7,"Оренда будинків і приміщень та експлуатаційні витрати (прибирання, страхування орендованих будинків, охорона, сигналізація, ремонт, вивіз сміття, тощо)",Оренда нерухомості,380865,Білопільська районна організація,39813336,Сумська область,відшкодування комунальних платежів:водопостачання та тепло постачання за жовтень згідно акту наданих послуг №208 від 03.11.16,26004924417302,current,228.39,Відділ культури і туризму Білопільської РДА Сумської області,02230230,юридична особа
ЄС,"Сумська область, Білопільський район, Білопілля, вулиця Старопутивльська, 39",79,2016-12-28,№6,"Оренда будинків і приміщень та експлуатаційні витрати (прибирання, страхування орендованих будинків, охорона, сигналізація, ремонт, вивіз сміття, тощо)",Оренда нерухомості,380864,Білопільська районна організація,39813336,Сумська область,відшкодування комунальних платежів:водопостачання за вересень-жовтень згідно акту наданих послуг №188 від 12.10.16,26004924417302,current,5.51,Відділ культури і туризму Білопільської РДА Сумської області,02230230,юридична особа
ЄС,"Сумська область, Білопільський район, Білопілля, вулиця Старопутивльська, 39",79,2016-12-28,№5,"Оренда будинків і приміщень та експлуатаційні витрати (прибирання, страхування орендованих будинків, охорона, сигналізація, ремонт, вивіз сміття, тощо)",Оренда нерухомості,380863,Білопільська районна організація,39813336,Сумська область,відшкодування комунальних платежів:водопостачання згідно акту наданих послуг №168 від 12.09.16,26004924417302,current,4.13,Відділ культури і туризму Білопільської РДА Сумської області,02230230,юридична особа
ЄС,"Сумська область, Білопільський район, Білопілля, вулиця Старопутивльська, 39",79,2016-12-28,№4,"Оренда будинків і приміщень та експлуатаційні витрати (прибирання, страхування орендованих будинків, охорона, сигналізація, ремонт, вивіз сміття, тощо)",Оренда нерухомості,380862,Білопільська районна організація,39813336,Сумська область,за оренду приміщення за грудень 2016 р. згідно акту наданих послуг №242 від 06.12.16,26004924417302,current,447.63,Відділ культури і туризму Білопільської РДА Сумської області,02230230,юридична особа
ЄС,"Сумська область, Білопільський район, Білопілля, вулиця Старопутивльська, 39",79,2016-12-28,№3,"Оренда будинків і приміщень та експлуатаційні витрати (прибирання, страхування орендованих будинків, охорона, сигналізація, ремонт, вивіз сміття, тощо)",Оренда нерухомості,380861,Білопільська районна організація,39813336,Сумська область,за оренду приміщення за листопад 2016 р. згідно акту наданих послуг №217 від 14.11.16,26004924417302,current,447.63,Відділ культури і туризму Білопільської РДА Сумської області,02230230,юридична особа
